{"text_format":"1","workbook":"xlsx","n_sheets":6,"sheets":["Introduction","Pre-App Stage","Outline Application Stage","Detailed Application Stage","Post-Construction Stage","Drop- down list"],"not_rendered":{"charts":0,"images":1,"macros":1,"external_links":0,"defined_names":53,"comments":0,"pivot_tables":0},"unopened":[],"bounds":{"document_bytes":16777216,"sheet_cells":100000,"rows_first":2000,"rows_last":500,"rows_between":2000,"halvings":0,"cell_chars":16384,"cell_head_chars":4096},"cells_cut":0,"cells_raw":0,"read":"whole","date_system":"1900"}

{"sheet":"Introduction","index":0,"n_rows":36,"n_cols":7,"rows_kept":36,"cut":false,"hidden":false,"merged":[[21,6,21,9],[22,6,22,9],[23,6,23,9],[24,6,24,9],[25,6,25,9],[32,6,32,9],[28,6,28,9],[31,6,31,9],[26,6,26,9],[27,6,27,9],[29,6,29,9],[30,6,30,9]]}
["Greater London Authority - Circular Economy Statement template "]
[]
["How to use this spreadsheet"]
["This template should be used by planning applicants to fulfil the requirements of the Mayor's Circular Economy (CE) Statement policy set out in London Plan Policy SI 7 'Reducing waste and supporting the Circular Economy’. Before completing and submitting this spreadsheet to the GLA, applicants should read the CE statement guidance: https://www.london.gov.uk/what-we-do/planning/implementing-london-plan/london-plan-guidance-and-spgs/circular-economy-statement-guidance-consultation-draft "]
[]
["Applicant are required to submit CE statement information to the GLA at the following three stages: pre-applicaton, outline/detailed planning submission and post-construction. Separate tabs are provided in this spreadsheet for each stage. An outline of the information required at each stage and how to submit it is provided below. Please enter information to the light yellow-coloured cells only, do not enter information in the grey cells as these will be automatically calculated. The light green-coloured cells should be completed to achieve 'pioneering' status."]
[]
["1. Pre-application stage"]
["At pre-application stage, applicants are required to complete the pre-application information tab of this template which requires applicants to confirm details about the site and to provide details of the circular economy design approaches that are informing the existing and new development (including by building layer for the latter). All tables should be completed. This should be submitted to the GLA along with all other pre-application material."]
[]
["2. Outline/detailed planning submission stage"]
["At this stage, applicants are required to complete the outline or detailed planning stage tab of this template (whichever is relevant) and submit it to the GLA along with their planning application. Applicants are required to complete all tables, including the Bill of Materials and Recycling and Waste Reporting tables. Please enter information to the light yellow-coloured cells only, do not enter information in the grey cells as these will be automatically calculated. The light green-coloured cells should be completed to achieve 'pioneering' status."]
[]
["3. Post-construction stage"]
["At the final stage of the CE statement process, applicants should complete the post-construction tab of this template and submit it to the GLA within three months of practical completion. This will require an update of the information provided at planning submission stage and for the actual figures to be reported using actual material quantities during construction. Information should be submitted to: circulareconomystatements@london.gov.uk   "]
[]
["Queries"]
["Any queries or feedback on this template should be submitted to:"]
["circulareconomystatements@london.gov.uk"]
[]
[]
["Requirement by application stage (see relevant section of guidance for more information)","Pre-application stage (suggested)","Outline application[1]","Full application / reserved matters[2]","Post-construction","Checklist","Information Reference (Please indicate whether this has been included in the report to accompany this template or as a separate submission)"]
["CE targets (see section 4.2)","Encouraged","Yes ","Yes  ","Yes (Performance reported)",null,"Evidence in CES template spreadsheet"]
["CE design approaches (see sections 2.3 - 2.5 and 4.3)","Yes ","Yes ","Yes ","N/A",null,"Evidence in CES template spreadsheet"]
["CE design principles (see sections 2.1, 4.4 - 4.5)","Yes","No","No","No",null,"Evidence in CES template spreadsheet"]
["CE design principles by building layer (see sections 4.5)","No","Yes","Yes","No",null,"Evidence in CES template spreadsheet"]
["Pre-redevelopment audit (see section 4.6)","Encouraged ","Yes","Yes","N/A"]
["Pre-demolition audit (see section 4.6)","Encouraged","Yes","Yes","N/A"]
["Bill of materials (including calculations – see section 4.7)","No","Yes (Estimated)","Yes (Estimated) ","Yes (Actual)",null,"Evidence in CES template spreadsheet"]
["End of life strategy (see section 4.7)","No","No","Yes ","Encouraged"]
["Operational waste management plan (see section 4.8)","No","No","Yes ","Encouraged"]
["Recycling and waste reporting (see Section 4.9)","No","Yes (Estimated)","Yes (Estimated) ","Yes (Actual)",null,"Evidence in CES template spreadsheet"]
["Lessons learnt and key achievements (see section 4.10)","N/A","N/A","N/A","Yes ",null,"Evidence in CES template spreadsheet"]
[]
["[1] Also applicable to the outline and detailed part of hybrid applications."]
["[2] Also applicable to the outline and detailed part of hybrid applications."]

{"sheet":"Pre-App Stage","index":1,"n_rows":88,"n_cols":7,"rows_kept":88,"cut":false,"hidden":false,"merged":[[34,1,34,2],[0,0,1,6],[3,0,3,5],[4,0,4,2],[4,4,4,5],[5,2,5,3],[51,1,51,2],[35,1,35,2],[36,1,36,2],[37,1,37,2],[38,1,38,2],[39,1,39,2],[40,1,40,2],[41,1,41,2],[42,1,42,2],[43,1,43,2],[44,1,44,2],[50,1,50,2],[70,4,70,5],[70,6,70,8],[71,4,71,5],[70,1,70,3],[52,1,52,2],[53,1,53,2],[54,1,54,2],[55,1,55,2],[56,1,56,2],[57,1,57,2],[71,6,71,8],[83,1,83,2],[84,1,84,2],[85,1,85,2],[82,1,82,2],[71,1,74,2],[75,1,75,3],[76,1,76,3],[77,1,77,3],[78,1,78,3],[86,1,86,2],[87,1,87,2],[88,1,88,2],[88,4,88,5],[88,6,88,8],[89,1,89,2],[89,4,89,5],[89,6,89,8],[90,1,90,2],[90,4,90,5],[90,6,90,8],[76,6,76,8],[77,6,77,8],[78,6,78,8],[72,4,72,5],[73,4,73,5],[74,4,74,5],[75,4,75,5],[76,4,76,5],[77,4,77,5],[72,6,72,8],[73,6,73,8],[74,6,74,8],[75,6,75,8],[78,4,78,5]]}
[]
[]
[]
["Pre-Application Stage - Circular Economy Statement"]
[]
[null,null,"Project details"]
[null,null,"Project name"]
[null,null,"Planning application reference number (if applicable)"]
[null,null,"Applicant"]
[null,null,"London Borough"]
[null,null,"Brief description of the project"]
[null,null,"Author/s"]
[null,null,"Date of assessment"]
[null,null,"Number of Use Types"]
[null,null,"Use Class / Type","Floor Area by use type (m2)"]
[null,null,"Use Class / Type 1","Use Class / Type 1 GIA"]
[null,null,"Use Class / Type 2","Use Class / Type 2 GIA"]
[null,null,"Use Class / Type 3","Use Class / Type 3 GIA"]
[null,null,"Use Class / Type 4","Use Class / Type 4 GIA"]
[null,null,"Use Class / Type 5","Use Class / Type 5 GIA"]
[null,null,"Use Class / Type 6","Use Class / Type 6 GIA"]
[null,null,"Use Class / Type 7","Use Class / Type 7 GIA"]
[null,null,"Use Class / Type 8","Use Class / Type 8 GIA"]
[null,null,"Use Class / Type 9","Use Class / Type 9 GIA"]
[null,null,"Use Class / Type 10","Use Class / Type 10 GIA"]
[null,null,"Use Class / Type 11","Use Class / Type 11 GIA"]
[null,null,"Use Class / Type 12","Use Class / Type 12 GIA"]
[null,null,"Use Class / Type 13","Use Class / Type 13 GIA"]
[null,null,"Use Class / Type 14","Use Class / Type 14 GIA"]
[null,null,"Use Class / Type 15","Use Class / Type 15 GIA"]
[null,null,"Overall GIA (m2)",{"$f":"SUM(D16:D30)","v":0}]
[]
[]
[null,"Circular Economy Design Approaches"]
[null,"Circular Economy Design Approaches for Existing Structures / Buildings",null,"Applicant Response"]
[null,"Is there an existing building on the site?"]
[null,"Is it technically feasible to retain the building(s) in whole or in part?"]
[null,"Are there any building materials or elements available on site that can be used?"]
[null,"Is the existing building, or parts of the building, suited to the requirements for the site?"]
[null,"Is it technically feasible to recover the 'residual value' of the buildings elements or materials?"]
[null,"The preferred strategy is:",null,"NEW BUILDING"]
[null,"The preferred strategy is:",null,"RETAIN and RETROFIT"]
[null,"The preferred strategy is:",null,"PARTIAL RETENTION and REFURBISHMENT"]
[null,"The preferred strategy is:",null,"DISASSEMBLE/DECONSTRUCT AND REUSE"]
[null,"The preferred strategy is:",null,"DEMOLISH/DECONSTRUCT AND RECYCLE"]
[null,"Circular Economy Design Approach","Phase / Building / Area / Layer","Strategic Response"]
[null,"Retain and Retrofit"]
[null,"Reconstruct"]
[null,"Disassemble "]
[null,"Demolish and Recycle"]
[null,"Circular Economy Design Approaches for New Buildings, Infrastructure and Layers Over the Lifetime of the Development",null,"Applicant Response"]
[null,"Is the whole building designed to have a short life on its current site? (e.g. less than 10 yrs)"]
[null,"Is there likely to be a need for building of a similar size (etc.) in different locations in the future?"]
[null,"Is it foreseeable that the building will need to change use/function within its design life?"]
[null,"The preferred strategy is:",null,"Design for BUILDING RELOCATION"]
[null,"The preferred strategy is:",null,"Design for COMPONENT / MATERIAL REUSE"]
[null,"The preferred strategy is:",null,"Design for ADAPTABILITY"]
[null,"All developments should apply the 6 Circular Economy principles, including:",null,"Designing for DISASSEMBLY and ADAPTABILITY, MATERIAL REUSE ON-SITE and/or RECYCLING should be maximised"]
[null,"Circular Economy Design Approach","Phase / Building / Area / Layer","Strategic Response"]
[null,"Building relocation"]
[null,"Component or material reuse"]
[null,"Adaptability"]
[null,"Flexibility"]
[null,"Replaceability"]
[null,"Disassembly"]
[null,"Longevity"]
[]
[]
[]
[null,"Circular Economy Design Principles"]
[null,"Design Principle",null,null,"Phase / Building / Area / Layer",null,"Design Response"]
[null,"Designing out waste",null,"Module A - Product Sourcing and Construction Stage"]
[null,null,null,"Module B - In-Use Stage"]
[null,null,null,"Module C - End-of-Life Stage"]
[null,null,null,"Module D - Benefits and Loads Beyond the System Boundary"]
[null,"Designing for longevity"]
[null,"Designing for adaptability or flexibility"]
[null,"Designing for disassembly"]
[null,"Using systems, elements or materials that can be re-used and recycled"]
[]
[]
[null,"Circular Economy Targets"]
[null,"Circular economy targets for existing and new development",null,"Policy Requirement","Target Aiming For (%)","Policy Met?"]
[null,"Demolition waste materials (non-hazardous)",null,"Minimum of 95% diverted from landfill for reuse, recycling or recovery.",null,{"$f":"IF(ISNUMBER(E84),IF(E84=95%,\"Yes\",IF(E84>95%,\"Exceeds Policy\",\"No\")),\"\")","v":""}]
[null,"Excavation waste materials",null,"Minimum of 95% diverted from landfill for beneficial reuse.",null,{"$f":"IF(ISNUMBER(E85),IF(E85=95%,\"Yes\",IF(E85>95%,\"Exceeds Policy\",\"No\")),\"\")","v":""}]
[null,"Construction waste materials",null,"Minimum of 95% diverted from landfill for reuse, recycling or recovery.",null,{"$f":"IF(ISNUMBER(E86),IF(E86=95%,\"Yes\",IF(E86>95%,\"Exceeds Policy\",\"No\")),\"\")","v":""}]
[null,"Municipal waste",null,"Minimum 65% recycling rate by 2030.",null,{"$f":"IF(ISNUMBER(E87),IF(E87=65%,\"Yes\",IF(E87>65%,\"Exceeds Policy\",\"No\")),\"\")","v":""}]
[null,"Recycled content",null,"Minimum 20% of the building material elements to be comprised of recycled or reused content.",null,{"$f":"IF(ISNUMBER(E88),IF(E88=20%,\"Yes\",IF(E88>20%,\"Exceeds Policy\",\"No\")),\"\")","v":""}]

{"sheet":"Outline Application Stage","index":2,"n_rows":488,"n_cols":26,"rows_kept":488,"cut":false,"hidden":false,"merged":[[434,1,453,1],[434,2,453,3],[433,2,433,3],[392,2,411,3],[392,1,411,1],[413,2,432,3],[413,1,432,1],[329,1,348,1],[350,2,369,3],[350,1,369,1],[371,2,390,3],[371,1,390,1],[276,1,290,1],[292,2,311,3],[292,1,311,1],[313,2,327,3],[313,1,327,1],[218,1,237,1],[239,2,253,3],[239,1,253,1],[255,1,274,1],[255,2,274,3],[41,1,41,2],[42,1,42,2],[43,1,43,2],[44,1,44,2],[50,1,50,2],[91,1,105,1],[91,2,105,3],[370,2,370,3],[391,2,391,3],[175,2,175,3],[275,2,275,3],[291,2,291,3],[312,2,312,3],[328,2,328,3],[349,2,349,3],[218,2,237,3],[276,2,290,3],[329,2,348,3],[154,2,154,3],[196,2,196,3],[217,2,217,3],[238,2,238,3],[254,2,254,3],[155,2,174,3],[40,1,40,2],[0,0,1,6],[3,0,3,5],[4,0,4,2],[4,4,4,5],[5,2,5,3],[34,1,34,2],[35,1,35,2],[36,1,36,2],[37,1,37,2],[38,1,38,2],[39,1,39,2],[51,1,51,2],[52,1,52,2],[53,1,53,2],[54,1,54,2],[55,1,55,2],[56,1,56,2],[70,14,75,14],[70,15,75,15],[72,1,72,3],[73,1,73,3],[74,1,74,3],[75,1,75,3],[70,13,75,13],[75,4,75,11],[70,1,71,3],[70,4,70,11],[70,12,75,12],[57,1,57,2],[76,1,79,2],[80,1,80,3],[81,1,81,3],[88,2,88,3],[83,1,83,3],[82,1,82,3],[461,13,461,16],[462,13,463,13],[462,14,463,14],[462,15,463,15],[462,16,463,16],[462,5,463,5],[462,6,463,6],[462,7,462,8],[461,4,461,6],[461,7,461,12],[462,9,462,10],[462,11,462,12],[88,4,88,11],[88,12,88,16],[89,2,89,3],[90,2,90,3],[106,2,106,3],[122,2,122,3],[487,1,487,2],[487,4,487,5],[487,6,487,8],[484,1,484,2],[484,6,484,8],[485,1,485,2],[485,6,485,8],[486,1,486,2],[486,4,486,5],[486,6,486,8],[88,17,88,21],[88,22,88,25],[481,1,481,2],[481,6,481,8],[482,1,482,2],[482,6,482,8],[483,1,483,2],[483,6,483,8],[480,1,480,2],[480,6,480,8],[462,4,463,4],[138,2,138,3],[107,2,121,3],[412,2,412,3],[155,1,174,1],[176,2,195,3],[176,1,195,1],[197,2,216,3],[197,1,216,1],[107,1,121,1],[123,2,137,3],[139,2,153,3],[139,1,153,1],[123,1,137,1]]}
[]
[]
[]
["Outline Application Stage - Circular Economy Statement"]
[]
[null,null,"Project details"]
[null,null,"Project name"]
[null,null,"Planning application reference number (if applicable)"]
[null,null,"Applicant"]
[null,null,"London Borough"]
[null,null,"Brief description of the project"]
[null,null,"Author/s"]
[null,null,"Date of assessment"]
[null,null,"Number of Use Types"]
[null,null,"Use Class / Type","Floor Area by use type (m2)"]
[null,null,"Use Class / Type 1","Use Class / Type 1 GIA"]
[null,null,"Use Class / Type 2","Use Class / Type 2 GIA"]
[null,null,"Use Class / Type 3","Use Class / Type 3 GIA"]
[null,null,"Use Class / Type 4","Use Class / Type 4 GIA"]
[null,null,"Use Class / Type 5","Use Class / Type 5 GIA"]
[null,null,"Use Class / Type 6","Use Class / Type 6 GIA"]
[null,null,"Use Class / Type 7","Use Class / Type 7 GIA"]
[null,null,"Use Class / Type 8","Use Class / Type 8 GIA"]
[null,null,"Use Class / Type 9","Use Class / Type 9 GIA"]
[null,null,"Use Class / Type 10","Use Class / Type 10 GIA"]
[null,null,"Use Class / Type 11","Use Class / Type 11 GIA"]
[null,null,"Use Class / Type 12","Use Class / Type 12 GIA"]
[null,null,"Use Class / Type 13","Use Class / Type 13 GIA"]
[null,null,"Use Class / Type 14","Use Class / Type 14 GIA"]
[null,null,"Use Class / Type 15","Use Class / Type 15 GIA"]
[null,null,"Overall GIA (m2)",{"$f":"SUM(D16:D30)","v":0}]
[]
[]
[null,"Circular Economy Design Approaches"]
[null,"Circular Economy Design Approaches for Existing Structures / Buildings",null,"Applicant Response"]
[null,"Is there an existing building on the site?"]
[null,"Is it technically feasible to retain the building(s) in whole or in part?"]
[null,"Are there any building materials or elements available on site that can be used?"]
[null,"Is the existing building, or parts of the building, suited to the requirements for the site?"]
[null,"Is it technically feasible to recover the 'residual value' of the buildings elements or materials?"]
[null,"The preferred strategy is:",null,"NEW BUILDING"]
[null,"The preferred strategy is:",null,"RETAIN and RETROFIT"]
[null,"The preferred strategy is:",null,"PARTIAL RETENTION and REFURBISHMENT"]
[null,"The preferred strategy is:",null,"DISASSEMBLE/DECONSTRUCT AND REUSE"]
[null,"The preferred strategy is:",null,"DEMOLISH/DECONSTRUCT AND RECYCLE"]
[null,"Circular Economy Design Approach","Phase/Building/Area/Layer","Strategic Response"]
[null,"Refurbish"]
[null,"Repurpose"]
[null,"Disassemble / Deconstruct and Reuse"]
[null,"Demolish / Deconstruct and Recycle"]
[null,"Circular Economy Design Approaches for New Buildings, Infrastructure and Layers Over the Lifetime of the Development",null,"Applicant Response"]
[null,"Is the whole building designed to have a short life on its current site? (e.g. less than 10 yrs)"]
[null,"Is there likely to be a need for building of a similar size (etc.) in different locations in the future?"]
[null,"Is it foreseeable that the building will need to change use/function within its design life?"]
[null,"The preferred strategy is:",null,"Design for BUILDING RELOCATION"]
[null,"The preferred strategy is:",null,"Design for COMPONENT / MATERIAL REUSE"]
[null,"The preferred strategy is:",null,"Design for ADAPTABILITY"]
[null,"All developments should apply the 6 Circular Economy principles, including:",null,"Designing for DISASSEMBLY and ADAPTABILITY, MATERIAL REUSE ON-SITE and/or RECYCLING should be maximised"]
[null,"Circular Economy Design Approach","Phase/Building/Area/Layer","Strategic Response"]
[null,"Building relocation"]
[null,"Component or material reuse"]
[null,"Adaptability"]
[null,"Flexibility"]
[null,"Replaceability"]
[null,"Disassembly"]
[null,"Longevity"]
[]
[]
[null,"Circular Economy Design Principles by Building Layer"]
[null,"The Circular Economy Commitments table should consider where the Applicant seeks to go beyond standard practice. If there are multiple phases / buildings / areas with different measures / strategies, please specify these separately within the table below."]
[null,null,null,null,"Building Layer",null,null,null,null,null,null,null,"Summary","Challenges","Actions & Counter-Actions, Who and When","Plan to Prove and Quantify"]
[null,null,null,null,"Site","Substructure","Superstructure","Shell/Skin","Services","Space ","Stuff","Construction Stuff"]
[null,"1. Is it likely the layer (or components within it) will need to be moved or otherwise modified within 5-15 years, e.g. due to changing use patterns or user requirements?",null,null,"N/A",null,null,null,null,null,null,"N/A"]
[null,"2. Is it likely the layer (or components within it) will need to be changed, upgraded or replaced within 5-15 years, e.g. for improved performance, aesthetics",null,null,"N/A",null,null,null,null,null,null,"N/A"]
[null,"The preferred strategy is:",null,null,"-",{"$f":"IF(F73=\"Yes\",\"Design for FLEXIBILITY\",IF(F74=\"Yes\",\"Design for REPLACEABILITY\",IF(AND(F73=\"No\",F74=\"No\"),\"Design for ADAPTABILITY\",\"\")))","v":""},{"$f":"IF(G73=\"Yes\",\"Design for FLEXIBILITY\",IF(G74=\"Yes\",\"Design for REPLACEABILITY\",IF(AND(G73=\"No\",G74=\"No\"),\"Design for ADAPTABILITY\",\"\")))","v":""},"","","","","-"]
[null,"Design Principles",null,null,"All developments should apply the 6 circular economy principles, including designing for DISASSEMBLY and ADAPTABILITY, MATERIAL REUSE ON-SITE and/or RECYCLING should be maximised."]
[null,"Designing out waste",null,"Module A - Product Sourcing and Construction Stage"]
[null,null,null,"Module B - In-Use Stage"]
[null,null,null,"Module C - End-of-Life Stage"]
[null,null,null,"Module D - Benefits and Loads Beyond the System Boundary"]
[null,"Designing for longevity"]
[null,"Designing for adaptability or flexibility"]
[null,"Designing for disassembly"]
[null,"Using systems, elements or materials that can be re-used and recycled"]
[]
[]
[null,"Bill of Materials"]
[null,"Please click the + symbol to the left hand side of the Bill of Materials table to view or hide the input rows for each Building Element Category. The rows for substructure and frame have been unhidden to highlight this."]
[null,null,"BUILDING ELEMENT CATEGORY -  LEVEL 1 (based on the RICS New Rules of\nMeasurement (NRM) classification system level 2 sub-elements https://www.rics.org/globalassets/rics-website/media/products/data-products/bcis-construction/bcis-elemental-standard-form-cost-analysis-4th-nrm-edition-2012.pdf)",null,"PRODUCT AND CONSTRUCTION STAGE (MODULE A)",null,null,null,null,null,null,null,"USE STAGE (MODULE B)",null,null,null,null,"END OF LIFE STAGE (MODULE C)",null,null,null,null,"BENEFITS BEYOND THE SYSTEM BOUNDARY (MODULE D)"]
[null,null,"Building Element Category",null,"Material Type","Material quantity\n(Module A)\n(kg)","Material intensity \n(Module A) \n(kg/m2 GIA)","Performance Indicator (LPG Appendix 1)","Construction Waste Factor \n(Module A)","Construction Waste \n(Module A)\n(kg)","Recycled Content \nby mass (kg)","Recycled Content \nby value (%)","Expected Lifespan\n(years)","Number of Replacements (over assumed 60-year period)","Repair and Replacement quantities of materials\n(Module B)\n (kg)","Construction Waste Factor \n(Module B)","Construction Waste \n(Module B)\n(kg)","Design for Disassembly","Assumed End of Life Scenario\n(Description)","% Reusing ","% Recycling","% Landfill","Estimated reusable materials (kg)","Estimated reusable materials intensity\n(kg/m2 GIA)","Estimated recyclable materials (kg)","Estimated recyclable materials intensity\n(kg/m2 GIA)"]
[null,0.1,"Demolition: Toxic/Hazardous/Contaminated Material Treatment",null,"-",{"$f":"SUM(F92:F106)","v":0},{"$f":"IF(AND(F91<>0,$D$31<>0),F91/$D$31,0)","v":0},"-","-",{"$f":"SUM(J92:J106)","v":0},"-","-","-","-",{"$f":"SUM(O92:O106)","v":0},"-",{"$f":"SUM(Q92:Q106)","v":0},"-","-",{"$f":"IF(W91<>0,W91/($F$91+$O$91),0)","v":0},{"$f":"IF(Y91<>0,Y91/($F$91+$O$91),0)","v":0},{"$f":"1-T91-U91","v":1},{"$f":"SUM(W92:W106)","v":0},{"$f":"IF(AND(W91<>0,$D$31<>0),W91/$D$31,0)","v":0},{"$f":"SUM(Y92:Y106)","v":0},{"$f":"IF(AND(Y91<>0,$D$31<>0),Y91/$D$31,0)","v":0}]
[null,0.1,"Demolition: Toxic/Hazardous/Contaminated Material Treatment",null,null,null,{"$f":"IF(AND(F92<>0,$D$31<>0),F92/$D$31,0)","v":0},"-",null,{"$f":"F92*I92","v":0},null,null,null,{"$f":"IF(M92<>0,INT(60/M92),0)","v":0},{"$f":"N92*I92","v":0},null,{"$f":"P92*M92","v":0},null,null,0,0,{"$f":"1-T92-U92","v":1},{"$f":"T92*(F92+O92)","v":0},{"$f":"IF(AND(W92<>0,$D$31<>0),W92/$D$31,0)","v":0},{"$f":"U92*(F92+O92)","v":0},{"$f":"IF(AND(Y92<>0,$D$31<>0),Y92/$D$31,0)","v":0}]
[null,null,null,null,null,null,{"$f":"IF(AND(F93<>0,$D$31<>0),F93/$D$31,0)","v":0},"-",null,{"$f":"F93*I93","v":0},null,null,null,{"$f":"IF(M93<>0,INT(60/M93),0)","v":0},{"$f":"N93*I93","v":0},null,{"$f":"P93*M93","v":0},null,null,0,0,{"$f":"1-T93-U93","v":1},{"$f":"T93*(F93+O93)","v":0},{"$f":"IF(AND(W93<>0,$D$31<>0),W93/$D$31,0)","v":0},{"$f":"U93*(F93+O93)","v":0},0]
[null,null,null,null,null,null,0,"-",null,0,null,null,null,0,0,null,0,null,null,0,0,1,0,0,0,0]
[null,null,null,null,null,null,0,"-",null,0,null,null,null,0,0,null,0,null,null,0,0,1,0,0,0,0]
[null,null,null,null,null,null,0,"-",null,0,null,null,null,0,0,null,0,null,null,0,0,1,0,0,0,0]
[null,null,null,null,null,null,0,"-",null,0,null,null,null,0,0,null,0,null,null,0,0,1,0,0,0,0]
[null,null,null,null,null,null,0,"-",null,0,null,null,null,0,0,null,0,null,null,0,0,1,0,0,0,0]
[null,null,null,null,null,null,0,"-",null,0,null,null,null,0,0,null,0,null,null,0,0,1,0,0,0,0]
[null,null,null,null,null,null,0,"-",null,0,null,null,null,0,0,null,0,null,null,0,0,1,0,0,0,0]
[null,null,null,null,null,null,0,"-",null,0,null,null,null,0,0,null,0,null,null,0,0,1,0,0,0,0]
[null,null,null,null,null,null,0,"-",null,0,null,null,null,0,0,null,0,null,null,0,0,1,0,0,0,0]
[null,null,null,null,null,null,0,"-",null,0,null,null,null,0,0,null,0,null,null,0,0,1,0,0,0,0]
[null,null,null,null,null,null,0,"-",null,0,null,null,null,0,0,null,0,null,null,0,0,1,0,0,0,0]
[null,null,null,null,null,null,0,"-",null,0,null,null,null,0,0,null,0,null,null,0,0,1,0,0,0,0]
[null,null,null,null,null,null,0,"-",null,0,null,null,null,0,0,null,0,null,null,0,0,1,0,0,0,0]
[null,0.2,"Major Demolition Works",null,"-",{"$f":"SUM(F108:F122)","v":0},{"$f":"IF(AND(F107<>0,$D$31<>0),F107/$D$31,0)","v":0},"-","-",{"$f":"SUM(J108:J122)","v":0},"-","-","-","-",{"$f":"SUM(O108:O122)","v":0},"-",{"$f":"SUM(Q108:Q122)","v":0},"-","-",{"$f":"IF(W107<>0,W107/($F$107+$O$107),0)","v":0},{"$f":"IF(Y107<>0,Y107/($F$107+$O$107),0)","v":0},{"$f":"1-T107-U107","v":1},{"$f":"SUM(W108:W122)","v":0},0,{"$f":"SUM(Y108:Y122)","v":0},0]
[null,0.2,"Major Demolition Works",null,null,null,{"$f":"IF(AND(F108<>0,$D$31<>0),F108/$D$31,0)","v":0},"-",null,{"$f":"I108*F108","v":0},null,null,null,0,0,null,0,null,null,0,0,1,0,0,0,0]
[null,null,null,null,null,null,{"$f":"IF(AND(F109<>0,$D$31<>0),F109/$D$31,0)","v":0},"-",null,0,null,null,null,0,0,null,0,null,null,0,0,1,0,0,0,0]
[null,null,null,null,null,null,{"$f":"IF(AND(F110<>0,$D$31<>0),F110/$D$31,0)","v":0},"-",null,0,null,null,null,0,0,null,0,null,null,0,0,1,0,0,0,0]
[null,null,null,null,null,null,0,"-",null,0,null,null,null,0,0,null,0,null,null,0,0,1,0,0,0,0]
[null,null,null,null,null,null,0,"-",null,0,null,null,null,0,0,null,0,null,null,0,0,1,0,0,0,0]
[null,null,null,null,null,null,0,"-",null,0,null,null,null,0,0,null,0,null,null,0,0,1,0,0,0,0]
[null,null,null,null,null,null,0,"-",null,0,null,null,null,0,0,null,0,null,null,0,0,1,0,0,0,0]
[null,null,null,null,null,null,0,"-",null,0,null,null,null,0,0,null,0,null,null,0,0,1,0,0,0,0]
[null,null,null,null,null,null,0,"-",null,0,null,null,null,0,0,null,0,null,null,0,0,1,0,0,0,0]
[null,null,null,null,null,null,0,"-",null,0,null,null,null,0,0,null,0,null,null,0,0,1,0,0,0,0]
[null,null,null,null,null,null,0,"-",null,0,null,null,null,0,0,null,0,null,null,0,0,1,0,0,0,0]
[null,null,null,null,null,null,0,"-",null,0,null,null,null,0,0,null,0,null,null,0,0,1,0,0,0,0]
[null,null,null,null,null,null,0,"-",null,0,null,null,null,0,0,null,0,null,null,0,0,1,0,0,0,0]
[null,null,null,null,null,null,0,"-",null,0,null,null,null,0,0,null,0,null,null,0,0,1,0,0,0,0]
[null,null,null,null,null,null,0,"-",null,0,null,null,null,0,0,null,0,null,null,0,0,1,0,0,0,0]
[null,0.3,"Temporary Support to Adjacent Structures",null,"-",{"$f":"SUM(F124:F138)","v":0},{"$f":"IF(AND(F123<>0,$D$31<>0),F123/$D$31,0)","v":0},"-","-",{"$f":"SUM(J124:J138)","v":0},"-","-","-","-",{"$f":"SUM(O124:O138)","v":0},"-",{"$f":"SUM(Q124:Q138)","v":0},"-","-",{"$f":"IF(W123<>0,W123/($F$123+$O$123),0)","v":0},{"$f":"IF(Y123<>0,Y123/($F$123+$O$123),0)","v":0},1,{"$f":"SUM(W124:W138)","v":0},0,{"$f":"SUM(Y124:Y138)","v":0},0]
[null,0.3,"Temporary Support to Adjacent Structures",null,null,null,{"$f":"IF(AND(F124<>0,$D$31<>0),F124/$D$31,0)","v":0},"-",null,{"$f":"I124*F124","v":0},null,null,null,0,0,null,0,null,null,0,0,1,0,0,0,0]
[null,null,null,null,null,null,{"$f":"IF(AND(F125<>0,$D$31<>0),F125/$D$31,0)","v":0},"-",null,0,null,null,null,0,0,null,0,null,null,0,0,1,0,0,0,0]
[null,null,null,null,null,null,{"$f":"IF(AND(F126<>0,$D$31<>0),F126/$D$31,0)","v":0},"-",null,0,null,null,null,0,0,null,0,null,null,0,0,1,0,0,0,0]
[null,null,null,null,null,null,0,"-",null,0,null,null,null,0,0,null,0,null,null,0,0,1,0,0,0,0]
[null,null,null,null,null,null,0,"-",null,0,null,null,null,0,0,null,0,null,null,0,0,1,0,0,0,0]
[null,null,null,null,null,null,0,"-",null,0,null,null,null,0,0,null,0,null,null,0,0,1,0,0,0,0]
[null,null,null,null,null,null,0,"-",null,0,null,null,null,0,0,null,0,null,null,0,0,1,0,0,0,0]
[null,null,null,null,null,null,0,"-",null,0,null,null,null,0,0,null,0,null,null,0,0,1,0,0,0,0]
[null,null,null,null,null,null,0,"-",null,0,null,null,null,0,0,null,0,null,null,0,0,1,0,0,0,0]
[null,null,null,null,null,null,0,"-",null,0,null,null,null,0,0,null,0,null,null,0,0,1,0,0,0,0]
[null,null,null,null,null,null,0,"-",null,0,null,null,null,0,0,null,0,null,null,0,0,1,0,0,0,0]
[null,null,null,null,null,null,0,"-",null,0,null,null,null,0,0,null,0,null,null,0,0,1,0,0,0,0]
[null,null,null,null,null,null,0,"-",null,0,null,null,null,0,0,null,0,null,null,0,0,1,0,0,0,0]
[null,null,null,null,null,null,0,"-",null,0,null,null,null,0,0,null,0,null,null,0,0,1,0,0,0,0]
[null,null,null,null,null,null,0,"-",null,0,null,null,null,0,0,null,0,null,null,0,0,1,0,0,0,0]
[null,0.4,"Specialist Ground Works",null,"-",{"$f":"SUM(F140:F154)","v":0},{"$f":"IF(AND(F139<>0,$D$31<>0),F139/$D$31,0)","v":0},"-","-",{"$f":"SUM(J140:J154)","v":0},"-","-","-","-",{"$f":"SUM(O140:O154)","v":0},"-",{"$f":"SUM(Q140:Q154)","v":0},"-","-",{"$f":"IF(W139<>0,W139/($F$139+$O$139),0)","v":0},{"$f":"IF(Y139<>0,Y139/($F$139+$O$139),0)","v":0},1,{"$f":"SUM(W140:W154)","v":0},0,{"$f":"SUM(Y140:Y154)","v":0},0]
[null,0.4,"Specialist Ground Works",null,null,null,{"$f":"IF(AND(F140<>0,$D$31<>0),F140/$D$31,0)","v":0},"-",null,{"$f":"I140*F140","v":0},null,null,null,0,0,null,0,null,null,0,0,1,0,0,0,0]
[null,null,null,null,null,null,{"$f":"IF(AND(F141<>0,$D$31<>0),F141/$D$31,0)","v":0},"-",null,0,null,null,null,0,0,null,0,null,null,0,0,1,0,0,0,0]
[null,null,null,null,null,null,{"$f":"IF(AND(F142<>0,$D$31<>0),F142/$D$31,0)","v":0},"-",null,0,null,null,null,0,0,null,0,null,null,0,0,1,0,0,0,0]
[null,null,null,null,null,null,0,"-",null,0,null,null,null,0,0,null,0,null,null,0,0,1,0,0,0,0]
[null,null,null,null,null,null,0,"-",null,0,null,null,null,0,0,null,0,null,null,0,0,1,0,0,0,0]
[null,null,null,null,null,null,0,"-",null,0,null,null,null,0,0,null,0,null,null,0,0,1,0,0,0,0]
[null,null,null,null,null,null,0,"-",null,0,null,null,null,0,0,null,0,null,null,0,0,1,0,0,0,0]
[null,null,null,null,null,null,0,"-",null,0,null,null,null,0,0,null,0,null,null,0,0,1,0,0,0,0]
[null,null,null,null,null,null,0,"-",null,0,null,null,null,0,0,null,0,null,null,0,0,1,0,0,0,0]
[null,null,null,null,null,null,0,"-",null,0,null,null,null,0,0,null,0,null,null,0,0,1,0,0,0,0]
[null,null,null,null,null,null,0,"-",null,0,null,null,null,0,0,null,0,null,null,0,0,1,0,0,0,0]
[null,null,null,null,null,null,0,"-",null,0,null,null,null,0,0,null,0,null,null,0,0,1,0,0,0,0]
[null,null,null,null,null,null,0,"-",null,0,null,null,null,0,0,null,0,null,null,0,0,1,0,0,0,0]
[null,null,null,null,null,null,0,"-",null,0,null,null,null,0,0,null,0,null,null,0,0,1,0,0,0,0]
[null,null,null,null,null,null,0,"-",null,0,null,null,null,0,0,null,0,null,null,0,0,1,0,0,0,0]
[null,1,"Substructure",null,"-",{"$f":"SUM(F156:F175)","v":0},{"$f":"IF(AND(F155<>0,$D$31<>0),F155/$D$31,0)","v":0},{"$f":"SUMPRODUCT((C91:D454=\"Substructure\")*G91:G454)","v":0},"-",{"$f":"SUM(J156:J175)","v":0},"-","-","-","-",{"$f":"SUM(O156:O175)","v":0},"-",{"$f":"SUM(Q156:Q175)","v":0},"-","-",{"$f":"IF(W155<>0,W155/($F$155+$O$155),0)","v":0},{"$f":"IF(Y155<>0,Y155/($F$155+$O$155),0)","v":0},1,{"$f":"SUM(W156:W175)","v":0},0,{"$f":"SUM(Y156:Y175)","v":0},0]
[null,1,"Substructure",null,null,null,{"$f":"IF(AND(F156<>0,$D$31<>0),F156/$D$31,0)","v":0},"-",null,{"$f":"I156*F156","v":0},null,null,null,0,0,null,0,null,null,0,0,1,0,0,0,0]
[null,null,null,null,null,null,{"$f":"IF(AND(F157<>0,$D$31<>0),F157/$D$31,0)","v":0},"-",null,0,null,null,null,{"$f":"IF(M157<>0,INT(60/M157),0)","v":0},{"$f":"N157*I157","v":0},null,{"$f":"P157*M157","v":0},null,null,0,0,{"$f":"1-T157-U157","v":1},{"$f":"T157*(F157+O157)","v":0},{"$f":"IF(AND(W157<>0,$D$31<>0),W157/$D$31,0)","v":0},{"$f":"U157*(F157+O157)","v":0},0]
[null,null,null,null,null,null,{"$f":"IF(AND(F158<>0,$D$31<>0),F158/$D$31,0)","v":0},"-",null,0,null,null,null,0,0,null,0,null,null,0,0,1,0,0,0,0]
[null,null,null,null,null,null,0,"-",null,0,null,null,null,0,0,null,0,null,null,0,0,1,0,0,0,0]
[null,null,null,null,null,null,0,"-",null,0,null,null,null,0,0,null,0,null,null,0,0,1,0,0,0,0]
[null,null,null,null,null,null,0,"-",null,0,null,null,null,0,0,null,0,null,null,0,0,1,0,0,0,0]
[null,null,null,null,null,null,0,"-",null,0,null,null,null,0,0,null,0,null,null,0,0,1,0,0,0,0]
[null,null,null,null,null,null,0,"-",null,0,null,null,null,0,0,null,0,null,null,0,0,1,0,0,0,0]
[null,null,null,null,null,null,0,"-",null,0,null,null,null,0,0,null,0,null,null,0,0,1,0,0,0,0]
[null,null,null,null,null,null,0,"-",null,0,null,null,null,0,0,null,0,null,null,0,0,1,0,0,0,0]
[null,null,null,null,null,null,0,"-",null,0,null,null,null,0,0,null,0,null,null,0,0,1,0,0,0,0]
[null,null,null,null,null,null,0,"-",null,0,null,null,null,0,0,null,0,null,null,0,0,1,0,0,0,0]
[null,null,null,null,null,null,0,"-",null,0,null,null,null,0,0,null,0,null,null,0,0,1,0,0,0,0]
[null,null,null,null,null,null,0,"-",null,0,null,null,null,0,0,null,0,null,null,0,0,1,0,0,0,0]
[null,null,null,null,null,null,{"$f":"IF(AND(F170<>0,$D$31<>0),F170/$D$31,0)","v":0},"-",null,0,null,null,null,0,0,null,0,null,null,0,0,1,0,0,0,0]
[null,null,null,null,null,null,{"$f":"IF(AND(F171<>0,$D$31<>0),F171/$D$31,0)","v":0},"-",null,0,null,null,null,0,0,null,0,null,null,0,0,1,0,0,0,0]
[null,null,null,null,null,null,{"$f":"IF(AND(F172<>0,$D$31<>0),F172/$D$31,0)","v":0},"-",null,0,null,null,null,0,0,null,0,null,null,0,0,1,0,0,0,0]
[null,null,null,null,null,null,0,"-",null,0,null,null,null,0,0,null,0,null,null,0,0,1,0,0,0,0]
[null,null,null,null,null,null,0,"-",null,0,null,null,null,0,0,null,0,null,null,0,0,1,0,0,0,0]
[null,null,null,null,null,null,{"$f":"IF(AND(F175<>0,$D$31<>0),F175/$D$31,0)","v":0},"-",null,0,null,null,null,0,0,null,0,null,null,0,0,1,0,0,0,0]
[null,2.1,"Superstructure: Frame",null,"-",{"$f":"SUM(F177:F196)","v":0},{"$f":"IF(AND(F176<>0,$D$31<>0),F176/$D$31,0)","v":0},{"$f":"SUMPRODUCT((C91:D454=\"Superstructure: Frame\")*G91:G454)","v":0},"-",{"$f":"SUM(J177:J196)","v":0},"-","-","-","-",{"$f":"SUM(O177:O196)","v":0},"-",{"$f":"SUM(Q177:Q196)","v":0},"-","-",{"$f":"IF(W176<>0,W176/($F$176+$O$176),0)","v":0},{"$f":"IF(Y176<>0,Y176/($F$176+$O$176),0)","v":0},1,{"$f":"SUM(W177:W196)","v":0},0,{"$f":"SUM(Y177:Y196)","v":0},0]
[null,2.1,"Superstructure: Frame",null,null,null,{"$f":"IF(AND(F177<>0,$D$31<>0),F177/$D$31,0)","v":0},"-",null,{"$f":"I177*F177","v":0},null,null,null,0,0,null,0,null,null,0,0,1,0,0,0,0]
[null,null,null,null,null,null,{"$f":"IF(AND(F178<>0,$D$31<>0),F178/$D$31,0)","v":0},"-",null,0,null,null,null,0,0,null,0,null,null,0,0,1,0,0,0,0]
[null,null,null,null,null,null,{"$f":"IF(AND(F179<>0,$D$31<>0),F179/$D$31,0)","v":0},"-",null,0,null,null,null,0,0,null,0,null,null,0,0,1,0,0,0,0]
[null,null,null,null,null,null,0,"-",null,0,null,null,null,0,0,null,0,null,null,0,0,1,0,0,0,0]
[null,null,null,null,null,null,0,"-",null,0,null,null,null,0,0,null,0,null,null,0,0,1,0,0,0,0]
[null,null,null,null,null,null,0,"-",null,0,null,null,null,0,0,null,0,null,null,0,0,1,0,0,0,0]
[null,null,null,null,null,null,0,"-",null,0,null,null,null,0,0,null,0,null,null,0,0,1,0,0,0,0]
[null,null,null,null,null,null,0,"-",null,0,null,null,null,0,0,null,0,null,null,0,0,1,0,0,0,0]
[null,null,null,null,null,null,0,"-",null,0,null,null,null,0,0,null,0,null,null,0,0,1,0,0,0,0]
[null,null,null,null,null,null,0,"-",null,0,null,null,null,0,0,null,0,null,null,0,0,1,0,0,0,0]
[null,null,null,null,null,null,0,"-",null,0,null,null,null,0,0,null,0,null,null,0,0,1,0,0,0,0]
[null,null,null,null,null,null,0,"-",null,0,null,null,null,0,0,null,0,null,null,0,0,1,0,0,0,0]
[null,null,null,null,null,null,0,"-",null,0,null,null,null,0,0,null,0,null,null,0,0,1,0,0,0,0]
[null,null,null,null,null,null,0,"-",null,0,null,null,null,0,0,null,0,null,null,0,0,1,0,0,0,0]
[null,null,null,null,null,null,{"$f":"IF(AND(F191<>0,$D$31<>0),F191/$D$31,0)","v":0},"-",null,0,null,null,null,0,0,null,0,null,null,0,0,1,0,0,0,0]
[null,null,null,null,null,null,{"$f":"IF(AND(F192<>0,$D$31<>0),F192/$D$31,0)","v":0},"-",null,0,null,null,null,0,0,null,0,null,null,0,0,1,0,0,0,0]
[null,null,null,null,null,null,{"$f":"IF(AND(F193<>0,$D$31<>0),F193/$D$31,0)","v":0},"-",null,0,null,null,null,0,0,null,0,null,null,0,0,1,0,0,0,0]
[null,null,null,null,null,null,{"$f":"IF(AND(F194<>0,$D$31<>0),F194/$D$31,0)","v":0},"-",null,0,null,null,null,0,0,null,0,null,null,0,0,1,0,0,0,0]
[null,null,null,null,null,null,0,"-",null,0,null,null,null,0,0,null,0,null,null,0,0,1,0,0,0,0]
[null,null,null,null,null,null,0,"-",null,0,null,null,null,0,0,null,0,null,null,0,0,1,0,0,0,0]
[null,2.2000000000000002,"Superstructure: Upper Floors",null,"-",{"$f":"SUM(F198:F217)","v":0},{"$f":"IF(AND(F197<>0,$D$31<>0),F197/$D$31,0)","v":0},{"$f":"SUMPRODUCT((C176:D459=\"Superstructure: Upper Floors\")*G176:G459)","v":0},"-",{"$f":"SUM(J198:J217)","v":0},"-","-","-","-",{"$f":"SUM(O198:O217)","v":0},"-",{"$f":"SUM(Q198:Q217)","v":0},"-","-",{"$f":"IF(W197<>0,W197/($F$197+$O$197),0)","v":0},{"$f":"IF(Y197<>0,Y197/($F$197+$O$197),0)","v":0},1,{"$f":"SUM(W198:W217)","v":0},0,{"$f":"SUM(Y198:Y217)","v":0},0]
[null,2.2000000000000002,"Superstructure: Upper Floors",null,null,null,{"$f":"IF(AND(F198<>0,$D$31<>0),F198/$D$31,0)","v":0},"-",null,{"$f":"I198*F198","v":0},null,null,null,0,0,null,0,null,null,0,0,1,0,0,0,0]
[null,null,null,null,null,null,{"$f":"IF(AND(F199<>0,$D$31<>0),F199/$D$31,0)","v":0},"-",null,0,null,null,null,0,0,null,0,null,null,0,0,1,0,0,0,0]
[null,null,null,null,null,null,{"$f":"IF(AND(F200<>0,$D$31<>0),F200/$D$31,0)","v":0},"-",null,0,null,null,null,0,0,null,0,null,null,0,0,1,0,0,0,0]
[null,null,null,null,null,null,0,"-",null,0,null,null,null,0,0,null,0,null,null,0,0,1,0,0,0,0]
[null,null,null,null,null,null,0,"-",null,0,null,null,null,0,0,null,0,null,null,0,0,1,0,0,0,0]
[null,null,null,null,null,null,0,"-",null,0,null,null,null,0,0,null,0,null,null,0,0,1,0,0,0,0]
[null,null,null,null,null,null,0,"-",null,0,null,null,null,0,0,null,0,null,null,0,0,1,0,0,0,0]
[null,null,null,null,null,null,0,"-",null,0,null,null,null,0,0,null,0,null,null,0,0,1,0,0,0,0]
[null,null,null,null,null,null,0,"-",null,0,null,null,null,0,0,null,0,null,null,0,0,1,0,0,0,0]
[null,null,null,null,null,null,0,"-",null,0,null,null,null,0,0,null,0,null,null,0,0,1,0,0,0,0]
[null,null,null,null,null,null,0,"-",null,0,null,null,null,0,0,null,0,null,null,0,0,1,0,0,0,0]
[null,null,null,null,null,null,0,"-",null,0,null,null,null,0,0,null,0,null,null,0,0,1,0,0,0,0]
[null,null,null,null,null,null,0,"-",null,0,null,null,null,0,0,null,0,null,null,0,0,1,0,0,0,0]
[null,null,null,null,null,null,0,"-",null,0,null,null,null,0,0,null,0,null,null,0,0,1,0,0,0,0]
[null,null,null,null,null,null,{"$f":"IF(AND(F212<>0,$D$31<>0),F212/$D$31,0)","v":0},"-",null,0,null,null,null,0,0,null,0,null,null,0,0,1,0,0,0,0]
[null,null,null,null,null,null,{"$f":"IF(AND(F213<>0,$D$31<>0),F213/$D$31,0)","v":0},"-",null,0,null,null,null,0,0,null,0,null,null,0,0,1,0,0,0,0]
[null,null,null,null,null,null,{"$f":"IF(AND(F214<>0,$D$31<>0),F214/$D$31,0)","v":0},"-",null,0,null,null,null,0,0,null,0,null,null,0,0,1,0,0,0,0]
[null,null,null,null,null,null,{"$f":"IF(AND(F215<>0,$D$31<>0),F215/$D$31,0)","v":0},"-",null,0,null,null,null,0,0,null,0,null,null,0,0,1,0,0,0,0]
[null,null,null,null,null,null,0,"-",null,0,null,null,null,0,0,null,0,null,null,0,0,1,0,0,0,0]
[null,null,null,null,null,null,0,"-",null,{"$f":"I217*F217","v":0},null,null,null,0,0,null,0,null,null,0,0,1,0,0,0,0]
[null,2.2999999999999998,"Superstructure: Roof",null,"-",{"$f":"SUM(F219:F238)","v":0},{"$f":"IF(AND(F218<>0,$D$31<>0),F218/$D$31,0)","v":0},{"$f":"SUMPRODUCT((C91:D454=\"Superstructure: Roof\")*G91:G454)","v":0},"-",{"$f":"SUM(J219:J238)","v":0},"-","-","-","-",{"$f":"SUM(O219:O238)","v":0},"-",{"$f":"SUM(Q219:Q238)","v":0},"-","-",{"$f":"IF(W218<>0,W218/($F$218+$O$218),0)","v":0},{"$f":"IF(Y218<>0,Y218/($F$218+$O$218),0)","v":0},1,{"$f":"SUM(W219:W238)","v":0},0,{"$f":"SUM(Y219:Y238)","v":0},0]
[null,2.2999999999999998,"Superstructure: Roof",null,null,null,{"$f":"IF(AND(F219<>0,$D$31<>0),F219/$D$31,0)","v":0},"-",null,{"$f":"I219*F219","v":0},null,null,null,0,0,null,0,null,null,0,0,1,0,0,0,0]
[null,null,null,null,null,null,{"$f":"IF(AND(F220<>0,$D$31<>0),F220/$D$31,0)","v":0},"-",null,0,null,null,null,0,0,null,0,null,null,0,0,1,0,0,0,0]
[null,null,null,null,null,null,{"$f":"IF(AND(F221<>0,$D$31<>0),F221/$D$31,0)","v":0},"-",null,0,null,null,null,{"$f":"IF(M221<>0,INT(60/M221),0)","v":0},{"$f":"N221*I221","v":0},null,{"$f":"P221*M221","v":0},null,null,0,0,{"$f":"1-T221-U221","v":1},{"$f":"T221*(F221+O221)","v":0},{"$f":"IF(AND(W221<>0,$D$31<>0),W221/$D$31,0)","v":0},{"$f":"U221*(F221+O221)","v":0},0]
[null,null,null,null,null,null,0,"-",null,0,null,null,null,0,0,null,0,null,null,0,0,1,0,0,0,0]
[null,null,null,null,null,null,0,"-",null,0,null,null,null,0,0,null,0,null,null,0,0,1,0,0,0,0]
[null,null,null,null,null,null,0,"-",null,0,null,null,null,0,0,null,0,null,null,0,0,1,0,0,0,0]
[null,null,null,null,null,null,0,"-",null,0,null,null,null,0,0,null,0,null,null,0,0,1,0,0,0,0]
[null,null,null,null,null,null,0,"-",null,0,null,null,null,0,0,null,0,null,null,0,0,1,0,0,0,0]
[null,null,null,null,null,null,0,"-",null,0,null,null,null,0,0,null,0,null,null,0,0,1,0,0,0,0]
[null,null,null,null,null,null,0,"-",null,0,null,null,null,0,0,null,0,null,null,0,0,1,0,0,0,0]
[null,null,null,null,null,null,0,"-",null,0,null,null,null,0,0,null,0,null,null,0,0,1,0,0,0,0]
[null,null,null,null,null,null,0,"-",null,0,null,null,null,0,0,null,0,null,null,0,0,1,0,0,0,0]
[null,null,null,null,null,null,0,"-",null,0,null,null,null,0,0,null,0,null,null,0,0,1,0,0,0,0]
[null,null,null,null,null,null,0,"-",null,0,null,null,null,0,0,null,0,null,null,0,0,1,0,0,0,0]
[null,null,null,null,null,null,{"$f":"IF(AND(F233<>0,$D$31<>0),F233/$D$31,0)","v":0},"-",null,0,null,null,null,0,0,null,0,null,null,0,0,1,0,0,0,0]
[null,null,null,null,null,null,{"$f":"IF(AND(F234<>0,$D$31<>0),F234/$D$31,0)","v":0},"-",null,0,null,null,null,0,0,null,0,null,null,0,0,1,0,0,0,0]
[null,null,null,null,null,null,{"$f":"IF(AND(F235<>0,$D$31<>0),F235/$D$31,0)","v":0},"-",null,0,null,null,null,0,0,null,0,null,null,0,0,1,0,0,0,0]
[null,null,null,null,null,null,{"$f":"IF(AND(F236<>0,$D$31<>0),F236/$D$31,0)","v":0},"-",null,0,null,null,null,0,0,null,0,null,null,0,0,1,0,0,0,0]
[null,null,null,null,null,null,0,"-",null,0,null,null,null,0,0,null,0,null,null,0,0,1,0,0,0,0]
[null,null,null,null,null,null,0,"-",null,0,null,null,null,0,0,null,0,null,null,0,0,1,0,0,0,0]
[null,2.4,"Superstructure: Stairs and Ramps",null,"-",{"$f":"SUM(F240:F254)","v":0},{"$f":"IF(AND(F239<>0,$D$31<>0),F239/$D$31,0)","v":0},"-","-",{"$f":"SUM(J240:J254)","v":0},"-","-","-","-",{"$f":"SUM(O240:O254)","v":0},"-",{"$f":"SUM(Q240:Q254)","v":0},"-","-",{"$f":"IF(W239<>0,W239/($F$239+$O$239),0)","v":0},{"$f":"IF(Y239<>0,Y239/($F$239+$O$239),0)","v":0},1,{"$f":"SUM(W240:W254)","v":0},0,{"$f":"SUM(Y240:Y254)","v":0},0]
[null,2.4,"Superstructure: Stairs and Ramps",null,null,null,{"$f":"IF(AND(F240<>0,$D$31<>0),F240/$D$31,0)","v":0},"-",null,{"$f":"I240*F240","v":0},null,null,null,0,0,null,0,null,null,0,0,1,0,0,0,0]
[null,null,null,null,null,null,{"$f":"IF(AND(F241<>0,$D$31<>0),F241/$D$31,0)","v":0},"-",null,0,null,null,null,0,0,null,0,null,null,0,0,1,0,0,0,0]
[null,null,null,null,null,null,{"$f":"IF(AND(F242<>0,$D$31<>0),F242/$D$31,0)","v":0},"-",null,0,null,null,null,0,0,null,0,null,null,0,0,1,0,0,0,0]
[null,null,null,null,null,null,0,"-",null,0,null,null,null,0,0,null,0,null,null,0,0,1,0,0,0,0]
[null,null,null,null,null,null,0,"-",null,0,null,null,null,0,0,null,0,null,null,0,0,1,0,0,0,0]
[null,null,null,null,null,null,0,"-",null,0,null,null,null,0,0,null,0,null,null,0,0,1,0,0,0,0]
[null,null,null,null,null,null,0,"-",null,0,null,null,null,0,0,null,0,null,null,0,0,1,0,0,0,0]
[null,null,null,null,null,null,0,"-",null,0,null,null,null,0,0,null,0,null,null,0,0,1,0,0,0,0]
[null,null,null,null,null,null,0,"-",null,0,null,null,null,0,0,null,0,null,null,0,0,1,0,0,0,0]
[null,null,null,null,null,null,0,"-",null,0,null,null,null,0,0,null,0,null,null,0,0,1,0,0,0,0]
[null,null,null,null,null,null,0,"-",null,0,null,null,null,0,0,null,0,null,null,0,0,1,0,0,0,0]
[null,null,null,null,null,null,0,"-",null,0,null,null,null,0,0,null,0,null,null,0,0,1,0,0,0,0]
[null,null,null,null,null,null,0,"-",null,0,null,null,null,0,0,null,0,null,null,0,0,1,0,0,0,0]
[null,null,null,null,null,null,0,"-",null,0,null,null,null,0,0,null,0,null,null,0,0,1,0,0,0,0]
[null,null,null,null,null,null,{"$f":"IF(AND(F254<>0,$D$31<>0),F254/$D$31,0)","v":0},"-",null,0,null,null,null,0,0,null,0,null,null,0,0,1,0,0,0,0]
[null,2.5,"Superstructure: External Walls",null,"-",{"$f":"SUM(F256:F275)","v":0},{"$f":"IF(AND(F255<>0,$D$31<>0),F255/$D$31,0)","v":0},{"$f":"SUMPRODUCT((C91:D454=\"Superstructure: External Walls\")*G91:G454)+SUMPRODUCT((C91:D454=\"Superstructure: Windows and External Doors\")*G91:G454)","v":0},"-",{"$f":"SUM(J256:J275)","v":0},"-","-","-","-",{"$f":"SUM(O256:O275)","v":0},"-",{"$f":"SUM(Q256:Q275)","v":0},"-","-",{"$f":"IF(W255<>0,W255/($F$255+$O$255),0)","v":0},{"$f":"IF(Y255<>0,Y255/($F$255+$O$255),0)","v":0},1,{"$f":"SUM(W256:W275)","v":0},0,{"$f":"SUM(Y256:Y275)","v":0},0]
[null,2.5,"Superstructure: External Walls",null,null,null,{"$f":"IF(AND(F256<>0,$D$31<>0),F256/$D$31,0)","v":0},"-",null,{"$f":"I256*F256","v":0},null,null,null,0,0,null,0,null,null,0,0,1,0,0,0,0]
[null,null,null,null,null,null,{"$f":"IF(AND(F257<>0,$D$31<>0),F257/$D$31,0)","v":0},"-",null,0,null,null,null,0,0,null,0,null,null,0,0,1,0,0,0,0]
[null,null,null,null,null,null,{"$f":"IF(AND(F258<>0,$D$31<>0),F258/$D$31,0)","v":0},"-",null,0,null,null,null,0,0,null,0,null,null,0,0,1,0,0,0,0]
[null,null,null,null,null,null,0,"-",null,0,null,null,null,0,0,null,0,null,null,0,0,1,0,0,0,0]
[null,null,null,null,null,null,0,"-",null,0,null,null,null,0,0,null,0,null,null,0,0,1,0,0,0,0]
[null,null,null,null,null,null,0,"-",null,0,null,null,null,0,0,null,0,null,null,0,0,1,0,0,0,0]
[null,null,null,null,null,null,0,"-",null,0,null,null,null,0,0,null,0,null,null,0,0,1,0,0,0,0]
[null,null,null,null,null,null,0,"-",null,0,null,null,null,0,0,null,0,null,null,0,0,1,0,0,0,0]
[null,null,null,null,null,null,0,"-",null,0,null,null,null,0,0,null,0,null,null,0,0,1,0,0,0,0]
[null,null,null,null,null,null,0,"-",null,0,null,null,null,0,0,null,0,null,null,0,0,1,0,0,0,0]
[null,null,null,null,null,null,0,"-",null,0,null,null,null,0,0,null,0,null,null,0,0,1,0,0,0,0]
[null,null,null,null,null,null,0,"-",null,0,null,null,null,0,0,null,0,null,null,0,0,1,0,0,0,0]
[null,null,null,null,null,null,0,"-",null,0,null,null,null,0,0,null,0,null,null,0,0,1,0,0,0,0]
[null,null,null,null,null,null,0,"-",null,0,null,null,null,0,0,null,0,null,null,0,0,1,0,0,0,0]
[null,null,null,null,null,null,{"$f":"IF(AND(F270<>0,$D$31<>0),F270/$D$31,0)","v":0},"-",null,0,null,null,null,0,0,null,0,null,null,0,0,1,0,0,0,0]
[null,null,null,null,null,null,{"$f":"IF(AND(F271<>0,$D$31<>0),F271/$D$31,0)","v":0},"-",null,0,null,null,null,0,0,null,0,null,null,0,0,1,0,0,0,0]
[null,null,null,null,null,null,{"$f":"IF(AND(F272<>0,$D$31<>0),F272/$D$31,0)","v":0},"-",null,0,null,null,null,0,0,null,0,null,null,0,0,1,0,0,0,0]
[null,null,null,null,null,null,{"$f":"IF(AND(F273<>0,$D$31<>0),F273/$D$31,0)","v":0},"-",null,0,null,null,null,0,0,null,0,null,null,0,0,1,0,0,0,0]
[null,null,null,null,null,null,0,"-",null,0,null,null,null,0,0,null,0,null,null,0,0,1,0,0,0,0]
[null,null,null,null,null,null,0,"-",null,0,null,null,null,0,0,null,0,null,null,0,0,1,0,0,0,0]
[null,2.6,"Superstructure: Windows and External Doors",null,"-",{"$f":"SUM(F277:F291)","v":0},{"$f":"IF(AND(F276<>0,$D$31<>0),F276/$D$31,0)","v":0},{"$f":"SUMPRODUCT((C91:D454=\"Superstructure: External Walls\")*G91:G454)+SUMPRODUCT((C91:D454=\"Superstructure: Windows and External Doors\")*G91:G454)","v":0},"-",{"$f":"SUM(J277:J291)","v":0},"-","-","-","-",{"$f":"SUM(O277:O291)","v":0},"-",{"$f":"SUM(Q277:Q291)","v":0},"-","-",{"$f":"IF(W276<>0,W276/($F$276+$O$276),0)","v":0},{"$f":"IF(Y276<>0,Y276/($F$276+$O$276),0)","v":0},1,{"$f":"SUM(W277:W291)","v":0},0,{"$f":"SUM(Y277:Y291)","v":0},0]
[null,2.6,"Superstructure: Windows and External Doors",null,null,null,{"$f":"IF(AND(F277<>0,$D$31<>0),F277/$D$31,0)","v":0},"-",null,0,null,null,null,0,0,null,0,null,null,0,0,1,0,0,0,0]
[null,null,null,null,null,null,{"$f":"IF(AND(F278<>0,$D$31<>0),F278/$D$31,0)","v":0},"-",null,0,null,null,null,0,0,null,0,null,null,0,0,1,0,0,0,0]
[null,null,null,null,null,null,{"$f":"IF(AND(F279<>0,$D$31<>0),F279/$D$31,0)","v":0},"-",null,0,null,null,null,0,0,null,0,null,null,0,0,1,0,0,0,0]
[null,null,null,null,null,null,0,"-",null,0,null,null,null,0,0,null,0,null,null,0,0,1,0,0,0,0]
[null,null,null,null,null,null,0,"-",null,0,null,null,null,0,0,null,0,null,null,0,0,1,0,0,0,0]
[null,null,null,null,null,null,0,"-",null,0,null,null,null,0,0,null,0,null,null,0,0,1,0,0,0,0]
[null,null,null,null,null,null,0,"-",null,0,null,null,null,0,0,null,0,null,null,0,0,1,0,0,0,0]
[null,null,null,null,null,null,0,"-",null,0,null,null,null,0,0,null,0,null,null,0,0,1,0,0,0,0]
[null,null,null,null,null,null,0,"-",null,0,null,null,null,{"$f":"IF(M285<>0,INT(60/M285),0)","v":0},{"$f":"N285*I285","v":0},null,{"$f":"P285*M285","v":0},null,null,0,0,{"$f":"1-T285-U285","v":1},{"$f":"T285*(F285+O285)","v":0},{"$f":"IF(AND(W285<>0,$D$31<>0),W285/$D$31,0)","v":0},{"$f":"U285*(F285+O285)","v":0},0]
[null,null,null,null,null,null,0,"-",null,0,null,null,null,0,0,null,0,null,null,0,0,1,0,0,0,0]
[null,null,null,null,null,null,0,"-",null,0,null,null,null,0,0,null,0,null,null,0,0,1,0,0,0,0]
[null,null,null,null,null,null,0,"-",null,0,null,null,null,0,0,null,0,null,null,0,0,1,0,0,0,0]
[null,null,null,null,null,null,0,"-",null,0,null,null,null,0,0,null,0,null,null,0,0,1,0,0,0,0]
[null,null,null,null,null,null,0,"-",null,0,null,null,null,0,0,null,0,null,null,0,0,1,0,0,0,0]
[null,null,null,null,null,null,{"$f":"IF(AND(F291<>0,$D$31<>0),F291/$D$31,0)","v":0},"-",null,0,null,null,null,0,0,null,0,null,null,0,0,1,0,0,0,0]
[null,2.7,"Superstructure: Internal Walls and Partitions",null,"-",{"$f":"SUM(F293:F312)","v":0},{"$f":"IF(AND(F292<>0,$D$31<>0),F292/$D$31,0)","v":0},{"$f":"SUMPRODUCT((C91:D454=\"Superstructure: Internal Doors\")*G91:G454)+SUMPRODUCT((C91:D454=\"Superstructure: Internal Walls and Partitions\")*G91:G454)","v":0},"-",{"$f":"SUM(J293:J312)","v":0},"-","-","-","-",{"$f":"SUM(O293:O312)","v":0},"-",{"$f":"SUM(Q293:Q312)","v":0},"-","-",{"$f":"IF(W292<>0,W292/($F$292+$O$292),0)","v":0},{"$f":"IF(Y292<>0,Y292/($F$292+$O$292),0)","v":0},1,{"$f":"SUM(W293:W312)","v":0},0,{"$f":"SUM(Y293:Y312)","v":0},0]
[null,2.7,"Superstructure: Internal Walls and Partitions",null,null,null,{"$f":"IF(AND(F293<>0,$D$31<>0),F293/$D$31,0)","v":0},"-",null,0,null,null,null,0,0,null,0,null,null,0,0,1,0,0,0,0]
[null,null,null,null,null,null,{"$f":"IF(AND(F294<>0,$D$31<>0),F294/$D$31,0)","v":0},"-",null,0,null,null,null,0,0,null,0,null,null,0,0,1,0,0,0,0]
[null,null,null,null,null,null,{"$f":"IF(AND(F295<>0,$D$31<>0),F295/$D$31,0)","v":0},"-",null,0,null,null,null,0,0,null,0,null,null,0,0,1,0,0,0,0]
[null,null,null,null,null,null,0,"-",null,0,null,null,null,0,0,null,0,null,null,0,0,1,0,0,0,0]
[null,null,null,null,null,null,0,"-",null,0,null,null,null,0,0,null,0,null,null,0,0,1,0,0,0,0]
[null,null,null,null,null,null,0,"-",null,0,null,null,null,0,0,null,0,null,null,0,0,1,0,0,0,0]
[null,null,null,null,null,null,0,"-",null,0,null,null,null,0,0,null,0,null,null,0,0,1,0,0,0,0]
[null,null,null,null,null,null,0,"-",null,0,null,null,null,0,0,null,0,null,null,0,0,1,0,0,0,0]
[null,null,null,null,null,null,0,"-",null,0,null,null,null,0,0,null,0,null,null,0,0,1,0,0,0,0]
[null,null,null,null,null,null,0,"-",null,0,null,null,null,0,0,null,0,null,null,0,0,1,0,0,0,0]
[null,null,null,null,null,null,0,"-",null,0,null,null,null,0,0,null,0,null,null,0,0,1,0,0,0,0]
[null,null,null,null,null,null,0,"-",null,0,null,null,null,0,0,null,0,null,null,0,0,1,0,0,0,0]
[null,null,null,null,null,null,0,"-",null,0,null,null,null,0,0,null,0,null,null,0,0,1,0,0,0,0]
[null,null,null,null,null,null,0,"-",null,0,null,null,null,0,0,null,0,null,null,0,0,1,0,0,0,0]
[null,null,null,null,null,null,{"$f":"IF(AND(F307<>0,$D$31<>0),F307/$D$31,0)","v":0},"-",null,0,null,null,null,0,0,null,0,null,null,0,0,1,0,0,0,0]
[null,null,null,null,null,null,{"$f":"IF(AND(F308<>0,$D$31<>0),F308/$D$31,0)","v":0},"-",null,0,null,null,null,0,0,null,0,null,null,0,0,1,0,0,0,0]
[null,null,null,null,null,null,{"$f":"IF(AND(F309<>0,$D$31<>0),F309/$D$31,0)","v":0},"-",null,0,null,null,null,0,0,null,0,null,null,0,0,1,0,0,0,0]
[null,null,null,null,null,null,{"$f":"IF(AND(F310<>0,$D$31<>0),F310/$D$31,0)","v":0},"-",null,0,null,null,null,0,0,null,0,null,null,0,0,1,0,0,0,0]
[null,null,null,null,null,null,0,"-",null,0,null,null,null,0,0,null,0,null,null,0,0,1,0,0,0,0]
[null,null,null,null,null,null,0,"-",null,0,null,null,null,0,0,null,0,null,null,0,0,1,0,0,0,0]
[null,2.8,"Superstructure: Internal Doors",null,"-",{"$f":"SUM(F314:F328)","v":0},{"$f":"IF(AND(F313<>0,$D$31<>0),F313/$D$31,0)","v":0},{"$f":"SUMPRODUCT((C91:D454=\"Superstructure: Internal Doors\")*G91:G454)+SUMPRODUCT((C91:D454=\"Superstructure: Internal Walls and Partitions\")*G91:G454)","v":0},"-",{"$f":"SUM(J314:J328)","v":0},"-","-","-","-",{"$f":"SUM(O314:O328)","v":0},"-",{"$f":"SUM(Q314:Q328)","v":0},"-","-",{"$f":"IF(W313<>0,W313/($F$313+$O$313),0)","v":0},{"$f":"IF(Y313<>0,Y313/($F$313+$O$313),0)","v":0},1,{"$f":"SUM(W314:W328)","v":0},0,{"$f":"SUM(Y314:Y328)","v":0},0]
[null,2.8,"Superstructure: Internal Doors",null,null,null,{"$f":"IF(AND(F314<>0,$D$31<>0),F314/$D$31,0)","v":0},"-",null,0,null,null,null,0,0,null,0,null,null,0,0,1,0,0,0,0]
[null,null,null,null,null,null,{"$f":"IF(AND(F315<>0,$D$31<>0),F315/$D$31,0)","v":0},"-",null,0,null,null,null,0,0,null,0,null,null,0,0,1,0,0,0,0]
[null,null,null,null,null,null,{"$f":"IF(AND(F316<>0,$D$31<>0),F316/$D$31,0)","v":0},"-",null,0,null,null,null,0,0,null,0,null,null,0,0,1,0,0,0,0]
[null,null,null,null,null,null,0,"-",null,0,null,null,null,0,0,null,0,null,null,0,0,1,0,0,0,0]
[null,null,null,null,null,null,0,"-",null,0,null,null,null,0,0,null,0,null,null,0,0,1,0,0,0,0]
[null,null,null,null,null,null,0,"-",null,0,null,null,null,0,0,null,0,null,null,0,0,1,0,0,0,0]
[null,null,null,null,null,null,0,"-",null,{"$f":"I320*F320","v":0},null,null,null,0,0,null,0,null,null,0,0,1,0,0,0,0]
[null,null,null,null,null,null,0,"-",null,0,null,null,null,0,0,null,0,null,null,0,0,1,0,0,0,0]
[null,null,null,null,null,null,0,"-",null,0,null,null,null,0,0,null,0,null,null,0,0,1,0,0,0,0]
[null,null,null,null,null,null,0,"-",null,0,null,null,null,0,0,null,0,null,null,0,0,1,0,0,0,0]
[null,null,null,null,null,null,0,"-",null,0,null,null,null,0,0,null,0,null,null,0,0,1,0,0,0,0]
[null,null,null,null,null,null,0,"-",null,0,null,null,null,0,0,null,0,null,null,0,0,1,0,0,0,0]
[null,null,null,null,null,null,0,"-",null,0,null,null,null,0,0,null,0,null,null,0,0,1,0,0,0,0]
[null,null,null,null,null,null,0,"-",null,0,null,null,null,0,0,null,0,null,null,0,0,1,0,0,0,0]
[null,null,null,null,null,null,{"$f":"IF(AND(F328<>0,$D$31<>0),F328/$D$31,0)","v":0},"-",null,0,null,null,null,0,0,null,0,null,null,0,0,1,0,0,0,0]
[null,3,"Finishes",null,"-",{"$f":"SUM(F330:F349)","v":0},{"$f":"IF(AND(F329<>0,$D$31<>0),F329/$D$31,0)","v":0},"-","-",{"$f":"SUM(J330:J349)","v":0},"-","-","-","-",{"$f":"SUM(O330:O349)","v":0},"-",{"$f":"SUM(Q330:Q349)","v":0},"-","-",{"$f":"IF(W329<>0,W329/($F$329+$O$329),0)","v":0},{"$f":"IF(Y329<>0,Y329/($F$329+$O$329),0)","v":0},1,{"$f":"SUM(W330:W349)","v":0},0,{"$f":"SUM(Y330:Y349)","v":0},0]
[null,3,"Finishes",null,null,null,{"$f":"IF(AND(F330<>0,$D$31<>0),F330/$D$31,0)","v":0},"-",null,0,null,null,null,0,0,null,0,null,null,0,0,1,0,0,0,0]
[null,null,null,null,null,null,{"$f":"IF(AND(F331<>0,$D$31<>0),F331/$D$31,0)","v":0},"-",null,0,null,null,null,0,0,null,0,null,null,0,0,1,0,0,0,0]
[null,null,null,null,null,null,{"$f":"IF(AND(F332<>0,$D$31<>0),F332/$D$31,0)","v":0},"-",null,0,null,null,null,0,0,null,0,null,null,0,0,1,0,0,0,0]
[null,null,null,null,null,null,0,"-",null,0,null,null,null,0,0,null,0,null,null,0,0,1,0,0,0,0]
[null,null,null,null,null,null,0,"-",null,0,null,null,null,0,0,null,0,null,null,0,0,1,0,0,0,0]
[null,null,null,null,null,null,0,"-",null,0,null,null,null,0,0,null,0,null,null,0,0,1,0,0,0,0]
[null,null,null,null,null,null,0,"-",null,0,null,null,null,0,0,null,0,null,null,0,0,1,0,0,0,0]
[null,null,null,null,null,null,0,"-",null,0,null,null,null,0,0,null,0,null,null,0,0,1,0,0,0,0]
[null,null,null,null,null,null,0,"-",null,0,null,null,null,0,0,null,0,null,null,0,0,1,0,0,0,0]
[null,null,null,null,null,null,0,"-",null,0,null,null,null,0,0,null,0,null,null,0,0,1,0,0,0,0]
[null,null,null,null,null,null,0,"-",null,0,null,null,null,0,0,null,0,null,null,0,0,1,0,0,0,0]
[null,null,null,null,null,null,0,"-",null,0,null,null,null,0,0,null,0,null,null,0,0,1,0,0,0,0]
[null,null,null,null,null,null,0,"-",null,0,null,null,null,0,0,null,0,null,null,0,0,1,0,0,0,0]
[null,null,null,null,null,null,0,"-",null,0,null,null,null,0,0,null,0,null,null,0,0,1,0,0,0,0]
[null,null,null,null,null,null,{"$f":"IF(AND(F344<>0,$D$31<>0),F344/$D$31,0)","v":0},"-",null,0,null,null,null,0,0,null,0,null,null,0,0,1,0,0,0,0]
[null,null,null,null,null,null,{"$f":"IF(AND(F345<>0,$D$31<>0),F345/$D$31,0)","v":0},"-",null,0,null,null,null,0,0,null,0,null,null,0,0,1,0,0,0,0]
[null,null,null,null,null,null,{"$f":"IF(AND(F346<>0,$D$31<>0),F346/$D$31,0)","v":0},"-",null,0,null,null,null,0,0,null,0,null,null,0,0,1,0,0,0,0]
[null,null,null,null,null,null,{"$f":"IF(AND(F347<>0,$D$31<>0),F347/$D$31,0)","v":0},"-",null,0,null,null,null,0,0,null,0,null,null,0,0,1,0,0,0,0]
[null,null,null,null,null,null,0,"-",null,0,null,null,null,0,0,null,0,null,null,0,0,1,0,0,0,0]
[null,null,null,null,null,null,0,"-",null,0,null,null,null,{"$f":"IF(M349<>0,INT(60/M349),0)","v":0},{"$f":"N349*I349","v":0},null,{"$f":"P349*M349","v":0},null,null,0,0,{"$f":"1-T349-U349","v":1},{"$f":"T349*(F349+O349)","v":0},{"$f":"IF(AND(W349<>0,$D$31<>0),W349/$D$31,0)","v":0},{"$f":"U349*(F349+O349)","v":0},0]
[null,4,"Fittings, furnishings & equipment (FFE)",null,"-",{"$f":"SUM(F351:F370)","v":0},{"$f":"IF(AND(F350<>0,$D$31<>0),F350/$D$31,0)","v":0},"-","-",{"$f":"SUM(J351:J370)","v":0},"-","-","-","-",{"$f":"SUM(O351:O370)","v":0},"-",{"$f":"SUM(Q351:Q370)","v":0},"-","-",{"$f":"IF(W350<>0,W350/($F$350+$O$350),0)","v":0},{"$f":"IF(Y350<>0,Y350/($F$350+$O$350),0)","v":0},1,{"$f":"SUM(W351:W370)","v":0},0,{"$f":"SUM(Y351:Y370)","v":0},0]
[null,4,"Fittings, furnishings & equipment (FFE)",null,null,null,{"$f":"IF(AND(F351<>0,$D$31<>0),F351/$D$31,0)","v":0},"-",null,0,null,null,null,0,0,null,0,null,null,0,0,1,0,0,0,0]
[null,null,null,null,null,null,{"$f":"IF(AND(F352<>0,$D$31<>0),F352/$D$31,0)","v":0},"-",null,0,null,null,null,0,0,null,0,null,null,0,0,1,0,0,0,0]
[null,null,null,null,null,null,{"$f":"IF(AND(F353<>0,$D$31<>0),F353/$D$31,0)","v":0},"-",null,0,null,null,null,0,0,null,0,null,null,0,0,1,0,0,0,0]
[null,null,null,null,null,null,0,"-",null,0,null,null,null,0,0,null,0,null,null,0,0,1,0,0,0,0]
[null,null,null,null,null,null,0,"-",null,0,null,null,null,0,0,null,0,null,null,0,0,1,0,0,0,0]
[null,null,null,null,null,null,0,"-",null,0,null,null,null,0,0,null,0,null,null,0,0,1,0,0,0,0]
[null,null,null,null,null,null,0,"-",null,0,null,null,null,0,0,null,0,null,null,0,0,1,0,0,0,0]
[null,null,null,null,null,null,0,"-",null,0,null,null,null,0,0,null,0,null,null,0,0,1,0,0,0,0]
[null,null,null,null,null,null,0,"-",null,0,null,null,null,0,0,null,0,null,null,0,0,1,0,0,0,0]
[null,null,null,null,null,null,0,"-",null,0,null,null,null,0,0,null,0,null,null,0,0,1,0,0,0,0]
[null,null,null,null,null,null,0,"-",null,0,null,null,null,0,0,null,0,null,null,0,0,1,0,0,0,0]
[null,null,null,null,null,null,0,"-",null,0,null,null,null,0,0,null,0,null,null,0,0,1,0,0,0,0]
[null,null,null,null,null,null,0,"-",null,0,null,null,null,0,0,null,0,null,null,0,0,1,0,0,0,0]
[null,null,null,null,null,null,0,"-",null,0,null,null,null,0,0,null,0,null,null,0,0,1,0,0,0,0]
[null,null,null,null,null,null,{"$f":"IF(AND(F365<>0,$D$31<>0),F365/$D$31,0)","v":0},"-",null,0,null,null,null,0,0,null,0,null,null,0,0,1,0,0,0,0]
[null,null,null,null,null,null,{"$f":"IF(AND(F366<>0,$D$31<>0),F366/$D$31,0)","v":0},"-",null,0,null,null,null,0,0,null,0,null,null,0,0,1,0,0,0,0]
[null,null,null,null,null,null,{"$f":"IF(AND(F367<>0,$D$31<>0),F367/$D$31,0)","v":0},"-",null,0,null,null,null,0,0,null,0,null,null,0,0,1,0,0,0,0]
[null,null,null,null,null,null,{"$f":"IF(AND(F368<>0,$D$31<>0),F368/$D$31,0)","v":0},"-",null,0,null,null,null,0,0,null,0,null,null,0,0,1,0,0,0,0]
[null,null,null,null,null,null,0,"-",null,0,null,null,null,0,0,null,0,null,null,0,0,1,0,0,0,0]
[null,null,null,null,null,null,0,"-",null,0,null,null,null,0,0,null,0,null,null,0,0,1,0,0,0,0]
[null,5,"Services (MEP)",null,"-",{"$f":"SUM(F372:F391)","v":0},{"$f":"IF(AND(F371<>0,$D$31<>0),F371/$D$31,0)","v":0},"-","-",{"$f":"SUM(J372:J391)","v":0},"-","-","-","-",{"$f":"SUM(O372:O391)","v":0},"-",{"$f":"SUM(Q372:Q391)","v":0},"-","-",{"$f":"IF(W371<>0,W371/($F$371+$O$371),0)","v":0},{"$f":"IF(Y371<>0,Y371/($F$371+$O$371),0)","v":0},1,{"$f":"SUM(W372:W391)","v":0},0,{"$f":"SUM(Y372:Y391)","v":0},0]
[null,5,"Services (MEP)",null,null,null,{"$f":"IF(AND(F372<>0,$D$31<>0),F372/$D$31,0)","v":0},"-",null,0,null,null,null,0,0,null,0,null,null,0,0,1,0,0,0,0]
[null,null,null,null,null,null,{"$f":"IF(AND(F373<>0,$D$31<>0),F373/$D$31,0)","v":0},"-",null,0,null,null,null,0,0,null,0,null,null,0,0,1,0,0,0,0]
[null,null,null,null,null,null,{"$f":"IF(AND(F374<>0,$D$31<>0),F374/$D$31,0)","v":0},"-",null,0,null,null,null,0,0,null,0,null,null,0,0,1,0,0,0,0]
[null,null,null,null,null,null,0,"-",null,0,null,null,null,0,0,null,0,null,null,0,0,1,0,0,0,0]
[null,null,null,null,null,null,0,"-",null,0,null,null,null,0,0,null,0,null,null,0,0,1,0,0,0,0]
[null,null,null,null,null,null,0,"-",null,0,null,null,null,0,0,null,0,null,null,0,0,1,0,0,0,0]
[null,null,null,null,null,null,0,"-",null,0,null,null,null,0,0,null,0,null,null,0,0,1,0,0,0,0]
[null,null,null,null,null,null,0,"-",null,0,null,null,null,0,0,null,0,null,null,0,0,1,0,0,0,0]
[null,null,null,null,null,null,0,"-",null,0,null,null,null,0,0,null,0,null,null,0,0,1,0,0,0,0]
[null,null,null,null,null,null,0,"-",null,0,null,null,null,0,0,null,0,null,null,0,0,1,0,0,0,0]
[null,null,null,null,null,null,0,"-",null,0,null,null,null,0,0,null,0,null,null,0,0,1,0,0,0,0]
[null,null,null,null,null,null,0,"-",null,0,null,null,null,0,0,null,0,null,null,0,0,1,0,0,0,0]
[null,null,null,null,null,null,0,"-",null,{"$f":"I384*F384","v":0},null,null,null,0,0,null,0,null,null,0,0,1,0,0,0,0]
[null,null,null,null,null,null,0,"-",null,0,null,null,null,0,0,null,0,null,null,0,0,1,0,0,0,0]
[null,null,null,null,null,null,{"$f":"IF(AND(F386<>0,$D$31<>0),F386/$D$31,0)","v":0},"-",null,0,null,null,null,0,0,null,0,null,null,0,0,1,0,0,0,0]
[null,null,null,null,null,null,{"$f":"IF(AND(F387<>0,$D$31<>0),F387/$D$31,0)","v":0},"-",null,0,null,null,null,0,0,null,0,null,null,0,0,1,0,0,0,0]
[null,null,null,null,null,null,{"$f":"IF(AND(F388<>0,$D$31<>0),F388/$D$31,0)","v":0},"-",null,0,null,null,null,0,0,null,0,null,null,0,0,1,0,0,0,0]
[null,null,null,null,null,null,{"$f":"IF(AND(F389<>0,$D$31<>0),F389/$D$31,0)","v":0},"-",null,0,null,null,null,0,0,null,0,null,null,0,0,1,0,0,0,0]
[null,null,null,null,null,null,0,"-",null,0,null,null,null,0,0,null,0,null,null,0,0,1,0,0,0,0]
[null,null,null,null,null,null,0,"-",null,0,null,null,null,0,0,null,0,null,null,0,0,1,0,0,0,0]
[null,6,"Prefabricated Buildings and Building Units",null,"-",{"$f":"SUM(F393:F412)","v":0},{"$f":"IF(AND(F392<>0,$D$31<>0),F392/$D$31,0)","v":0},"-","-",{"$f":"SUM(J393:J412)","v":0},"-","-","-","-",{"$f":"SUM(O393:O412)","v":0},"-",{"$f":"SUM(Q393:Q412)","v":0},"-","-",{"$f":"IF(W392<>0,W392/($F$392+$O$392),0)","v":0},{"$f":"IF(Y392<>0,Y392/($F$392+$O$392),0)","v":0},1,{"$f":"SUM(W393:W412)","v":0},0,{"$f":"SUM(Y393:Y412)","v":0},0]
[null,6,"Prefabricated Buildings and Building Units",null,null,null,{"$f":"IF(AND(F393<>0,$D$31<>0),F393/$D$31,0)","v":0},"-",null,0,null,null,null,0,0,null,0,null,null,0,0,1,0,0,0,0]
[null,null,null,null,null,null,{"$f":"IF(AND(F394<>0,$D$31<>0),F394/$D$31,0)","v":0},"-",null,0,null,null,null,0,0,null,0,null,null,0,0,1,0,0,0,0]
[null,null,null,null,null,null,{"$f":"IF(AND(F395<>0,$D$31<>0),F395/$D$31,0)","v":0},"-",null,0,null,null,null,0,0,null,0,null,null,0,0,1,0,0,0,0]
[null,null,null,null,null,null,0,"-",null,0,null,null,null,0,0,null,0,null,null,0,0,1,0,0,0,0]
[null,null,null,null,null,null,0,"-",null,0,null,null,null,0,0,null,0,null,null,0,0,1,0,0,0,0]
[null,null,null,null,null,null,0,"-",null,0,null,null,null,0,0,null,0,null,null,0,0,1,0,0,0,0]
[null,null,null,null,null,null,0,"-",null,0,null,null,null,0,0,null,0,null,null,0,0,1,0,0,0,0]
[null,null,null,null,null,null,0,"-",null,0,null,null,null,0,0,null,0,null,null,0,0,1,0,0,0,0]
[null,null,null,null,null,null,0,"-",null,0,null,null,null,0,0,null,0,null,null,0,0,1,0,0,0,0]
[null,null,null,null,null,null,0,"-",null,0,null,null,null,0,0,null,0,null,null,0,0,1,0,0,0,0]
[null,null,null,null,null,null,0,"-",null,0,null,null,null,0,0,null,0,null,null,0,0,1,0,0,0,0]
[null,null,null,null,null,null,0,"-",null,0,null,null,null,0,0,null,0,null,null,0,0,1,0,0,0,0]
[null,null,null,null,null,null,0,"-",null,0,null,null,null,0,0,null,0,null,null,0,0,1,0,0,0,0]
[null,null,null,null,null,null,0,"-",null,0,null,null,null,0,0,null,0,null,null,0,0,1,0,0,0,0]
[null,null,null,null,null,null,{"$f":"IF(AND(F407<>0,$D$31<>0),F407/$D$31,0)","v":0},"-",null,0,null,null,null,0,0,null,0,null,null,0,0,1,0,0,0,0]
[null,null,null,null,null,null,{"$f":"IF(AND(F408<>0,$D$31<>0),F408/$D$31,0)","v":0},"-",null,0,null,null,null,0,0,null,0,null,null,0,0,1,0,0,0,0]
[null,null,null,null,null,null,{"$f":"IF(AND(F409<>0,$D$31<>0),F409/$D$31,0)","v":0},"-",null,0,null,null,null,0,0,null,0,null,null,0,0,1,0,0,0,0]
[null,null,null,null,null,null,{"$f":"IF(AND(F410<>0,$D$31<>0),F410/$D$31,0)","v":0},"-",null,0,null,null,null,0,0,null,0,null,null,0,0,1,0,0,0,0]
[null,null,null,null,null,null,0,"-",null,0,null,null,null,0,0,null,0,null,null,0,0,1,0,0,0,0]
[null,null,null,null,null,null,0,"-",null,0,null,null,null,0,0,null,0,null,null,0,0,1,0,0,0,0]
[null,7,"Work to Existing Building",null,"-",{"$f":"SUM(F414:F433)","v":0},{"$f":"IF(AND(F413<>0,$D$31<>0),F413/$D$31,0)","v":0},"-","-",{"$f":"SUM(J414:J433)","v":0},"-","-","-","-",{"$f":"SUM(O414:O433)","v":0},"-",{"$f":"SUM(Q414:Q433)","v":0},"-","-",{"$f":"IF(W413<>0,W413/($F$413+$O$413),0)","v":0},{"$f":"IF(Y413<>0,Y413/($F$413+$O$413),0)","v":0},{"$f":"1-T413-U413","v":1},{"$f":"SUM(W414:W433)","v":0},{"$f":"IF(AND(W413<>0,$D$31<>0),W413/$D$31,0)","v":0},{"$f":"SUM(Y414:Y433)","v":0},0]
[null,7,"Work to Existing Building",null,null,null,{"$f":"IF(AND(F414<>0,$D$31<>0),F414/$D$31,0)","v":0},"-",null,0,null,null,null,{"$f":"IF(M414<>0,INT(60/M414),0)","v":0},{"$f":"N414*I414","v":0},null,{"$f":"P414*M414","v":0},null,null,0,0,1,{"$f":"T414*(F414+O414)","v":0},0,{"$f":"U414*(F414+O414)","v":0},0]
[null,null,null,null,null,null,{"$f":"IF(AND(F415<>0,$D$31<>0),F415/$D$31,0)","v":0},"-",null,0,null,null,null,0,0,null,0,null,null,0,0,1,0,0,0,0]
[null,null,null,null,null,null,{"$f":"IF(AND(F416<>0,$D$31<>0),F416/$D$31,0)","v":0},"-",null,0,null,null,null,0,0,null,0,null,null,0,0,1,0,0,0,0]
[null,null,null,null,null,null,0,"-",null,0,null,null,null,0,0,null,0,null,null,0,0,1,0,0,0,0]
[null,null,null,null,null,null,0,"-",null,0,null,null,null,0,0,null,0,null,null,0,0,1,0,0,0,0]
[null,null,null,null,null,null,0,"-",null,0,null,null,null,0,0,null,0,null,null,0,0,1,0,0,0,0]
[null,null,null,null,null,null,0,"-",null,0,null,null,null,0,0,null,0,null,null,0,0,1,0,0,0,0]
[null,null,null,null,null,null,0,"-",null,0,null,null,null,0,0,null,0,null,null,0,0,1,0,0,0,0]
[null,null,null,null,null,null,0,"-",null,0,null,null,null,{"$f":"IF(M422<>0,INT(60/M422),0)","v":0},0,null,0,null,null,0,0,1,0,0,0,0]
[null,null,null,null,null,null,0,"-",null,0,null,null,null,0,0,null,0,null,null,0,0,1,0,0,0,0]
[null,null,null,null,null,null,0,"-",null,0,null,null,null,0,0,null,0,null,null,0,0,1,0,0,0,0]
[null,null,null,null,null,null,0,"-",null,0,null,null,null,0,0,null,0,null,null,0,0,1,0,0,0,0]
[null,null,null,null,null,null,0,"-",null,0,null,null,null,0,0,null,0,null,null,0,0,1,0,0,0,0]
[null,null,null,null,null,null,0,"-",null,0,null,null,null,0,0,null,0,null,null,0,0,1,0,0,0,0]
[null,null,null,null,null,null,{"$f":"IF(AND(F428<>0,$D$31<>0),F428/$D$31,0)","v":0},"-",null,0,null,null,null,0,0,null,0,null,null,0,0,1,0,0,0,0]
[null,null,null,null,null,null,{"$f":"IF(AND(F429<>0,$D$31<>0),F429/$D$31,0)","v":0},"-",null,0,null,null,null,0,0,null,0,null,null,0,0,1,0,0,0,0]
[null,null,null,null,null,null,{"$f":"IF(AND(F430<>0,$D$31<>0),F430/$D$31,0)","v":0},"-",null,0,null,null,null,0,0,null,0,null,null,0,0,1,0,0,0,0]
[null,null,null,null,null,null,{"$f":"IF(AND(F431<>0,$D$31<>0),F431/$D$31,0)","v":0},"-",null,0,null,null,null,0,0,null,0,null,null,0,0,1,0,0,0,0]
[null,null,null,null,null,null,0,"-",null,0,null,null,null,0,0,null,0,null,null,0,0,1,0,0,0,0]
[null,null,null,null,null,null,0,"-",null,0,null,null,null,0,0,null,0,null,null,0,0,1,0,0,0,0]
[null,8,"External works",null,"-",{"$f":"SUM(F435:F454)","v":0},{"$f":"IF(AND(F434<>0,$D$31<>0),F434/$D$31,0)","v":0},"-","-",{"$f":"SUM(J435:J454)","v":0},"-","-","-","-",{"$f":"SUM(O435:O454)","v":0},"-",{"$f":"SUM(Q435:Q454)","v":0},"-","-",{"$f":"IF(W434<>0,W434/($F$434+$O$434),0)","v":0},{"$f":"IF(Y434<>0,Y434/($F$434+$O$434),0)","v":0},1,{"$f":"SUM(W435:W454)","v":0},0,{"$f":"SUM(Y435:Y454)","v":0},0]
[null,8,"External works",null,null,null,null,"-",null,0,null,null,null,0,0,null,0,null,null,0,0,1,0,0,0,0]
[null,null,null,null,null,null,{"$f":"IF(AND(F436<>0,$D$31<>0),F436/$D$31,0)","v":0},"-",null,0,null,null,null,0,0,null,0,null,null,0,0,1,0,0,0,0]
[null,null,null,null,null,null,{"$f":"IF(AND(F437<>0,$D$31<>0),F437/$D$31,0)","v":0},"-",null,0,null,null,null,0,0,null,0,null,null,0,0,1,0,0,0,0]
[null,null,null,null,null,null,{"$f":"IF(AND(F438<>0,$D$31<>0),F438/$D$31,0)","v":0},"-",null,0,null,null,null,0,0,null,0,null,null,0,0,1,0,0,0,0]
[null,null,null,null,null,null,0,"-",null,0,null,null,null,0,0,null,0,null,null,0,0,1,0,0,0,0]
[null,null,null,null,null,null,0,"-",null,0,null,null,null,0,0,null,0,null,null,0,0,1,0,0,0,0]
[null,null,null,null,null,null,0,"-",null,0,null,null,null,0,0,null,0,null,null,0,0,1,0,0,0,0]
[null,null,null,null,null,null,0,"-",null,0,null,null,null,0,0,null,0,null,null,0,0,1,0,0,0,0]
[null,null,null,null,null,null,0,"-",null,0,null,null,null,0,0,null,0,null,null,0,0,1,0,0,0,0]
[null,null,null,null,null,null,0,"-",null,0,null,null,null,0,0,null,0,null,null,0,0,1,0,0,0,0]
[null,null,null,null,null,null,0,"-",null,0,null,null,null,0,0,null,0,null,null,0,0,1,0,0,0,0]
[null,null,null,null,null,null,0,"-",null,0,null,null,null,0,0,null,0,null,null,0,0,1,0,0,0,0]
[null,null,null,null,null,null,0,"-",null,0,null,null,null,0,0,null,0,null,null,0,0,1,0,0,0,0]
[null,null,null,null,null,null,0,"-",null,{"$f":"I448*F448","v":0},null,null,null,0,0,null,0,null,null,0,0,1,0,0,0,0]
[null,null,null,null,null,null,0,"-",null,0,null,null,null,0,0,null,0,null,null,0,0,1,0,0,0,0]
[null,null,null,null,null,null,{"$f":"IF(AND(F450<>0,$D$31<>0),F450/$D$31,0)","v":0},"-",null,0,null,null,null,0,0,null,0,null,null,0,0,1,0,0,0,0]
[null,null,null,null,null,null,0,"-",null,0,null,null,null,0,0,null,0,null,null,0,0,1,0,0,0,0]
[null,null,null,null,null,null,0,"-",null,0,null,null,null,0,0,null,0,null,null,0,0,1,0,0,0,0]
[null,null,null,null,null,null,0,"-",null,{"$f":"I453*F453","v":0},null,null,null,{"$f":"IF(M453<>0,INT(60/M453),0)","v":0},0,null,0,null,null,0,0,1,0,0,0,0]
[null,null,null,null,null,null,0,"-",null,{"$f":"I454*F454","v":0},null,null,null,{"$f":"IF(M454<>0,INT(60/M454),0)","v":0},{"$f":"N454*I454","v":0},null,{"$f":"P454*M454","v":0},null,null,0,0,1,{"$f":"T454*(F454+O454)","v":0},0,0,{"$f":"IF(AND(Y454<>0,$D$31<>0),Y454/$D$31,0)","v":0}]
[null,null,"Overall",null,null,{"$f":"SUM(F91,F107,F123,F139,F155,F176,F197,F218,F239,F255,F276,F292,F313,F329,F350,F371,F392,F413,F434)","v":0},0,null,null,{"$f":"SUM(J91,J107,J123,J139,J155,J176,J197,J218,J239,J255,J276,J292,J313,J329,J350,J371,J392,J413,J434)","v":0},null,null,null,null,{"$f":"SUM(O91,O107,O123,O139,O155,O176,O197,O218,O239,O255,O276,O292,O313,O329,O350,O371,O392,O413,O434)","v":0},null,{"$f":"SUM(Q91:Q454)","v":0},null,null,{"$f":"IF(AND($F$455<>0,$O$455<>0),SUM(W91,W107,W123,W139,W155,W176,W197,W218,W239,W255,W276,W292,W313,W329,W350,W371,W392,W413,W434)/($F$455+$O$455),0)","v":0},{"$f":"IF(AND($F$455<>0,$O$455<>0),SUM(Y91,Y107,Y123,Y139,Y155,Y176,Y197,Y218,Y239,Y255,Y276,Y292,Y313,Y329,Y350,Y371,Y392,Y413,Y434)/($F$455+$O$455),0)","v":0},{"$f":"1-T455-U455","v":1},{"$f":"SUM(W91:W454)","v":0},{"$f":"SUM(X91:X454)","v":0},{"$f":"SUM(Y91:Y454)","v":0},{"$f":"SUM(Z91:Z454)","v":0}]
[]
[]
[]
[]
[null,"Recycling and Waste Reporting table"]
[null,"The light green-coloured cells should be completed to achieve 'pioneering' status."]
[null,null,null,null,"TOTAL ESTIMATES OF WASTE",null,null,"WASTE MANAGEMENT ROUTES",null,null,null,null,null,"SUMMARY"]
[null,null,null,null,"Overall Waste \n(tonnes)","Overall Waste\n(tonnes/m2 GIA)","Performance Indicator (LPG Appendix 1)","REUSE ",null,"RECYCLE",null,"OTHER DISPOSAL",null,"Total Reuse (%)","Total Recycle (%)","Total Reuse and Recycle (%)","Total Waste Reported (%)"]
[null,null,"Type of Waste","Source of Information",null,null,null,"Reuse Onsite (%)","Reuse Offsite (%)","Recycle Onsite(%)","Recycle Offsite (%)","To Landfill (%)","To Other Management (%)"]
[null,null,null,null,"PRODUCT AND CONSTRUCTION STAGE (MODULE A)"]
[null,1,"Demolition Waste",null,null,{"$f":"IF($D$31>0,IF(E466>0,E466/$D$31,0),0)","v":0},{"$f":"F466","v":0},null,null,null,null,null,null,{"$f":"SUM(H466:I466)","v":0},{"$f":"SUM(J466:K466)","v":0},{"$f":"SUM(N466:O466)","v":0},{"$f":"SUM(H466:M466)","v":0}]
[null,2.1,"Excavation Waste",null,null,{"$f":"IF($D$31>0,IF(E467>0,E467/$D$31,0),0)","v":0},{"$f":"F467","v":0},null,null,null,null,null,null,{"$f":"SUM(H467:I467)","v":0},{"$f":"SUM(J467:K467)","v":0},{"$f":"SUM(N467:O467)","v":0},{"$f":"SUM(H467:M467)","v":0}]
[null,2.8,"Construction Waste",null,null,{"$f":"IF($D$31>0,IF(E468>0,E468/$D$31,0),0)","v":0},{"$f":"F468","v":0},null,null,null,null,null,null,{"$f":"SUM(H468:I468)","v":0},{"$f":"SUM(J468:K468)","v":0},{"$f":"SUM(N468:O468)","v":0},{"$f":"SUM(H468:M468)","v":0}]
[null,null,null,null,"USE STAGE (MODULE B)"]
[null,3,"Demolition / Strip-out Waste",null,{"$f":"IF(ISNUMBER(O455),O455/1000,0)","v":0},{"$f":"IF($D$31>0,IF(E470>0,E470/$D$31,0),0)","v":0},"-",null,null,null,null,null,null,{"$f":"SUM(H470:I470)","v":0},{"$f":"SUM(J470:K470)","v":0},{"$f":"SUM(N470:O470)","v":0},{"$f":"SUM(H470:M470)","v":0}]
[null,4,"Construction Waste",null,{"$f":"IF(ISNUMBER(Q455),Q455/1000,0)","v":0},{"$f":"IF($D$31>0,IF(E471>0,E471/$D$31,0),0)","v":0},"-",null,null,null,null,null,null,{"$f":"SUM(H471:I471)","v":0},{"$f":"SUM(J471:K471)","v":0},{"$f":"SUM(N471:O471)","v":0},{"$f":"SUM(H471:M471)","v":0}]
[null,null,null,null,"Overall Waste (tonnes/annum)","Overall Waste (tonnes/annum\n/m2)","Performance Indicator (LPG Appendix 1)","Reuse Onsite (%)","Reuse Offsite (%)","Recycle Offsite(%)","Recycle Offsite (%)","To Landfill (%)","To Other Management (%)","Total Reuse (%)","Total Recycle (%)","Total Reuse and Recycle (%)","Total Waste Reported (%)"]
[null,5,"Municipal Waste",null,null,{"$f":"IF($D$31>0,IF(E473>0,E473/$D$31,0),0)","v":0},{"$f":"F473","v":0},null,null,null,null,null,null,{"$f":"SUM(H473:I473)","v":0},{"$f":"SUM(J473:K473)","v":0},{"$f":"SUM(N473:O473)","v":0},{"$f":"SUM(H473:M473)","v":0}]
[null,6,"Industrial Waste (if applicable)",null,null,"-","-",null,null,null,null,null,null,{"$f":"SUM(H474:I474)","v":0},{"$f":"SUM(J474:K474)","v":0},{"$f":"SUM(N474:O474)","v":0},{"$f":"SUM(H474:M474)","v":0}]
[null,null,null,null,"MODULE A - MODULE C"]
[null,null,null,null,"Overall Materials \n(tonnes)","Overall Materials (Modules A-C) (tonnes\n/m2)","-","Reuse Onsite (%)","Reuse Offsite (%)","Recycle Offsite(%)","Recycle Offsite (%)","To Landfill (%)","To Other Management (%)","Total Reuse (%)","Total Recycle (%)","Total Reuse and Recycle (%)","Total Waste Reported (%)"]
[null,7,"Total Materials",null,{"$f":"IF(AND(ISNUMBER(F455),ISNUMBER(J455),ISNUMBER(O455),ISNUMBER(Q455)),((Q455+O455+F455+J455)/1000),0)","v":0},{"$f":"IF($D$31>0,IF(E477>0,E477/$D$31,0),0)","v":0},"-",null,null,null,null,null,null,{"$f":"SUM(H477:I477)","v":0},{"$f":"SUM(J477:K477)","v":0},{"$f":"SUM(N477:O477)","v":0},{"$f":"SUM(H477:M477)","v":0}]
[]
[]
[null,"Circular Economy Targets"]
[null,"Circular economy targets for existing and new development",null,"Policy Requirement","Target Aiming For (%)","Policy Met?","Explanation (How will performance against this metric be secured through design, implementation and monitoring?)"]
[null,"Demolition waste materials (non-hazardous)",null,"Minimum of 95% diverted from landfill for reuse, recycling or recovery.",null,{"$f":"IF(ISNUMBER(E482),IF(E482>100%,\"Input not valid\",IF(E482=95%,\"Yes\",IF(100%>=E482>95%,\"Exceeds Policy\",\"No\"))),\"\")","v":""}]
[null,"Excavation waste materials",null,"Minimum of 95% diverted from landfill for beneficial reuse.",null,{"$f":"IF(ISNUMBER(E483),IF(E483>100%,\"Input not valid\",IF(E483=95%,\"Yes\",IF(100%>=E483>95%,\"Exceeds Policy\",\"No\"))),\"\")","v":""}]
[null,"Construction waste materials",null,"Minimum of 95% diverted from landfill for reuse, recycling or recovery.",null,""]
[null,"Municipal waste",null,"Minimum 65% recycling rate by 2030.",null,{"$f":"IF(ISNUMBER(E485),IF(E485>100%,\"Input not valid\",IF(E485=65%,\"Yes\",IF(100%>=E485>65%,\"Exceeds Policy\",\"No\"))),\"\")","v":""}]
[null,"Recycled content",null,"Minimum 20% of the building material elements to be comprised of recycled or reused content.",null,{"$f":"IF(ISNUMBER(E486),IF(E486>100%,\"Input not valid\",IF(E486=20%,\"Yes\",IF(100%>=E486>20%,\"Exceeds Policy\",\"No\"))),\"\")","v":""}]
[null,"Additional requirements",null,"Policy Requirement","Please acknowledge acceptance for a planning condition",null,"Please set out an indicative timescale and responsible party for the provision of this information"]
[null,"Reserved Matters Reporting",null,"A condition will be attached to an approval of a referable outline planning permission, securing the submission of a CE Statement as a reserved matter. Applications for reserved matters will be required to review and address the information provided at outline stage and update any default values used as far as possible. "]

{"sheet":"Detailed Application Stage","index":3,"n_rows":488,"n_cols":26,"rows_kept":488,"cut":false,"hidden":false,"merged":[[461,13,461,16],[486,1,486,2],[486,6,486,8],[486,4,486,5],[487,1,487,2],[487,6,487,8],[487,4,487,5],[483,1,483,2],[484,1,484,2],[485,1,485,2],[480,6,480,8],[481,6,481,8],[482,6,482,8],[483,6,483,8],[484,6,484,8],[485,6,485,8],[462,13,463,13],[462,14,463,14],[462,15,463,15],[462,16,463,16],[462,11,462,12],[482,1,482,2],[480,1,480,2],[481,1,481,2],[75,4,75,11],[72,1,72,3],[462,9,462,10],[462,7,462,8],[461,7,461,12],[461,4,461,6],[462,6,463,6],[462,4,463,4],[462,5,463,5],[81,1,81,3],[76,1,79,2],[80,1,80,3],[88,2,88,3],[89,2,89,3],[90,2,90,3],[123,1,137,1],[123,2,137,3],[138,2,138,3],[139,1,153,1],[139,2,153,3],[107,1,121,1],[107,2,121,3],[122,2,122,3],[196,2,196,3],[53,1,53,2],[41,1,41,2],[42,1,42,2],[43,1,43,2],[44,1,44,2],[70,1,71,3],[82,1,82,3],[83,1,83,3],[57,1,57,2],[54,1,54,2],[55,1,55,2],[75,1,75,3],[73,1,73,3],[74,1,74,3],[56,1,56,2],[46,3,47,3],[61,3,62,3],[88,17,88,21],[106,2,106,3],[0,0,1,6],[3,0,3,5],[4,0,4,2],[4,4,4,5],[35,1,35,2],[34,1,34,2],[36,1,36,2],[37,1,37,2],[38,1,38,2],[39,1,39,2],[5,2,5,3],[70,13,75,13],[70,14,75,14],[70,15,75,15],[70,4,70,11],[70,12,75,12],[40,1,40,2],[50,1,50,2],[51,1,51,2],[91,1,105,1],[91,2,105,3],[52,1,52,2],[197,1,216,1],[197,2,216,3],[217,2,217,3],[218,1,237,1],[218,2,237,3],[154,2,154,3],[155,1,174,1],[155,2,174,3],[175,2,175,3],[176,1,195,1],[176,2,195,3],[275,2,275,3],[276,1,290,1],[276,2,290,3],[291,2,291,3],[292,1,311,1],[292,2,311,3],[238,2,238,3],[239,1,253,1],[239,2,253,3],[254,2,254,3],[255,1,274,1],[255,2,274,3],[88,22,88,25],[433,2,433,3],[434,1,453,1],[434,2,453,3],[88,4,88,11],[88,12,88,16],[391,2,391,3],[392,1,411,1],[392,2,411,3],[412,2,412,3],[413,1,432,1],[413,2,432,3],[349,2,349,3],[350,1,369,1],[350,2,369,3],[370,2,370,3],[371,1,390,1],[371,2,390,3],[312,2,312,3],[313,1,327,1],[313,2,327,3],[328,2,328,3],[329,1,348,1],[329,2,348,3],[76,15,83,15],[80,5,80,6],[81,4,81,5],[82,4,82,11],[83,4,83,11],[76,5,76,6],[77,5,77,6],[78,5,78,7],[78,8,79,8],[79,5,79,6],[76,12,83,12],[76,13,83,13],[76,14,83,14]]}
[]
[]
[]
["Detailed Application Stage - Circular Economy Statement"]
[]
[null,null,"Project details"]
[null,null,"Project name","Ham Close Regeneration"]
[null,null,"Planning application reference number (if applicable)"]
[null,null,"Applicant","Hill Residential"]
[null,null,"London Borough","London Borough of Richmond upon Thames"]
[null,null,"Brief description of the project","Demolition of the existing buildings on-site and phased mixed-use development comprising 452 residential homes (Class C3) up to six storeys; a Community/Leisure Facility (Class F2) of up to three storeys in height, a “Maker Labs” (sui generis) of up to two storeys together with basement car parking and site wide landscaping."]
[null,null,"Author/s","Energist UK"]
[null,null,"Date of assessment","2022-08-18"]
[null,null,"Number of Use Types",3]
[null,null,"Use Class / Type","Floor Area by use type (m2)"]
[null,null,"C3",41817.4]
[null,null,"F2",716]
[null,null,"sui generis",130]
[null,null,"Use Class / Type 4","Use Class / Type 4 GIA"]
[null,null,"Use Class / Type 5","Use Class / Type 5 GIA"]
[null,null,"Use Class / Type 6","Use Class / Type 6 GIA"]
[null,null,"Use Class / Type 7","Use Class / Type 7 GIA"]
[null,null,"Use Class / Type 8","Use Class / Type 8 GIA"]
[null,null,"Use Class / Type 9","Use Class / Type 9 GIA"]
[null,null,"Use Class / Type 10","Use Class / Type 10 GIA"]
[null,null,"Use Class / Type 11","Use Class / Type 11 GIA"]
[null,null,"Use Class / Type 12","Use Class / Type 12 GIA"]
[null,null,"Use Class / Type 13","Use Class / Type 13 GIA"]
[null,null,"Use Class / Type 14","Use Class / Type 14 GIA"]
[null,null,"Use Class / Type 15","Use Class / Type 15 GIA"]
[null,null,"Overall GIA (m2)",{"$f":"SUM(D16:D30)","v":42663.4}]
[]
[]
[null,"Circular Economy Design Approaches"]
[null,"Circular Economy Design Approaches for Existing Structures / Buildings",null,"Applicant Response"]
[null,"Is there an existing building on the site?",null,"Yes"]
[null,"Is it technically feasible to retain the building(s) in whole or in part?",null,"No"]
[null,"Are there any building materials or elements available on site that can be used?"]
[null,"Is the existing building, or parts of the building, suited to the requirements for the site?"]
[null,"Is it technically feasible to recover the 'residual value' of the buildings elements or materials?",null,"No"]
[null,"The preferred strategy is:",null,"NEW BUILDING"]
[null,"The preferred strategy is:",null,"RETAIN and RETROFIT"]
[null,"The preferred strategy is:",null,"PARTIAL RETENTION and REFURBISHMENT"]
[null,"The preferred strategy is:",null,"DISASSEMBLE/DECONSTRUCT AND REUSE"]
[null,"The preferred strategy is:",null,"DEMOLISH/DECONSTRUCT AND RECYCLE"]
[null,"Circular Economy Design Approach","Phase/Building/Area/Layer","Strategic Response"]
[null,"Refurbish","All","The site has been allocated for regeneration within the draft Richmond Local Plan ‘The best for our borough’ Draft for consultation (December 2021). It is noted that the existing flats are generally of poor construction, with poor insulation by modern standards, and many have condensation and damp issues. The blocks of flats do not have lifts, thus leaving a number of flats inaccessible to people with disabilities."]
[null,"Repurpose","All"]
[null,"Disassemble / Deconstruct and Reuse","All","Opportunities for site claimed timber from tree felling to be explored for use in low balancing/play trails and for sculpture/art interventions. Bricks from the demolition of the western boundary brick wall and the existing Maker Labs shall be reclaimed and re-used elsewhere on site."]
[null,"Demolish / Deconstruct and Recycle","All","The under-occupied existing site has been selected to be regenerated to provide a mixed-use development comprising 452 residential homes (Class C3) up to six storeys; a Community/Leisure Facility (Class F2) of up to three storeys in height, a “MakerLabs” (sui generis) of up to two storeys together with basement car parking and site wide landscaping. As such, using the GLA decision making tree for the existing site the strategy is to demolish the existing on-site structures and to demolish and recycle materials as far as practicable in accordance with the waste hierarchy."]
[null,"Circular Economy Design Approaches for New Buildings, Infrastructure and Layers Over the Lifetime of the Development",null,"Applicant Response"]
[null,"Is the whole building designed to have a short life on its current site? (e.g. less than 10 yrs)",null,"No"]
[null,"Is there likely to be a need for building of a similar size (etc.) in different locations in the future?"]
[null,"Is it foreseeable that the building will need to change use/function within its design life?",null,"No"]
[null,"The preferred strategy is:",null,"Design for BUILDING RELOCATION"]
[null,"The preferred strategy is:",null,"Design for COMPONENT / MATERIAL REUSE"]
[null,"The preferred strategy is:",null,"Design for ADAPTABILITY"]
[null,"All developments should apply the 6 Circular Economy principles, including:",null,"Designing for DISASSEMBLY and ADAPTABILITY, MATERIAL REUSE ON-SITE and/or RECYCLING should be maximised"]
[null,"Circular Economy Design Approach","Phase/Building/Area/Layer","Strategic Response"]
[null,"Building relocation","N/A","N/A"]
[null,"Component or material reuse","All","The Applicant will facilitate the sustainable sourcing of materials, targeting the use of recycled material and content which can be re-used. The Applicant shall target a minimum 20% recycled or re-used content for all major building element materials. More specific targets presented in bill of materials table."]
[null,"Adaptability","All","The Community Centre and MakerLabs spaces are likely to undergo use changes intermittently, and as such will be guided by the requirement for adaptability. However, these are not likely to undergo changes as frequently as commercial spaces so are also guided by longevity. Lightweight partitioning within apartments means no load bearing partitions will be provided, which maximises internal remodelling for adaptability for future tenants. MEP services and energy centre designed for ease of access and for ease of replacement in the future, with direct access to the Energy Centre from the exterior of the building with large doors to enable easy replacement of MEP equipment. Future connection to local DHN when available - plant switch-over maximised and allocated pipework routes to minimise disruption."]
[null,"Flexibility","All"]
[null,"Replaceability","All","The Applicant is committed to increasing the use of Modern Methods of Construction on their developments. The use of MMC enables the Applicant to increase resource efficiency and reduce the amount of waste produced compared to traditional on-site construction methods. This includes the use of modulated components such as precast stairs, precast concrete slabs, pre-formed balconies, and a mortar which facilitates facade replaceability."]
[null,"Disassembly","All","Components and products will be designed and selected to allow for disassembly and reuse at the end of their useful life. Building information will be stored to facilitate end of life strategy, disassembly, future reuse, waste avoidance, and waste reduction. There shall be a requirement for method statements on end of life from contractors and sub-contractors to be provided in the Operation and Maintenance Manuals - this shall form part of contractual obligations. Disassembly is facilitated by principles allowing the building or parts of the building to be easily disassembled at the end of its life, or to be refurbished rather than demolished. "]
[null,"Longevity","All","The new Development is a long-life development. As a residential led scheme, it is not intended for regular change and as such shall primarily be guided by the requirements for longevity. As such these sections of the Development shall be designed to meet long term needs while being durable and resilient to a changing climate."]
[]
[]
[null,"Circular Economy Design Principles by Building Layer"]
[null,"The Circular Economy Commitments table should consider where the Applicant seeks to go beyond standard practice. If there are multiple phases / buildings / areas with different measures / strategies, please specify these separately within the table below."]
[null,null,null,null,"Building Layer",null,null,null,null,null,null,null,"Summary","Challenges","Actions & Counter-Actions, Who and When","Plan to Prove and Quantify"]
[null,null,null,null,"Site","Substructure","Superstructure","Shell/Skin","Services","Space ","Stuff","Construction Stuff"]
[null,"Is it likely the layer (or components within it) will need to be moved or otherwise modified within 5-15 years, e.g. due to changing use patterns or user requirements?",null,null,"N/A","No","No","No","Yes","No","Yes","N/A"]
[null,"Is it likely the layer (or components within it) will need to be changed, upgraded or replaced within 5-15 years, e.g. for improved performance, aesthetics",null,null,"N/A","No","No","No",null,"No",null,"N/A"]
[null,"The preferred strategy is:",null,null,"-",{"$f":"IF(F73=\"Yes\",\"Design for FLEXIBILITY\",IF(F74=\"Yes\",\"Design for REPLACEABILITY\",IF(AND(F73=\"No\",F74=\"No\"),\"Design for ADAPTABILITY\",\"\")))","v":"Design for ADAPTABILITY"},{"$f":"IF(G73=\"Yes\",\"Design for FLEXIBILITY\",IF(G74=\"Yes\",\"Design for REPLACEABILITY\",IF(AND(G73=\"No\",G74=\"No\"),\"Design for ADAPTABILITY\",\"\")))","v":"Design for ADAPTABILITY"},"Design for ADAPTABILITY","Design for FLEXIBILITY","Design for ADAPTABILITY","Design for FLEXIBILITY","-"]
[null,"Design Principles",null,null,"All developments should apply the 6 circular economy principles, including designing for DISASSEMBLY and ADAPTABILITY, MATERIAL REUSE ON-SITE and/or RECYCLING should be maximised."]
[null,"Designing out waste",null,"Module A - Product Sourcing and Construction Stage","The Applicant shall ensure that materials have a high recycled content and are easily recyclable to minimise the amount of virgin materials used (in-line with SI 7 minimum targets). The concrete used on the project will have a high GGBS content to minimise the amount of cement used and reuse a waste material from another process. \n\nBricks from the demolition of the western boundary brick wall and the existing Maker Labs shall be reclaimed and re-used elsewhere on site.\n\nOn-site opportunities to re-use and manage waste shall be maximised where practicable. Where this is not possible and waste is sent off-site for recovery, reuse or recycling, the Applicant shall endeavour to use local waste management facilities, as informed by the London Waste Map.","Minimising materials - slab type, foundation type, façade construction has been considered within the WLC assessment to reduce embodied carbon and total building weight. This reduces the quantity of materials used in the construction process. Floor plates will be rationalised as much as possible to maximise material efficiency whilst achieving a balance between form factor and dual aspect provision.\n\nRepetitive design has been utilised throughout the masterplan to minimise quantities of materials without impacting architectural character, seven pairs of blocks share the same designs and unit types have been rationalised and replicated throughout the scheme. Building form factor will be optimised where possible to increase efficiency and thus reduce the comparative thickness of insulation and overall area of facade required.\n\nBasement designed so part of the temporary works structure, required to create a temporary watertight barrier to allow the phased construction of the basement, can be retained and used to provide permanent support to the completed structure. ",null,"Aluminium and timber composite windows are proposed which will contain FSC certified timber and highly recyclable aluminium. Internal framing products to be specified with a high recycled content. All timber will be FSC certified.\n\nFor the community centre facilities, investigating the use of timber structural components and timber internal finishes where feasible. The proposed window systems will potentially be a composite system incorporating aluminium and timber finishes. Proposing large format architectural masonry blocks with a recycled content of over 30% for the external envelope – these will also require less mortar joints compared to traditional sized brickwork i.e. meaning less cement is used in the envelope make-up.","Modern Methods of Construction and offsite manufacturing options shall be developed at the detailed design stage. Standard bathroom and en-suite types across scheme minimises variation. Stair master, balconies, utility cupboards, bathroom pods etc. shall be considered from a prefabrication perspective.\n\nService coordination and clash detection shall be carried out at the detailed design stage to minimise site mistakes and clashes leading to wastage.","MMC and offsite manufacture opportunities to be explored.  \n\nCareful quality and design to minimise wastage, offcuts, and errors.  ","Community Centre fit-out to client specification – minimises the use of speculative finishes. Massing optimisation studies have been undertaken to review and reduce the overall building form and massing, thus reducing material quantum.","The Applicant works with suppliers to minimise packaging for construction deliveries and promote re-use, as well as implementing careful storage and management of on-site materials to prevent damage and consequent wastage.\n\nCareful storage to avoid damage of materials prior to assembly.\n\nJust in time deliveries to be considered to avoid over ordering and wastage.","The new Development is a long-life development. As a residential led scheme, it is not intended for regular change and as such has primarily been guided by the requirements for longevity. The Community Centre and MakerLabs spaces are likely to undergo use changes intermittently, and as such will be guided by the requirement for adaptability. However, these are not likely to undergo changes as frequently as commercial spaces so are also guided by longevity. As such the Development is designed to meet long term needs while being durable and resilient to a changing climate.\n\nDynamic Simulation modelling has been undertaken in accordance with CIBSE TM59 ‘Design methodology for the assessment of overheating risk in homes’, TM52 ‘The limits of thermal comfort: avoiding overheating in European buildings’, and a ventilation strategy has been developed to demonstrated successful mitigation from the risks of overheating in accordance with CIBSE TM49 weather data climate scenarios.\n\nThe Development design will ensure significant carbon savings are achieved over the Part L baseline and reduce the site energy consumption through a highly efficient building fabric design. The proposed energy strategy is to implement a site-wide communal heat network with the heating demand supplied by high efficiency heat pumps (ASHP). This will supply efficient and low carbon space heating and hot water to all homes within apartment blocks. Individual homes will be supplied with individual ASHPs to maximise carbon savings and reduce occupant energy costs. Non-domestic areas will have heating and cooling provided by efficient VRF systems. The renewables contribution will from the inclusion of solar photovoltaics (PV) to suitable roof spaces. With the continual decarbonisation of the national grid, this provides a pathway for the development to meet net zero carbon in the future.\n\nAs far as practicable, the Applicant shall seek to maximise the use of recycled content within the Development where feasible. The use of pre-fabricated elements shall be prioritised, as these reduce construction waste, and include the use of precast floors and stairs.\n\nFurther details of how the new build element of the Site incorporates circular economy principles are provided in Section 5 of the Circular Economy Statement..","Environmental and Sustainability issues to be reviewed throughout the process.\n\nConstruction is an energy / water intensive process, often difficult to reduce consumption. \n\nNot all materials are certified / have a recycled content.\n\nResidential schemes require fairly fixed layouts, this reduces future flexibility.  However, there is likely to be a long term requirement for residential use.\n\nEnsuring waste contractor sends waste to proper facility. Many contractors do not evaluate waste disposal further than the first-tier waste handler, the subsequent journey and final disposal or recycling site of waste is often unknown. \n\nManagement of refuse stores for buildings in operation.","Review of commitments to be conducted during the detailed design, including suitability of recycled aggregate and use of cement replacement in concrete specification.\n\nAny variations from the original energy strategy should be checked to ensure the Development still complies with its energy targets.\n\nDesign Team to review commitments and identify recycled content requirements of key materials.\n\nAll materials and systems should be designed for longevity. All commitments will be reviewed at the detailed design stage.\n\nSufficient lead time will be provided to allow a fully co-ordinated design to take place. \n\nGet all end destinations prior to removing waste from site.","Review each layer at detail design phase. Specification details and verification via as builts. The contractor will be required to provide evidence that key materials meet the required specification and complete the Bill of Materials Reporting table.\n\nThe Applicant’s commitments to Circular Economy principles are described within various policies and initiatives. These include:\n\n- Responsible Sourcing and Specification: The Applicant shall highlight the requirement to preferentially select materials which have a low environmental impact and high recycled content or can be re-used. A Sustainable Procurement plan shall be developed for the site and is a targeted credit under the commercial BREEAM assessment. BREEAM Life Cycle Impacts assessment to be completed, with Green Guide ratings of A+ or A targeted for majority of major building elements. EPD certificates provided for major building elements – refer to Whole Life-Cycle Carbon Assessment.\n- Opportunities to source materials locally will be prioritised. Local labour will be encouraged to reduce transport emissions during construction.\n- Sustainable Places: The Applicant commits to recognise existing good practice in design and construction, and trial and incorporate any new and emerging technologies and approaches in sustainable development.\n- Reducing Waste: The Applicant has a commitment to divert 95% of site waste (excluding hazardous waste) from landfill. From the earliest stages, they encourage design teams to consider opportunities to design out waste, while the production teams are responsible for evaluating how best to re-use or recycle materials.\n- Environmental and Energy Management Policy: The Applicant is committed to minimising carbon emissions and water consumption across operations. They aim to achieve the sustainability targets by using efficient technologies and implementing training and behaviour change initiatives.\n- Environmental Procedures: The Applicant adopts the waste hierarchy to reduce waste from all sites and developments, this includes accurate ordering of materials, ordering materials at the size required to avoid off cuts, liaising with suppliers to reduce packaging, creating employee awareness of environmental matters through Toolbox talks, and the use of construction materials which can be re-used to extend lifespan."]
[null,null,null,"Module B - In-Use Stage","The Development design will ensure significant carbon savings are achieved over the Part L baseline and reduce the site energy consumption through a highly efficient building fabric design. With the continual decarbonisation of the national grid, this provides a pathway for the development to meet net zero carbon in the future.","Use of a reinforced concrete frame which will last for at least the design life of the Development and can be extended with sufficient maintenance.","Use of a reinforced concrete frame which will last for at least the design life of the Development and can be extended with sufficient maintenance.","A combination of ‘Be Lean’ measures including energy-efficient building fabric; insulation to all heat loss floors, walls and roofs; double-glazed windows; low-energy lighting; and efficient heating and ventilation systems all contribute to an enhancement in the energy performance. This report demonstrates a 10% domestic improvement, and a 37% non-domestic improvement.","The proposed energy strategy is to implement a site-wide communal heat network with the heating demand supplied by high efficiency heat pumps (ASHP). This will supply efficient and low carbon space heating and hot water to all homes within apartment blocks. Individual homes will be supplied with individual ASHPs to maximise carbon savings and reduce occupant energy costs. Non-domestic areas will have heating and cooling provided by efficient VRF systems. The renewables contribution will be from the inclusion of solar photovoltaics (PV) to suitable roof spaces.\n\nWater consumption for the Site is to meet 105 litres per person per day in accordance with the London Plan Policy SI 5 for the residential element, and BREEAM WAT01 credits have been targeted for the non-domestic element, including leak detection.","Metering strategy in place via BREEAM and CIBSE TM39 to provide sub-metering to all units. This will allow careful monitoring and reporting of energy, heat, and water being consumed in each space of the development, and allow for data analysis to pinpoint areas of inefficient operation in-use.","Easily accessible communal waste storage shall be provided, with each residential core having its own waste and recycling stores on the ground floor. Waste storage shall be segregated by waste streams to maximise recycling rates. Bin stores shall be provided for houses to neatly accommodate all Local Authority recycling and waste containers to encourage recycling rates. ","N/A"]
[null,null,null,"Module C - End-of-Life Stage","Building information will be stored to facilitate end-of-life strategy, disassembly, future reuse, waste avoidance, waste reduction etc. which will be outlined in the Operations and Maintenance manuals.","The Applicant shall endeavour to ensure materials have a minimum 20% recycled content and are easily re-used or recyclable at the end-of-life stage to minimise the amount of virgin materials used. The concrete used on the project will have a high GGBS content to minimise the amount of cement used and reuse a waste material from another process. Recycled content targets shall be reviewed, and specific targets set as the detailed design develops.",null,null,"Services shall be regularly maintained and repaired to prolong life expectancy. At the end of life stage, services are componentised to allow for easy replacement and this will allow parts to be refurbished or sold for use on other sites creating a second hand market.\n\nThe Applicant shall explore specifying products which are componentised and can be repaired by replacing failed components, for example LED luminaires with replaceable lamps rather than chip on board luminaires. Specifying products which are easily dismantled and do not have fixings such as screws etc. reduces deconstructive damage and facilitates refurbishment for use elsewhere.","Internal finishes can be easily reclaimed or recycled, with manufacturers chosen with recyclable products, such as gypsum plasterboard. ","Determined by end user.","N/A"]
[null,null,null,"Module D - Benefits and Loads Beyond the System Boundary","The proposed Development has been designed for longevity, however durable external works materials, which can be re-used, have been maximised. High strength paving materials have been applied to high traffic areas to reduce breakage.","Outside the system boundaries, the substructure can be re-used for future development, or crushed and recycled as aggregate (concrete) or recycled to recover materials and reduce reliance on virgin material (steel).",null,"The façade is brick cladding and clay tile hangings will be used which will have a lifespan beyond the design life. The external skin will be predominantly brick, which is a natural, durable, and reusable material. Curtain walling system fixed to the structural slabs and soffits. This can be removed and replaced in the event of a major refurbishment and are easily accessible from outside of the building using mobile elevating work platforms (MEWP) or similar relevant machinery. This allows for clean and easy replacement at the disassembly stage without causing deconstructive damage to components to maximise refurbishment potential.",null,"Plasterboard can be recycled and re-used to reduce reliance on virgin gypsum material. Blockwork can be reclaimed and re-used off-site.","Determined by end user.","N/A"]
[null,"Designing for longevity",null,null,"The proposed new development is a long-life development. As a residential led scheme, it is not intended for regular change and as such shall primarily be guided by the principles and requirements for longevity. As such these sections of the Development shall be designed to meet long term needs while being durable and resilient to a changing climate. ","Use of a reinforced concrete frame which will last for at least the design life of the Development and can be extended with sufficient maintenance. Minimum design life of 50 years in accordance with Eurocode design standard requirements and LABC standards.",null,"External brick cladding and clay tile hanging will be used which will have a lifespan beyond the design life of the Development. The external skin will be predominantly brick, which is a natural, durable, and reusable material","A dynamic overheating assessment has been completed to reduce overheating of the building using future climate scenarios.\n\nHigh efficiency interior and exterior LED lighting has been specified to reduce quantities and improve operational life span.","Residential areas have had internal layouts fully designed to optimise the usage of the internal space, met by utilising an intelligent grid to maximise future adaptability.","Determined by end user.","N/A"]
[null,"Designing for adaptability or flexibility",null,null,"As a residential scheme it is not expected that the use classification will be changed, and as such the core priciple of longevity has primarily been followed. However, the Community Centre and MakerLabs spaces are likely to undergo use changes intermittently, and as such will be guided by the requirement for adaptability. However, these are not likely to undergo changes as frequently as commercial spaces so are also guided by longevity.",null,"Lightweight partitioning within apartments means no load bearing partitions will be provided, which maximises internal remodelling for adaptability for future tenants.","Curtain walling system fixed to the structural slabs and soffits. This can be removed and replaced in the event of a major refurbishment and are easily accessible from outside of the building using mobile elevating work platforms (MEWP) or similar relevant machinery. This allows for clean and easy replacement at the disassembly stage without causing deconstructive damage to components to maximise refurbishment potential.","MEP services and energy centre designed for ease of access and for ease of replacement in the future, with direct access to the Energy Centre from the exterior of the building with large doors to enable easy replacement of MEP equipment.\n\nFuture connection to local DHN when available - plant switch-over maximised and allocated pipework routes to minimise disruption.","Lightweight partitioning within apartments means no load bearing partitions will be provided, which maximises internal remodelling for adaptability for future tenants.","Determined by end user.","N/A"]
[null,"Designing for disassembly",null,null,"Components and products will be designed and selected to allow for disassembly and reuse at the end of their useful life. Building information will be stored to facilitate end of life strategy, disassembly, future reuse, waste avoidance, and waste reduction. There shall be a requirement for method statements on end of life from contractors and sub-contractors to be provided in the Operation and Maintenance Manuals - this shall form part of contractual obligations.\n\nDisassembly is facilitated by principles allowing the building or parts of the building to be easily disassembled at the end of its life, or to be refurbished rather than demolished. The following measures shall be implemented to facilitate disassembly at end of life:\n\n- Improve durability of materials where practicable in common areas\n- Use reversible and/or mechanical connections where practicable, to facilitate disassembly and ensure materials can be recovered in a high value state\n- Utilise layer independence where practicable (designing building systems and components in layers so that removal, adjustment, or replacement of some elements is feasible, especially when different components have different life spans and maintenance needs)\n- Utilise standardised products and/or modular systems, including pre-fabricated elements"]
[null,"Using systems, elements or materials that can be re-used and recycled",null,null,"The Applicant is committed to increasing the use of Modern Methods of Construction on their developments. The use of MMC enables the Applicant to increase resource efficiency and reduce the amount of waste produced compared to traditional on-site construction methods. For this Development, the Applicant shall consider:\n\n- Precast stairs for the communal stairs constructed off-site\n- Precast bolt on balconies constructed off-site\n- Utility cupboards constructed off-site\n- Bathroom pods constructed off-site\n- Mechanical risers constructed off-site"]
[]
[]
[null,"Bill of Materials"]
[null,"Please click the + symbol to the left hand side of the Bill of Materials table to view or hide the input rows for each Building Element Category. The rows for substructure and frame have been unhidden to highlight this."]
[null,null,"BUILDING ELEMENT CATEGORY -  LEVEL 1 (based on the RICS New Rules of\nMeasurement (NRM) classification system level 2 sub-elements https://www.rics.org/globalassets/rics-website/media/products/data-products/bcis-construction/bcis-elemental-standard-form-cost-analysis-4th-nrm-edition-2012.pdf)",null,"PRODUCT AND CONSTRUCTION STAGE (MODULE A)",null,null,null,null,null,null,null,"USE STAGE (MODULE B)",null,null,null,null,"END OF LIFE STAGE (MODULE C)",null,null,null,null,"BENEFITS BEYOND THE SYSTEM BOUNDARY (MODULE D)"]
[null,null,"Building Element Category",null,"Material Type","Material quantity\n(Module A)\n(kg)","Material intensity \n(Module A) \n(kg/m2 GIA)","Performance Indicator (LPG Appendix 1)","Construction Waste Factor \n(Module A)","Construction Waste \n(Module A)\n(kg)","Recycled Content \nby mass (kg)","Recycled Content \nby value (%)","Expected Lifespan\n(years)","Number of Replacements (over assumed 60-year period)","Repair and Replacement quantities of materials\n(Module B)\n (kg)","Construction Waste Factor \n(Module B)","Construction Waste \n(Module B)\n(kg)","Design for Disassembly","Assumed End of Life Scenario\n(Description)","% Reusing ","% Recycling","% Landfill","Estimated reusable materials (kg)","Estimated reusable materials intensity\n(kg/m2 GIA)","Estimated recyclable materials (kg)","Estimated recyclable materials intensity\n(kg/m2 GIA)"]
[null,0.1,"Demolition: Toxic/Hazardous/Contaminated Material Treatment",null,"-",{"$f":"SUM(F92:F106)","v":120000},{"$f":"IF(AND(F91<>0,$D$31<>0),F91/$D$31,0)","v":2.812715348518871},"-","-",{"$f":"SUM(J92:J106)","v":0},"-","-","-","-",{"$f":"SUM(O92:O106)","v":0},"-",{"$f":"SUM(Q92:Q106)","v":0},"-","-",{"$f":"IF(W91<>0,W91/($F$91+$O$91),0)","v":0},{"$f":"IF(Y91<>0,Y91/($F$91+$O$91),0)","v":0},{"$f":"1-T91-U91","v":1},{"$f":"SUM(W92:W106)","v":0},{"$f":"IF(AND(W91<>0,$D$31<>0),W91/$D$31,0)","v":0},{"$f":"SUM(Y92:Y106)","v":0},{"$f":"IF(AND(Y91<>0,$D$31<>0),Y91/$D$31,0)","v":0}]
[null,0.1,"Demolition: Toxic/Hazardous/Contaminated Material Treatment",null,"Asbestos",120000,{"$f":"IF(AND(F92<>0,$D$31<>0),F92/$D$31,0)","v":2.812715348518871},"-",null,{"$f":"F92*I92","v":0},null,null,null,{"$f":"IF(M92<>0,INT(60/M92),0)","v":0},{"$f":"N92*I92","v":0},null,{"$f":"P92*M92","v":0},null,null,0,0,{"$f":"1-T92-U92","v":1},{"$f":"T92*(F92+O92)","v":0},{"$f":"IF(AND(W92<>0,$D$31<>0),W92/$D$31,0)","v":0},{"$f":"U92*(F92+O92)","v":0},{"$f":"IF(AND(Y92<>0,$D$31<>0),Y92/$D$31,0)","v":0}]
[null,null,null,null,null,null,{"$f":"IF(AND(F93<>0,$D$31<>0),F93/$D$31,0)","v":0},"-",null,{"$f":"F93*I93","v":0},null,null,null,{"$f":"IF(M93<>0,INT(60/M93),0)","v":0},{"$f":"N93*I93","v":0},null,{"$f":"P93*M93","v":0},null,null,0,0,{"$f":"1-T93-U93","v":1},{"$f":"T93*(F93+O93)","v":0},{"$f":"IF(AND(W93<>0,$D$31<>0),W93/$D$31,0)","v":0},{"$f":"U93*(F93+O93)","v":0},0]
[null,null,null,null,null,null,0,"-",null,0,null,null,null,0,0,null,0,null,null,0,0,1,0,0,0,0]
[null,null,null,null,null,null,0,"-",null,0,null,null,null,0,0,null,0,null,null,0,0,1,0,0,0,0]
[null,null,null,null,null,null,0,"-",null,0,null,null,null,0,0,null,0,null,null,0,0,1,0,0,0,0]
[null,null,null,null,null,null,0,"-",null,0,null,null,null,0,0,null,0,null,null,0,0,1,0,0,0,0]
[null,null,null,null,null,null,0,"-",null,0,null,null,null,0,0,null,0,null,null,0,0,1,0,0,0,0]
[null,null,null,null,null,null,0,"-",null,0,null,null,null,0,0,null,0,null,null,0,0,1,0,0,0,0]
[null,null,null,null,null,null,0,"-",null,0,null,null,null,0,0,null,0,null,null,0,0,1,0,0,0,0]
[null,null,null,null,null,null,0,"-",null,0,null,null,null,0,0,null,0,null,null,0,0,1,0,0,0,0]
[null,null,null,null,null,null,0,"-",null,0,null,null,null,0,0,null,0,null,null,0,0,1,0,0,0,0]
[null,null,null,null,null,null,0,"-",null,0,null,null,null,0,0,null,0,null,null,0,0,1,0,0,0,0]
[null,null,null,null,null,null,0,"-",null,0,null,null,null,0,0,null,0,null,null,0,0,1,0,0,0,0]
[null,null,null,null,null,null,0,"-",null,0,null,null,null,0,0,null,0,null,null,0,0,1,0,0,0,0]
[null,null,null,null,null,null,0,"-",null,0,null,null,null,0,0,null,0,null,null,0,0,1,0,0,0,0]
[null,0.2,"Major Demolition Works",null,"-",{"$f":"SUM(F108:F122)","v":18705500},{"$f":"IF(AND(F107<>0,$D$31<>0),F107/$D$31,0)","v":438.44372459766447},"-","-",{"$f":"SUM(J108:J122)","v":0},"-","-","-","-",{"$f":"SUM(O108:O122)","v":0},"-",{"$f":"SUM(Q108:Q122)","v":0},"-","-",{"$f":"IF(W107<>0,W107/($F$107+$O$107),0)","v":7.417604447889658E-3},{"$f":"IF(Y107<>0,Y107/($F$107+$O$107),0)","v":0.98932132260565075},{"$f":"1-T107-U107","v":3.2610729464596089E-3},{"$f":"SUM(W108:W122)","v":138750},3.2522021217249444,{"$f":"SUM(Y108:Y122)","v":18505750},433.76172550710913]
[null,0.2,"Major Demolition Works",null,"Concrete Blocks",12435500,{"$f":"IF(AND(F108<>0,$D$31<>0),F108/$D$31,0)","v":291.47934763755347},"-",null,{"$f":"I108*F108","v":0},null,null,null,0,0,null,0,null,null,0,1,0,0,0,12435500,291.47934763755347]
[null,null,null,null,"Brick",5229000,{"$f":"IF(AND(F109<>0,$D$31<>0),F109/$D$31,0)","v":122.5640713117098},"-",null,0,null,null,null,0,0,null,0,null,null,0,1,0,0,0,5229000,122.5640713117098]
[null,null,null,null,"Plaster Products",167000,{"$f":"IF(AND(F110<>0,$D$31<>0),F110/$D$31,0)","v":3.9143621933554287},"-",null,0,null,null,null,0,0,null,0,null,null,0,0.75,0.25,0,0,125250,2.9357716450165716]
[null,null,null,null,"Bitumen",3000,7.0317883712971777E-2,"-",null,0,null,null,null,0,0,null,0,null,null,0,1,0,0,0,3000,7.0317883712971777E-2]
[null,null,null,null,"Metal",300000,7.0317883712971776,"-",null,0,null,null,null,0,0,null,0,null,null,0,1,0,0,0,300000,7.0317883712971776]
[null,null,null,null,"Timber Products",285000,6.6801989527323187,"-",null,0,null,null,null,0,0,null,0,null,null,0,1,0,0,0,285000,6.6801989527323187]
[null,null,null,null,"Ceramic",23000,0.53910377513278362,"-",null,0,null,null,null,0,0,null,0,null,null,0,1,0,0,0,23000,0.53910377513278362]
[null,null,null,null,"Carpet Tiles ",28000,0.65630024798773656,"-",null,0,null,null,null,0,0,null,0,null,null,0,0.35,0.65,0,0,9800,0.22970508679570778]
[null,null,null,null,"Glass",29000,0.67973954255872715,"-",null,0,null,null,null,0,0,null,0,null,null,0,1,0,0,0,29000,0.67973954255872715]
[null,null,null,null,"Plastics",21000,0.49222518599080239,"-",null,0,null,null,null,0,0,null,0,null,null,0,0.95,5.0000000000000044E-2,0,0,19950,0.46761392669126228]
[null,null,null,null,"Stone",185000,4.3362694956332595,"-",null,0,null,null,null,0,0,null,0,null,null,0.75,0.25,0,138750,3.2522021217249444,46250,1.0840673739083149]
[null,null,null,null,null,null,0,"-",null,0,null,null,null,0,0,null,0,null,null,0,0,1,0,0,0,0]
[null,null,null,null,null,null,0,"-",null,0,null,null,null,0,0,null,0,null,null,0,0,1,0,0,0,0]
[null,null,null,null,null,null,0,"-",null,0,null,null,null,0,0,null,0,null,null,0,0,1,0,0,0,0]
[null,null,null,null,null,null,0,"-",null,0,null,null,null,0,0,null,0,null,null,0,0,1,0,0,0,0]
[null,0.3,"Temporary Support to Adjacent Structures",null,"-",{"$f":"SUM(F124:F138)","v":0},{"$f":"IF(AND(F123<>0,$D$31<>0),F123/$D$31,0)","v":0},"-","-",{"$f":"SUM(J124:J138)","v":0},"-","-","-","-",{"$f":"SUM(O124:O138)","v":0},"-",{"$f":"SUM(Q124:Q138)","v":0},"-","-",{"$f":"IF(W123<>0,W123/($F$123+$O$123),0)","v":0},{"$f":"IF(Y123<>0,Y123/($F$123+$O$123),0)","v":0},1,{"$f":"SUM(W124:W138)","v":0},0,{"$f":"SUM(Y124:Y138)","v":0},0]
[null,0.3,"Temporary Support to Adjacent Structures",null,null,null,{"$f":"IF(AND(F124<>0,$D$31<>0),F124/$D$31,0)","v":0},"-",null,{"$f":"I124*F124","v":0},null,null,null,0,0,null,0,null,null,0,0,1,0,0,0,0]
[null,null,null,null,null,null,{"$f":"IF(AND(F125<>0,$D$31<>0),F125/$D$31,0)","v":0},"-",null,0,null,null,null,0,0,null,0,null,null,0,0,1,0,0,0,0]
[null,null,null,null,null,null,{"$f":"IF(AND(F126<>0,$D$31<>0),F126/$D$31,0)","v":0},"-",null,0,null,null,null,0,0,null,0,null,null,0,0,1,0,0,0,0]
[null,null,null,null,null,null,0,"-",null,0,null,null,null,0,0,null,0,null,null,0,0,1,0,0,0,0]
[null,null,null,null,null,null,0,"-",null,0,null,null,null,0,0,null,0,null,null,0,0,1,0,0,0,0]
[null,null,null,null,null,null,0,"-",null,0,null,null,null,0,0,null,0,null,null,0,0,1,0,0,0,0]
[null,null,null,null,null,null,0,"-",null,0,null,null,null,0,0,null,0,null,null,0,0,1,0,0,0,0]
[null,null,null,null,null,null,0,"-",null,0,null,null,null,0,0,null,0,null,null,0,0,1,0,0,0,0]
[null,null,null,null,null,null,0,"-",null,0,null,null,null,0,0,null,0,null,null,0,0,1,0,0,0,0]
[null,null,null,null,null,null,0,"-",null,0,null,null,null,0,0,null,0,null,null,0,0,1,0,0,0,0]
[null,null,null,null,null,null,0,"-",null,0,null,null,null,0,0,null,0,null,null,0,0,1,0,0,0,0]
[null,null,null,null,null,null,0,"-",null,0,null,null,null,0,0,null,0,null,null,0,0,1,0,0,0,0]
[null,null,null,null,null,null,0,"-",null,0,null,null,null,0,0,null,0,null,null,0,0,1,0,0,0,0]
[null,null,null,null,null,null,0,"-",null,0,null,null,null,0,0,null,0,null,null,0,0,1,0,0,0,0]
[null,null,null,null,null,null,0,"-",null,0,null,null,null,0,0,null,0,null,null,0,0,1,0,0,0,0]
[null,0.4,"Specialist Ground Works",null,"-",{"$f":"SUM(F140:F154)","v":0},{"$f":"IF(AND(F139<>0,$D$31<>0),F139/$D$31,0)","v":0},"-","-",{"$f":"SUM(J140:J154)","v":0},"-","-","-","-",{"$f":"SUM(O140:O154)","v":0},"-",{"$f":"SUM(Q140:Q154)","v":0},"-","-",{"$f":"IF(W139<>0,W139/($F$139+$O$139),0)","v":0},{"$f":"IF(Y139<>0,Y139/($F$139+$O$139),0)","v":0},1,{"$f":"SUM(W140:W154)","v":0},0,{"$f":"SUM(Y140:Y154)","v":0},0]
[null,0.4,"Specialist Ground Works",null,null,null,{"$f":"IF(AND(F140<>0,$D$31<>0),F140/$D$31,0)","v":0},"-",null,{"$f":"I140*F140","v":0},null,null,null,0,0,null,0,null,null,0,0,1,0,0,0,0]
[null,null,null,null,null,null,{"$f":"IF(AND(F141<>0,$D$31<>0),F141/$D$31,0)","v":0},"-",null,0,null,null,null,0,0,null,0,null,null,0,0,1,0,0,0,0]
[null,null,null,null,null,null,{"$f":"IF(AND(F142<>0,$D$31<>0),F142/$D$31,0)","v":0},"-",null,0,null,null,null,0,0,null,0,null,null,0,0,1,0,0,0,0]
[null,null,null,null,null,null,0,"-",null,0,null,null,null,0,0,null,0,null,null,0,0,1,0,0,0,0]
[null,null,null,null,null,null,0,"-",null,0,null,null,null,0,0,null,0,null,null,0,0,1,0,0,0,0]
[null,null,null,null,null,null,0,"-",null,0,null,null,null,0,0,null,0,null,null,0,0,1,0,0,0,0]
[null,null,null,null,null,null,0,"-",null,0,null,null,null,0,0,null,0,null,null,0,0,1,0,0,0,0]
[null,null,null,null,null,null,0,"-",null,0,null,null,null,0,0,null,0,null,null,0,0,1,0,0,0,0]
[null,null,null,null,null,null,0,"-",null,0,null,null,null,0,0,null,0,null,null,0,0,1,0,0,0,0]
[null,null,null,null,null,null,0,"-",null,0,null,null,null,0,0,null,0,null,null,0,0,1,0,0,0,0]
[null,null,null,null,null,null,0,"-",null,0,null,null,null,0,0,null,0,null,null,0,0,1,0,0,0,0]
[null,null,null,null,null,null,0,"-",null,0,null,null,null,0,0,null,0,null,null,0,0,1,0,0,0,0]
[null,null,null,null,null,null,0,"-",null,0,null,null,null,0,0,null,0,null,null,0,0,1,0,0,0,0]
[null,null,null,null,null,null,0,"-",null,0,null,null,null,0,0,null,0,null,null,0,0,1,0,0,0,0]
[null,null,null,null,null,null,0,"-",null,0,null,null,null,0,0,null,0,null,null,0,0,1,0,0,0,0]
[null,1,"Substructure",null,"-",{"$f":"SUM(F156:F175)","v":168809184},{"$f":"IF(AND(F155<>0,$D$31<>0),F155/$D$31,0)","v":3956.7681900645516},{"$f":"SUMPRODUCT((C91:D454=\"Substructure\")*G91:G454)","v":3958.8726636883134},"-",{"$f":"SUM(J156:J175)","v":3327973.6},"-","-","-","-",{"$f":"SUM(O156:O175)","v":0.24000000000000002},"-",{"$f":"SUM(Q156:Q175)","v":0},"-","-",{"$f":"IF(W155<>0,W155/($F$155+$O$155),0)","v":0},{"$f":"IF(Y155<>0,Y155/($F$155+$O$155),0)","v":0.89488093736196583},0.10511906263803417,{"$f":"SUM(W156:W175)","v":0},0,{"$f":"SUM(Y156:Y175)","v":151064121.028},3540.8364318830659]
[null,1,"Substructure",null,"Elastomeric foam insulation ",89784,{"$f":"IF(AND(F156<>0,$D$31<>0),F156/$D$31,0)","v":2.1044736237618191},"-",0.05,{"$f":"I156*F156","v":4489.2},{"$f":"F156*L156","v":17956.8},0.2,30,2,0.1,null,0,"Yes",1,0,0.95,5.0000000000000044E-2,0,0,85294.895000000004,1.9992521693067127]
[null,null,null,null,"EPS Insulation ",17600,{"$f":"IF(AND(F157<>0,$D$31<>0),F157/$D$31,0)","v":0.41253158444943439},"-",0.05,880,{"$f":"F157*L157","v":3520},0.2,30,{"$f":"IF(M157<>0,INT(60/M157),0)","v":2},{"$f":"N157*I157","v":0.1},null,{"$f":"P157*M157","v":0},"Yes",1,0,0.95,{"$f":"1-T157-U157","v":5.0000000000000044E-2},{"$f":"T157*(F157+O157)","v":0},{"$f":"IF(AND(W157<>0,$D$31<>0),W157/$D$31,0)","v":0},{"$f":"U157*(F157+O157)","v":16720.094999999998},0.39190723195994687]
[null,null,null,null,"Ready Mix Concrete",86676480,{"$f":"IF(AND(F158<>0,$D$31<>0),F158/$D$31,0)","v":2031.6355470965746},"-",0.03,2600294.3999999999,17335296,0.2,60,1,0.03,null,0,"No",2,0,0.95,5.0000000000000044E-2,0,0,82342656.028499991,1930.0537704097655]
[null,null,null,null,"Reinforcement Steel ",72231000,1693.0436861572214,"-",0.01,722310,14446200,0.2,60,1,0.01,null,0,"No",1,0,0.95,5.0000000000000044E-2,0,0,68619450.009499997,1608.3915020720335]
[null,null,null,null,null,9794320,229.57195160254457,"-",null,0,null,null,null,0,0,null,0,null,null,0,0,1,0,0,0,0]
[null,null,null,null,null,null,0,"-",null,0,null,null,null,0,0,null,0,null,null,0,0,1,0,0,0,0]
[null,null,null,null,null,null,0,"-",null,0,null,null,null,0,0,null,0,null,null,0,0,1,0,0,0,0]
[null,null,null,null,null,null,0,"-",null,0,null,null,null,0,0,null,0,null,null,0,0,1,0,0,0,0]
[null,null,null,null,null,null,0,"-",null,0,null,null,null,0,0,null,0,null,null,0,0,1,0,0,0,0]
[null,null,null,null,null,null,0,"-",null,0,null,null,null,0,0,null,0,null,null,0,0,1,0,0,0,0]
[null,null,null,null,null,null,0,"-",null,0,null,null,null,0,0,null,0,null,null,0,0,1,0,0,0,0]
[null,null,null,null,null,null,0,"-",null,0,null,null,null,0,0,null,0,null,null,0,0,1,0,0,0,0]
[null,null,null,null,null,null,0,"-",null,0,null,null,null,0,0,null,0,null,null,0,0,1,0,0,0,0]
[null,null,null,null,null,null,0,"-",null,0,null,null,null,0,0,null,0,null,null,0,0,1,0,0,0,0]
[null,null,null,null,null,null,{"$f":"IF(AND(F170<>0,$D$31<>0),F170/$D$31,0)","v":0},"-",null,0,null,null,null,0,0,null,0,null,null,0,0,1,0,0,0,0]
[null,null,null,null,null,null,{"$f":"IF(AND(F171<>0,$D$31<>0),F171/$D$31,0)","v":0},"-",null,0,null,null,null,0,0,null,0,null,null,0,0,1,0,0,0,0]
[null,null,null,null,null,null,{"$f":"IF(AND(F172<>0,$D$31<>0),F172/$D$31,0)","v":0},"-",null,0,null,null,null,0,0,null,0,null,null,0,0,1,0,0,0,0]
[null,null,null,null,null,null,0,"-",null,0,null,null,null,0,0,null,0,null,null,0,0,1,0,0,0,0]
[null,null,null,null,null,null,0,"-",null,0,null,null,null,0,0,null,0,null,null,0,0,1,0,0,0,0]
[null,null,null,null,null,null,{"$f":"IF(AND(F175<>0,$D$31<>0),F175/$D$31,0)","v":0},"-",null,0,null,null,null,0,0,null,0,null,null,0,0,1,0,0,0,0]
[null,2.1,"Superstructure: Frame",null,"-",{"$f":"SUM(F177:F196)","v":3862000},{"$f":"IF(AND(F176<>0,$D$31<>0),F176/$D$31,0)","v":90.522555633165666},{"$f":"SUMPRODUCT((C91:D454=\"Superstructure: Frame\")*G91:G454)","v":178.76212397511685},"-",{"$f":"SUM(J177:J196)","v":113912},"-","-","-","-",{"$f":"SUM(O177:O196)","v":0.04},"-",{"$f":"SUM(Q177:Q196)","v":0},"-","-",{"$f":"IF(W176<>0,W176/($F$176+$O$176),0)","v":0},{"$f":"IF(Y176<>0,Y176/($F$176+$O$176),0)","v":0.95},5.0000000000000044E-2,{"$f":"SUM(W177:W196)","v":0},0,{"$f":"SUM(Y177:Y196)","v":3668900.0379999997},85.996428742200564]
[null,2.1,"Superstructure: Frame",null,"Ready Mix Concrete",3764600,{"$f":"IF(AND(F177<>0,$D$31<>0),F177/$D$31,0)","v":88.239568341951184},"-",0.03,{"$f":"I177*F177","v":112938},{"$f":"F177*L177","v":752920},0.2,60,1,0.03,null,0,"No",3,0,0.95,5.0000000000000044E-2,0,0,3576370.0284999995,83.827590592873506]
[null,null,null,null,"Reinformcement steel ",97400,{"$f":"IF(AND(F178<>0,$D$31<>0),F178/$D$31,0)","v":2.2829872912144835},"-",0.01,974,19480,0.2,60,1,0.01,null,0,"No",1,0,0.95,5.0000000000000044E-2,0,0,92530.009499999986,2.1688381493270574]
[null,null,null,null,null,null,{"$f":"IF(AND(F179<>0,$D$31<>0),F179/$D$31,0)","v":0},"-",null,0,null,null,null,0,0,null,0,null,null,0,0,1,0,0,0,0]
[null,null,null,null,null,null,0,"-",null,0,null,null,null,0,0,null,0,null,null,0,0,1,0,0,0,0]
[null,null,null,null,null,null,0,"-",null,0,null,null,null,0,0,null,0,null,null,0,0,1,0,0,0,0]
[null,null,null,null,null,null,0,"-",null,0,null,null,null,0,0,null,0,null,null,0,0,1,0,0,0,0]
[null,null,null,null,null,null,0,"-",null,0,null,null,null,0,0,null,0,null,null,0,0,1,0,0,0,0]
[null,null,null,null,null,null,0,"-",null,0,null,null,null,0,0,null,0,null,null,0,0,1,0,0,0,0]
[null,null,null,null,null,null,0,"-",null,0,null,null,null,0,0,null,0,null,null,0,0,1,0,0,0,0]
[null,null,null,null,null,null,0,"-",null,0,null,null,null,0,0,null,0,null,null,0,0,1,0,0,0,0]
[null,null,null,null,null,null,0,"-",null,0,null,null,null,0,0,null,0,null,null,0,0,1,0,0,0,0]
[null,null,null,null,null,null,0,"-",null,0,null,null,null,0,0,null,0,null,null,0,0,1,0,0,0,0]
[null,null,null,null,null,null,0,"-",null,0,null,null,null,0,0,null,0,null,null,0,0,1,0,0,0,0]
[null,null,null,null,null,null,0,"-",null,0,null,null,null,0,0,null,0,null,null,0,0,1,0,0,0,0]
[null,null,null,null,null,null,{"$f":"IF(AND(F191<>0,$D$31<>0),F191/$D$31,0)","v":0},"-",null,0,null,null,null,0,0,null,0,null,null,0,0,1,0,0,0,0]
[null,null,null,null,null,null,{"$f":"IF(AND(F192<>0,$D$31<>0),F192/$D$31,0)","v":0},"-",null,0,null,null,null,0,0,null,0,null,null,0,0,1,0,0,0,0]
[null,null,null,null,null,null,{"$f":"IF(AND(F193<>0,$D$31<>0),F193/$D$31,0)","v":0},"-",null,0,null,null,null,0,0,null,0,null,null,0,0,1,0,0,0,0]
[null,null,null,null,null,null,{"$f":"IF(AND(F194<>0,$D$31<>0),F194/$D$31,0)","v":0},"-",null,0,null,null,null,0,0,null,0,null,null,0,0,1,0,0,0,0]
[null,null,null,null,null,null,0,"-",null,0,null,null,null,0,0,null,0,null,null,0,0,1,0,0,0,0]
[null,null,null,null,null,null,0,"-",null,0,null,null,null,0,0,null,0,null,null,0,0,1,0,0,0,0]
[null,2.2000000000000002,"Superstructure: Upper Floors",null,"-",{"$f":"SUM(F198:F217)","v":31948304},{"$f":"IF(AND(F197<>0,$D$31<>0),F197/$D$31,0)","v":748.84570849955696},{"$f":"SUMPRODUCT((C176:D459=\"Superstructure: Upper Floors\")*G176:G459)","v":749.44580131916348},"-",{"$f":"SUM(J198:J217)","v":1076390.4599999997},"-","-","-","-",{"$f":"SUM(O198:O217)","v":1.4700000000000004},"-",{"$f":"SUM(Q198:Q217)","v":0},"-","-",{"$f":"IF(W197<>0,W197/($F$197+$O$197),0)","v":0},{"$f":"IF(Y197<>0,Y197/($F$197+$O$197),0)","v":0.95000000000000007},4.9999999999999933E-2,{"$f":"SUM(W198:W217)","v":0},0,{"$f":"SUM(Y198:Y217)","v":30350890.1965},711.403455807554]
[null,2.2000000000000002,"Superstructure: Upper Floors",null,"Asphalt",25602,{"$f":"IF(AND(F198<>0,$D$31<>0),F198/$D$31,0)","v":0.60009281960650107},"-",0.03,{"$f":"I198*F198","v":768.06},{"$f":"F198*L198","v":5120.4000000000005},0.2,60,1,0.03,null,0,"Yes",3,0,0.95,5.0000000000000044E-2,0,0,24321.928499999998,0.57008884664607129]
[null,null,null,null,"Carpet Tiles ",612232,{"$f":"IF(AND(F199<>0,$D$31<>0),F199/$D$31,0)","v":14.350286193786712},"-",0.2,122446.40000000001,122446.40000000001,0.2,60,1,0.2,null,0,"Yes","1/4",0,0.95,5.0000000000000044E-2,0,0,581620.59,13.632776337563344]
[null,null,null,null,"Cement Screed ",63600,{"$f":"IF(AND(F200<>0,$D$31<>0),F200/$D$31,0)","v":1.4907391347150016},"-",0.03,1908,12720,0.2,20,3,0.09,null,0,"No",3,0,0.95,5.0000000000000044E-2,0,0,60420.085499999994,1.4162041820389371]
[null,null,null,null,"Chipbaord",57742,1.3534317471181387,"-",0.15,8661.2999999999993,11548.400000000001,0.2,20,3,0.44999999999999996,null,0,"Yes",1,0,0.95,5.0000000000000044E-2,0,0,54855.327499999992,1.2857701800606607]
[null,null,null,null,"Gypsum Plaster Board ",416137,9.7539577248883109,"-",0.15,62420.549999999996,83227.400000000009,0.2,30,2,0.3,null,0,"Yes",1,0,0.95,5.0000000000000044E-2,0,0,395330.435,9.2662665188428477]
[null,null,null,null,"Leveling Screed and Render",12090,0.28338107136327623,"-",0.03,362.7,2418,0.2,30,2,0.06,null,0,"Yes",1,0,0.95,5.0000000000000044E-2,0,0,11485.556999999999,0.26921335383490297]
[null,null,null,null,"PIR Insulation Boards",728,1.706380644768115E-2,"-",0.05,36.4,145.6,0.2,30,2,0.1,null,0,"Yes",1,0,0.95,5.0000000000000044E-2,0,0,691.69499999999994,1.6212842858281337E-2]
[null,null,null,null,"Ready Mix Concrete",28511600,668.29179109025529,"-",0.03,855348,5702320,0.2,60,1,0.03,null,0,"No",3,0,0.95,5.0000000000000044E-2,0,0,27086020.028499998,634.87720220376241]
[null,null,null,null,"Reinforcement Steel",2199740,51.560353839590839,"-",0.01,21997.4,439948,0.2,60,1,0.01,null,0,"No",1,0,0.95,5.0000000000000044E-2,0,0,2089753.0094999997,48.982336370284592]
[null,null,null,null,"Sandwich Panel with Insulation",1138,2.6673917221787292E-2,"-",0.05,56.900000000000006,227.60000000000002,0.2,30,2,0.1,null,0,"Yes",1,0,0.95,5.0000000000000044E-2,0,0,1081.1949999999999,2.534244809368217E-2]
[null,null,null,null,"Structual Sawn Timber",47695,1.1179371545633963,"-",0.05,2384.75,9539,0.2,30,2,0.1,null,0,"Yes",1,0,0.95,5.0000000000000044E-2,0,0,45310.344999999994,1.0620425235682105]
[null,null,null,null,null,null,0,"-",null,0,null,null,null,0,0,null,0,null,null,0,0,1,0,0,0,0]
[null,null,null,null,null,null,0,"-",null,0,null,null,null,0,0,null,0,null,null,0,0,1,0,0,0,0]
[null,null,null,null,null,null,0,"-",null,0,null,null,null,0,0,null,0,null,null,0,0,1,0,0,0,0]
[null,null,null,null,null,null,{"$f":"IF(AND(F212<>0,$D$31<>0),F212/$D$31,0)","v":0},"-",null,0,null,null,null,0,0,null,0,null,null,0,0,1,0,0,0,0]
[null,null,null,null,null,null,{"$f":"IF(AND(F213<>0,$D$31<>0),F213/$D$31,0)","v":0},"-",null,0,null,null,null,0,0,null,0,null,null,0,0,1,0,0,0,0]
[null,null,null,null,null,null,{"$f":"IF(AND(F214<>0,$D$31<>0),F214/$D$31,0)","v":0},"-",null,0,null,null,null,0,0,null,0,null,null,0,0,1,0,0,0,0]
[null,null,null,null,null,null,{"$f":"IF(AND(F215<>0,$D$31<>0),F215/$D$31,0)","v":0},"-",null,0,null,null,null,0,0,null,0,null,null,0,0,1,0,0,0,0]
[null,null,null,null,null,null,0,"-",null,0,null,null,null,0,0,null,0,null,null,0,0,1,0,0,0,0]
[null,null,null,null,null,null,0,"-",null,{"$f":"I217*F217","v":0},null,null,null,0,0,null,0,null,null,0,0,1,0,0,0,0]
[null,2.2999999999999998,"Superstructure: Roof",null,"-",{"$f":"SUM(F219:F238)","v":9322238},{"$f":"IF(AND(F218<>0,$D$31<>0),F218/$D$31,0)","v":218.50668254288217},{"$f":"SUMPRODUCT((C91:D454=\"Superstructure: Roof\")*G91:G454)","v":218.50984684764927},"-",{"$f":"SUM(J219:J238)","v":368868.94},"-","-","-","-",{"$f":"SUM(O219:O238)","v":1.4400000000000004},"-",{"$f":"SUM(Q219:Q238)","v":0},"-","-",{"$f":"IF(W218<>0,W218/($F$218+$O$218),0)","v":0},{"$f":"IF(Y218<>0,Y218/($F$218+$O$218),0)","v":0.95000000000000007},4.9999999999999933E-2,{"$f":"SUM(W219:W238)","v":0},0,{"$f":"SUM(Y219:Y238)","v":8856127.4680000003},207.58138048069304]
[null,2.2999999999999998,"Superstructure: Roof",null,"Aluminium Roofing",135,{"$f":"IF(AND(F219<>0,$D$31<>0),F219/$D$31,0)","v":3.1643047670837296E-3},"-",0.03,{"$f":"I219*F219","v":4.05},{"$f":"F219*L219","v":27},0.2,30,2,0.06,null,0,"Yes",1,0,0.95,5.0000000000000044E-2,0,0,128.30699999999999,3.0074255685200893E-3]
[null,null,null,null,"Asphalt",623246,{"$f":"IF(AND(F220<>0,$D$31<>0),F220/$D$31,0)","v":14.608446584191602},"-",0.03,18697.38,124649.20000000001,0.2,30,2,0.06,null,0,"No",3,0,0.95,5.0000000000000044E-2,0,0,592083.75699999998,13.878025591021812]
[null,null,null,null,"Cement Screed ",2291913,{"$f":"IF(AND(F221<>0,$D$31<>0),F221/$D$31,0)","v":53.720823938082759},"-",0.03,68757.39,458382.60000000003,0.2,20,{"$f":"IF(M221<>0,INT(60/M221),0)","v":3},{"$f":"N221*I221","v":0.09},null,{"$f":"P221*M221","v":0},"No",3,0,0.95,{"$f":"1-T221-U221","v":5.0000000000000044E-2},{"$f":"T221*(F221+O221)","v":0},{"$f":"IF(AND(W221<>0,$D$31<>0),W221/$D$31,0)","v":0},{"$f":"U221*(F221+O221)","v":2177317.4354999997},51.034784745238298]
[null,null,null,null,"Coated Fibre Cement Plates",19253,0.45127673837528182,"-",0.03,577.59,3850.6000000000004,0.2,20,3,0.09,null,0,"Yes",1,0,0.95,5.0000000000000044E-2,0,0,18290.4355,0.42871490551620356]
[null,null,null,null,"Composite Wood Flooring",43760,1.0257035304265483,"-",0.03,1312.8,8752,0.2,10,6,0.18,null,0,"Yes","1/4",0,0.95,5.0000000000000044E-2,0,0,41572.170999999995,0.97442236202459231]
[null,null,null,null,"Double Glazing Windows ",184,4.3128302010622685E-3,"-",0.01,1.84,36.800000000000004,0.2,30,2,0.02,null,0,"Yes","4/5",0,0.95,5.0000000000000044E-2,0,0,174.81899999999999,4.0976340376060036E-3]
[null,null,null,null,"Gypsum Plaster Board ",783878,18.373547349718962,"-",0.15,117581.7,156775.6,0.2,30,2,0.3,null,0,"Yes",1,0,0.95,5.0000000000000044E-2,0,0,744684.38500000001,17.454876662431968]
[null,null,null,null,"Oriented Strand Board",8523,0.1997731076285528,"-",0.15,1278.45,1704.6000000000001,0.2,30,2,0.3,null,0,"Yes",1,0,0.95,5.0000000000000044E-2,0,0,8097.1349999999993,0.18979113244607787]
[null,null,null,null,"PIR Insulation Boards",30693,0.71942226826741418,"-",0.05,1534.65,6138.6,0.2,30,2,0.1,null,0,"Yes",1,0,0.95,5.0000000000000044E-2,0,0,29158.444999999996,0.68345338158702762]
[null,null,null,null,"Ready Mix Concrete",5083440,119.1522475939564,"-",0.03,152503.19999999998,1016688,0.2,60,1,0.03,null,0,"No",3,0,0.95,5.0000000000000044E-2,0,0,4829268.0285,113.19463588227849]
[null,null,null,null,"Reinforcement Steel",381019,8.9308165781442632,"-",0.01,3810.19,76203.8,0.2,60,1,0.01,null,0,"No",1,0,0.95,5.0000000000000044E-2,0,0,361968.05949999997,8.484275971910348]
[null,null,null,null,"Sandwich Panel with Insulation",31813,0.74567427818692367,"-",0.05,1590.65,6362.6,0.2,30,2,0.1,null,0,"Yes",1,0,0.95,5.0000000000000044E-2,0,0,30222.444999999996,0.70839279101056163]
[null,null,null,null,"Structual Sawn Timber",24381,0.5714734409353216,"-",0.05,1219.05,4876.2,0.2,30,2,0.1,null,0,"Yes","1/4",0,0.95,5.0000000000000044E-2,0,0,23162.044999999998,0.54290199562153973]
[null,null,null,null,null,null,0,"-",null,0,null,null,null,0,0,null,0,null,null,0,0,1,0,0,0,0]
[null,null,null,null,null,null,{"$f":"IF(AND(F233<>0,$D$31<>0),F233/$D$31,0)","v":0},"-",null,0,null,null,null,0,0,null,0,null,null,0,0,1,0,0,0,0]
[null,null,null,null,null,null,{"$f":"IF(AND(F234<>0,$D$31<>0),F234/$D$31,0)","v":0},"-",null,0,null,null,null,0,0,null,0,null,null,0,0,1,0,0,0,0]
[null,null,null,null,null,null,{"$f":"IF(AND(F235<>0,$D$31<>0),F235/$D$31,0)","v":0},"-",null,0,null,null,null,0,0,null,0,null,null,0,0,1,0,0,0,0]
[null,null,null,null,null,null,{"$f":"IF(AND(F236<>0,$D$31<>0),F236/$D$31,0)","v":0},"-",null,0,null,null,null,0,0,null,0,null,null,0,0,1,0,0,0,0]
[null,null,null,null,null,null,0,"-",null,0,null,null,null,0,0,null,0,null,null,0,0,1,0,0,0,0]
[null,null,null,null,null,null,0,"-",null,0,null,null,null,0,0,null,0,null,null,0,0,1,0,0,0,0]
[null,2.4,"Superstructure: Stairs and Ramps",null,"-",{"$f":"SUM(F240:F254)","v":1258370},{"$f":"IF(AND(F239<>0,$D$31<>0),F239/$D$31,0)","v":29.49530510929743},"-","-",{"$f":"SUM(J240:J254)","v":0},"-","-","-","-",{"$f":"SUM(O240:O254)","v":0},"-",{"$f":"SUM(Q240:Q254)","v":0},"-","-",{"$f":"IF(W239<>0,W239/($F$239+$O$239),0)","v":0},{"$f":"IF(Y239<>0,Y239/($F$239+$O$239),0)","v":0.95},5.0000000000000044E-2,{"$f":"SUM(W240:W254)","v":0},0,{"$f":"SUM(Y240:Y254)","v":1195451.5},28.02053985383256]
[null,2.4,"Superstructure: Stairs and Ramps",null,"Ready Mix Concrete ",1231200,{"$f":"IF(AND(F240<>0,$D$31<>0),F240/$D$31,0)","v":28.858459475803617},"-",0,{"$f":"I240*F240","v":0},{"$f":"F240*L240","v":246240},0.2,60,1,0,null,0,"No",3,0,0.95,5.0000000000000044E-2,0,0,1169640,27.415536502013435]
[null,null,null,null,"Reinforcement Steel ",27170,{"$f":"IF(AND(F241<>0,$D$31<>0),F241/$D$31,0)","v":0.6368456334938144},"-",0,0,5434,0.2,60,1,0,null,0,"No",1,0,0.95,5.0000000000000044E-2,0,0,25811.5,0.60500335181912368]
[null,null,null,null,null,null,{"$f":"IF(AND(F242<>0,$D$31<>0),F242/$D$31,0)","v":0},"-",null,0,null,null,null,0,0,null,0,null,null,0,0,1,0,0,0,0]
[null,null,null,null,null,null,0,"-",null,0,null,null,null,0,0,null,0,null,null,0,0,1,0,0,0,0]
[null,null,null,null,null,null,0,"-",null,0,null,null,null,0,0,null,0,null,null,0,0,1,0,0,0,0]
[null,null,null,null,null,null,0,"-",null,0,null,null,null,0,0,null,0,null,null,0,0,1,0,0,0,0]
[null,null,null,null,null,null,0,"-",null,0,null,null,null,0,0,null,0,null,null,0,0,1,0,0,0,0]
[null,null,null,null,null,null,0,"-",null,0,null,null,null,0,0,null,0,null,null,0,0,1,0,0,0,0]
[null,null,null,null,null,null,0,"-",null,0,null,null,null,0,0,null,0,null,null,0,0,1,0,0,0,0]
[null,null,null,null,null,null,0,"-",null,0,null,null,null,0,0,null,0,null,null,0,0,1,0,0,0,0]
[null,null,null,null,null,null,0,"-",null,0,null,null,null,0,0,null,0,null,null,0,0,1,0,0,0,0]
[null,null,null,null,null,null,0,"-",null,0,null,null,null,0,0,null,0,null,null,0,0,1,0,0,0,0]
[null,null,null,null,null,null,0,"-",null,0,null,null,null,0,0,null,0,null,null,0,0,1,0,0,0,0]
[null,null,null,null,null,null,0,"-",null,0,null,null,null,0,0,null,0,null,null,0,0,1,0,0,0,0]
[null,null,null,null,null,null,{"$f":"IF(AND(F254<>0,$D$31<>0),F254/$D$31,0)","v":0},"-",null,0,null,null,null,0,0,null,0,null,null,0,0,1,0,0,0,0]
[null,2.5,"Superstructure: External Walls",null,"-",{"$f":"SUM(F256:F275)","v":7910309},{"$f":"IF(AND(F255<>0,$D$31<>0),F255/$D$31,0)","v":185.412062798558},{"$f":"SUMPRODUCT((C91:D454=\"Superstructure: External Walls\")*G91:G454)+SUMPRODUCT((C91:D454=\"Superstructure: Windows and External Doors\")*G91:G454)","v":213.77616411256486},"-",{"$f":"SUM(J256:J275)","v":337841.38999999996},"-","-","-","-",{"$f":"SUM(O256:O275)","v":1.2600000000000002},"-",{"$f":"SUM(Q256:Q275)","v":0},"-","-",{"$f":"IF(W255<>0,W255/($F$255+$O$255),0)","v":0},{"$f":"IF(Y255<>0,Y255/($F$255+$O$255),0)","v":0.95},5.0000000000000044E-2,{"$f":"SUM(W256:W275)","v":0},0,{"$f":"SUM(Y256:Y275)","v":7514794.7469999995},176.1414877154657]
[null,2.5,"Superstructure: External Walls",null,"Concrete Blocks",478332,{"$f":"IF(AND(F256<>0,$D$31<>0),F256/$D$31,0)","v":11.211764650731071},"-",0.05,{"$f":"I256*F256","v":23916.600000000002},{"$f":"F256*L256","v":95666.400000000009},0.2,60,1,0.05,null,0,"Yes","3/4/5",0,0.95,5.0000000000000044E-2,0,0,454415.44749999995,10.651177531561009]
[null,null,null,null,"Fibre Cement Boards ",301869,{"$f":"IF(AND(F257<>0,$D$31<>0),F257/$D$31,0)","v":7.0755964128503583},"-",0.05,15093.45,60373.8,0.2,30,2,0.1,null,0,"Yes",1,0,0.95,5.0000000000000044E-2,0,0,286775.64499999996,6.7218188189408243]
[null,null,null,null,"Gypsum Plaster Board ",66947,{"$f":"IF(AND(F258<>0,$D$31<>0),F258/$D$31,0)","v":1.569190453644107},"-",0.15,10042.049999999999,13389.400000000001,0.2,30,2,0.3,null,0,"Yes",1,0,0.95,5.0000000000000044E-2,0,0,63599.934999999998,1.4907376111608543]
[null,null,null,null,"Large Fibre Cement Sheets ",2714,6.3614245465668462E-2,"-",0.05,135.70000000000002,542.80000000000007,0.2,30,2,0.1,null,0,"Yes",1,0,0.95,5.0000000000000044E-2,0,0,2578.395,6.0435759925369287E-2]
[null,null,null,null,"Ready Mix Concrete ",1764000,41.346915623227403,"-",0.03,52920,352800,0.2,60,1,0.03,null,0,"No",3,0,0.95,5.0000000000000044E-2,0,0,1675800.0285,39.279570510085925]
[null,null,null,null,"Red Brick ",4271586,100.12296253931942,"-",0.05,213579.30000000002,854317.20000000007,0.2,60,1,0.05,null,0,"Yes","4/5",0,0.95,5.0000000000000044E-2,0,0,4058006.7474999996,95.116815525719929]
[null,null,null,null,"Reinforcement Steel ",723300,16.953641763197496,"-",0.01,7233,144660,0.2,60,1,0.01,null,0,"No",1,0,0.95,5.0000000000000044E-2,0,0,687135.00949999993,16.105959897710918]
[null,null,null,null,"Rock Wool Insulation ",1102,2.5830102617231631E-2,"-",0.05,55.1,220.4,0.2,30,2,0.1,null,0,"Yes",1,0,0.95,5.0000000000000044E-2,0,0,1046.9949999999999,2.4540824219354291E-2]
[null,null,null,null,"Rock Wool/Mineral Wool ",162951,3.8194564896374876,"-",0.05,8147.55,32590.2,0.2,30,2,0.1,null,0,"Yes",1,0,0.95,5.0000000000000044E-2,0,0,154803.54500000001,3.628485891888598]
[null,null,null,null,"Sandwich Panel with Insulation ",72560,1.7007552140710773,"-",0.05,3628,14512,0.2,30,2,0.1,null,0,"Yes",1,0,0.95,5.0000000000000044E-2,0,0,68932.095000000001,1.6157196801005076]
[null,null,null,null,"Steel Stud",60427,1.4163662530412484,"-",0.05,3021.3500000000004,12085.400000000001,0.2,30,2,0.1,null,0,"Yes",1,0,0.95,5.0000000000000044E-2,0,0,57405.744999999995,1.3455501671221701]
[null,null,null,null,"Structual Sawn Timber ",602,1.4110455331736335E-2,"-",0.05,30.1,120.4,0.2,30,2,0.1,null,0,"Yes",1,0,0.95,5.0000000000000044E-2,0,0,571.995,1.3407159298133763E-2]
[null,null,null,null,"Wood flooring ",1664,3.9002986166128344E-2,"-",0.01,16.64,332.8,0.2,10,6,0.06,null,0,"Yes","1/4",0,0.95,5.0000000000000044E-2,0,0,1580.857,3.7054172897612474E-2]
[null,null,null,null,"Wooden Decking ",2255,5.2855609257583779E-2,"-",0.01,22.55,451,0.2,10,6,0.06,null,0,"Yes","1/4",0,0.95,5.0000000000000044E-2,0,0,2142.3069999999998,5.0214164834495131E-2]
[null,null,null,null,null,null,{"$f":"IF(AND(F270<>0,$D$31<>0),F270/$D$31,0)","v":0},"-",null,0,null,null,null,0,0,null,0,null,null,0,0,1,0,0,0,0]
[null,null,null,null,null,null,{"$f":"IF(AND(F271<>0,$D$31<>0),F271/$D$31,0)","v":0},"-",null,0,null,null,null,0,0,null,0,null,null,0,0,1,0,0,0,0]
[null,null,null,null,null,null,{"$f":"IF(AND(F272<>0,$D$31<>0),F272/$D$31,0)","v":0},"-",null,0,null,null,null,0,0,null,0,null,null,0,0,1,0,0,0,0]
[null,null,null,null,null,null,{"$f":"IF(AND(F273<>0,$D$31<>0),F273/$D$31,0)","v":0},"-",null,0,null,null,null,0,0,null,0,null,null,0,0,1,0,0,0,0]
[null,null,null,null,null,null,0,"-",null,0,null,null,null,0,0,null,0,null,null,0,0,1,0,0,0,0]
[null,null,null,null,null,null,0,"-",null,0,null,null,null,0,0,null,0,null,null,0,0,1,0,0,0,0]
[null,2.6,"Superstructure: Windows and External Doors",null,"-",{"$f":"SUM(F277:F291)","v":541675},{"$f":"IF(AND(F276<>0,$D$31<>0),F276/$D$31,0)","v":12.696479886741328},{"$f":"SUMPRODUCT((C91:D454=\"Superstructure: External Walls\")*G91:G454)+SUMPRODUCT((C91:D454=\"Superstructure: Windows and External Doors\")*G91:G454)","v":213.77616411256486},"-",{"$f":"SUM(J277:J291)","v":5416.75},"-","-","-","-",{"$f":"SUM(O277:O291)","v":0.06},"-",{"$f":"SUM(Q277:Q291)","v":0},"-","-",{"$f":"IF(W276<>0,W276/($F$276+$O$276),0)","v":0},{"$f":"IF(Y276<>0,Y276/($F$276+$O$276),0)","v":0.94999999999999984},5.0000000000000155E-2,{"$f":"SUM(W277:W291)","v":0},0,{"$f":"SUM(Y277:Y291)","v":514591.30699999997},12.061657228444052]
[null,2.6,"Superstructure: Windows and External Doors",null,"Interior Wooden Door ",190102,{"$f":"IF(AND(F277<>0,$D$31<>0),F277/$D$31,0)","v":4.4558567765344534},"-",0.01,1901.02,{"$f":"F277*L277","v":38020.400000000001},0.2,30,2,0.02,null,0,"Yes","4/5",0,0.95,5.0000000000000044E-2,0,0,180596.91899999999,4.2330643830543275]
[null,null,null,null,"Aluminium Frame Glazed Doors ",348703,{"$f":"IF(AND(F278<>0,$D$31<>0),F278/$D$31,0)","v":8.1733523347881327},"-",0.01,3487.03,69740.600000000006,0.2,30,2,0.02,null,0,"Yes","4/5",0,0.95,5.0000000000000044E-2,0,0,331267.86900000001,7.7646851633953222]
[null,null,null,null,"Aluminium Door System ",2870,{"$f":"IF(AND(F279<>0,$D$31<>0),F279/$D$31,0)","v":6.727077541874299E-2},"-",0.01,28.7,574,0.2,30,2,0.02,null,0,"Yes","4/5",0,0.95,5.0000000000000044E-2,0,0,2726.5189999999998,6.3907681994402693E-2]
[null,null,null,null,null,null,0,"-",null,0,null,null,null,0,0,null,0,null,null,0,0,1,0,0,0,0]
[null,null,null,null,null,null,0,"-",null,0,null,null,null,0,0,null,0,null,null,0,0,1,0,0,0,0]
[null,null,null,null,null,null,0,"-",null,0,null,null,null,0,0,null,0,null,null,0,0,1,0,0,0,0]
[null,null,null,null,null,null,0,"-",null,0,null,null,null,0,0,null,0,null,null,0,0,1,0,0,0,0]
[null,null,null,null,null,null,0,"-",null,0,null,null,null,0,0,null,0,null,null,0,0,1,0,0,0,0]
[null,null,null,null,null,null,0,"-",null,0,null,null,null,{"$f":"IF(M285<>0,INT(60/M285),0)","v":0},{"$f":"N285*I285","v":0},null,{"$f":"P285*M285","v":0},null,null,0,0,{"$f":"1-T285-U285","v":1},{"$f":"T285*(F285+O285)","v":0},{"$f":"IF(AND(W285<>0,$D$31<>0),W285/$D$31,0)","v":0},{"$f":"U285*(F285+O285)","v":0},0]
[null,null,null,null,null,null,0,"-",null,0,null,null,null,0,0,null,0,null,null,0,0,1,0,0,0,0]
[null,null,null,null,null,null,0,"-",null,0,null,null,null,0,0,null,0,null,null,0,0,1,0,0,0,0]
[null,null,null,null,null,null,0,"-",null,0,null,null,null,0,0,null,0,null,null,0,0,1,0,0,0,0]
[null,null,null,null,null,null,0,"-",null,0,null,null,null,0,0,null,0,null,null,0,0,1,0,0,0,0]
[null,null,null,null,null,null,0,"-",null,0,null,null,null,0,0,null,0,null,null,0,0,1,0,0,0,0]
[null,null,null,null,null,null,{"$f":"IF(AND(F291<>0,$D$31<>0),F291/$D$31,0)","v":0},"-",null,0,null,null,null,0,0,null,0,null,null,0,0,1,0,0,0,0]
[null,2.7,"Superstructure: Internal Walls and Partitions",null,"-",{"$f":"SUM(F293:F312)","v":0},{"$f":"IF(AND(F292<>0,$D$31<>0),F292/$D$31,0)","v":0},{"$f":"SUMPRODUCT((C91:D454=\"Superstructure: Internal Doors\")*G91:G454)+SUMPRODUCT((C91:D454=\"Superstructure: Internal Walls and Partitions\")*G91:G454)","v":0},"-",{"$f":"SUM(J293:J312)","v":0},"-","-","-","-",{"$f":"SUM(O293:O312)","v":0},"-",{"$f":"SUM(Q293:Q312)","v":0},"-","-",{"$f":"IF(W292<>0,W292/($F$292+$O$292),0)","v":0},{"$f":"IF(Y292<>0,Y292/($F$292+$O$292),0)","v":0},1,{"$f":"SUM(W293:W312)","v":0},0,{"$f":"SUM(Y293:Y312)","v":0},0]
[null,2.7,"Superstructure: Internal Walls and Partitions",null,null,null,{"$f":"IF(AND(F293<>0,$D$31<>0),F293/$D$31,0)","v":0},"-",null,0,null,null,null,0,0,null,0,null,null,0,0,1,0,0,0,0]
[null,null,null,null,null,null,{"$f":"IF(AND(F294<>0,$D$31<>0),F294/$D$31,0)","v":0},"-",null,0,null,null,null,0,0,null,0,null,null,0,0,1,0,0,0,0]
[null,null,null,null,null,null,{"$f":"IF(AND(F295<>0,$D$31<>0),F295/$D$31,0)","v":0},"-",null,0,null,null,null,0,0,null,0,null,null,0,0,1,0,0,0,0]
[null,null,null,null,null,null,0,"-",null,0,null,null,null,0,0,null,0,null,null,0,0,1,0,0,0,0]
[null,null,null,null,null,null,0,"-",null,0,null,null,null,0,0,null,0,null,null,0,0,1,0,0,0,0]
[null,null,null,null,null,null,0,"-",null,0,null,null,null,0,0,null,0,null,null,0,0,1,0,0,0,0]
[null,null,null,null,null,null,0,"-",null,0,null,null,null,0,0,null,0,null,null,0,0,1,0,0,0,0]
[null,null,null,null,null,null,0,"-",null,0,null,null,null,0,0,null,0,null,null,0,0,1,0,0,0,0]
[null,null,null,null,null,null,0,"-",null,0,null,null,null,0,0,null,0,null,null,0,0,1,0,0,0,0]
[null,null,null,null,null,null,0,"-",null,0,null,null,null,0,0,null,0,null,null,0,0,1,0,0,0,0]
[null,null,null,null,null,null,0,"-",null,0,null,null,null,0,0,null,0,null,null,0,0,1,0,0,0,0]
[null,null,null,null,null,null,0,"-",null,0,null,null,null,0,0,null,0,null,null,0,0,1,0,0,0,0]
[null,null,null,null,null,null,0,"-",null,0,null,null,null,0,0,null,0,null,null,0,0,1,0,0,0,0]
[null,null,null,null,null,null,0,"-",null,0,null,null,null,0,0,null,0,null,null,0,0,1,0,0,0,0]
[null,null,null,null,null,null,{"$f":"IF(AND(F307<>0,$D$31<>0),F307/$D$31,0)","v":0},"-",null,0,null,null,null,0,0,null,0,null,null,0,0,1,0,0,0,0]
[null,null,null,null,null,null,{"$f":"IF(AND(F308<>0,$D$31<>0),F308/$D$31,0)","v":0},"-",null,0,null,null,null,0,0,null,0,null,null,0,0,1,0,0,0,0]
[null,null,null,null,null,null,{"$f":"IF(AND(F309<>0,$D$31<>0),F309/$D$31,0)","v":0},"-",null,0,null,null,null,0,0,null,0,null,null,0,0,1,0,0,0,0]
[null,null,null,null,null,null,{"$f":"IF(AND(F310<>0,$D$31<>0),F310/$D$31,0)","v":0},"-",null,0,null,null,null,0,0,null,0,null,null,0,0,1,0,0,0,0]
[null,null,null,null,null,null,0,"-",null,0,null,null,null,0,0,null,0,null,null,0,0,1,0,0,0,0]
[null,null,null,null,null,null,0,"-",null,0,null,null,null,0,0,null,0,null,null,0,0,1,0,0,0,0]
[null,2.8,"Superstructure: Internal Doors",null,"-",{"$f":"SUM(F314:F328)","v":0},{"$f":"IF(AND(F313<>0,$D$31<>0),F313/$D$31,0)","v":0},{"$f":"SUMPRODUCT((C91:D454=\"Superstructure: Internal Doors\")*G91:G454)+SUMPRODUCT((C91:D454=\"Superstructure: Internal Walls and Partitions\")*G91:G454)","v":0},"-",{"$f":"SUM(J314:J328)","v":0},"-","-","-","-",{"$f":"SUM(O314:O328)","v":0},"-",{"$f":"SUM(Q314:Q328)","v":0},"-","-",{"$f":"IF(W313<>0,W313/($F$313+$O$313),0)","v":0},{"$f":"IF(Y313<>0,Y313/($F$313+$O$313),0)","v":0},1,{"$f":"SUM(W314:W328)","v":0},0,{"$f":"SUM(Y314:Y328)","v":0},0]
[null,2.8,"Superstructure: Internal Doors",null,null,null,{"$f":"IF(AND(F314<>0,$D$31<>0),F314/$D$31,0)","v":0},"-",null,0,null,null,null,0,0,null,0,null,null,0,0,1,0,0,0,0]
[null,null,null,null,null,null,{"$f":"IF(AND(F315<>0,$D$31<>0),F315/$D$31,0)","v":0},"-",null,0,null,null,null,0,0,null,0,null,null,0,0,1,0,0,0,0]
[null,null,null,null,null,null,{"$f":"IF(AND(F316<>0,$D$31<>0),F316/$D$31,0)","v":0},"-",null,0,null,null,null,0,0,null,0,null,null,0,0,1,0,0,0,0]
[null,null,null,null,null,null,0,"-",null,0,null,null,null,0,0,null,0,null,null,0,0,1,0,0,0,0]
[null,null,null,null,null,null,0,"-",null,0,null,null,null,0,0,null,0,null,null,0,0,1,0,0,0,0]
[null,null,null,null,null,null,0,"-",null,0,null,null,null,0,0,null,0,null,null,0,0,1,0,0,0,0]
[null,null,null,null,null,null,0,"-",null,{"$f":"I320*F320","v":0},null,null,null,0,0,null,0,null,null,0,0,1,0,0,0,0]
[null,null,null,null,null,null,0,"-",null,0,null,null,null,0,0,null,0,null,null,0,0,1,0,0,0,0]
[null,null,null,null,null,null,0,"-",null,0,null,null,null,0,0,null,0,null,null,0,0,1,0,0,0,0]
[null,null,null,null,null,null,0,"-",null,0,null,null,null,0,0,null,0,null,null,0,0,1,0,0,0,0]
[null,null,null,null,null,null,0,"-",null,0,null,null,null,0,0,null,0,null,null,0,0,1,0,0,0,0]
[null,null,null,null,null,null,0,"-",null,0,null,null,null,0,0,null,0,null,null,0,0,1,0,0,0,0]
[null,null,null,null,null,null,0,"-",null,0,null,null,null,0,0,null,0,null,null,0,0,1,0,0,0,0]
[null,null,null,null,null,null,0,"-",null,0,null,null,null,0,0,null,0,null,null,0,0,1,0,0,0,0]
[null,null,null,null,null,null,{"$f":"IF(AND(F328<>0,$D$31<>0),F328/$D$31,0)","v":0},"-",null,0,null,null,null,0,0,null,0,null,null,0,0,1,0,0,0,0]
[null,3,"Finishes",null,"-",{"$f":"SUM(F330:F349)","v":258540},{"$f":"IF(AND(F329<>0,$D$31<>0),F329/$D$31,0)","v":6.0599952183839072},"-","-",{"$f":"SUM(J330:J349)","v":42251.7},"-","-","-","-",{"$f":"SUM(O330:O349)","v":1.5000000000000002},"-",{"$f":"SUM(Q330:Q349)","v":0},"-","-",{"$f":"IF(W329<>0,W329/($F$329+$O$329),0)","v":0},{"$f":"IF(Y329<>0,Y329/($F$329+$O$329),0)","v":0.95},5.0000000000000044E-2,{"$f":"SUM(W330:W349)","v":0},0,{"$f":"SUM(Y330:Y349)","v":245614.42499999999},5.7570288584594751]
[null,3,"Finishes",null,"Wooven Wall to Wall Carpet ",69414,{"$f":"IF(AND(F330<>0,$D$31<>0),F330/$D$31,0)","v":1.6270151933507409},"-",0.2,13882.800000000001,{"$f":"F330*L330","v":13882.800000000001},0.2,10,6,1.2000000000000002,null,0,"Yes","4/5",0,0.95,5.0000000000000044E-2,0,0,65944.439999999988,1.5456911544790144]
[null,null,null,null,"Gypsum Plaster Board ",189126,{"$f":"IF(AND(F331<>0,$D$31<>0),F331/$D$31,0)","v":4.4329800250331663},"-",0.15,28368.899999999998,37825.200000000004,0.2,30,2,0.3,null,0,"Yes",1,0,0.95,5.0000000000000044E-2,0,0,179669.98499999999,4.2113377039804609]
[null,null,null,null,null,null,{"$f":"IF(AND(F332<>0,$D$31<>0),F332/$D$31,0)","v":0},"-",null,0,null,null,null,0,0,null,0,null,null,0,0,1,0,0,0,0]
[null,null,null,null,null,null,0,"-",null,0,null,null,null,0,0,null,0,null,null,0,0,1,0,0,0,0]
[null,null,null,null,null,null,0,"-",null,0,null,null,null,0,0,null,0,null,null,0,0,1,0,0,0,0]
[null,null,null,null,null,null,0,"-",null,0,null,null,null,0,0,null,0,null,null,0,0,1,0,0,0,0]
[null,null,null,null,null,null,0,"-",null,0,null,null,null,0,0,null,0,null,null,0,0,1,0,0,0,0]
[null,null,null,null,null,null,0,"-",null,0,null,null,null,0,0,null,0,null,null,0,0,1,0,0,0,0]
[null,null,null,null,null,null,0,"-",null,0,null,null,null,0,0,null,0,null,null,0,0,1,0,0,0,0]
[null,null,null,null,null,null,0,"-",null,0,null,null,null,0,0,null,0,null,null,0,0,1,0,0,0,0]
[null,null,null,null,null,null,0,"-",null,0,null,null,null,0,0,null,0,null,null,0,0,1,0,0,0,0]
[null,null,null,null,null,null,0,"-",null,0,null,null,null,0,0,null,0,null,null,0,0,1,0,0,0,0]
[null,null,null,null,null,null,0,"-",null,0,null,null,null,0,0,null,0,null,null,0,0,1,0,0,0,0]
[null,null,null,null,null,null,0,"-",null,0,null,null,null,0,0,null,0,null,null,0,0,1,0,0,0,0]
[null,null,null,null,null,null,{"$f":"IF(AND(F344<>0,$D$31<>0),F344/$D$31,0)","v":0},"-",null,0,null,null,null,0,0,null,0,null,null,0,0,1,0,0,0,0]
[null,null,null,null,null,null,{"$f":"IF(AND(F345<>0,$D$31<>0),F345/$D$31,0)","v":0},"-",null,0,null,null,null,0,0,null,0,null,null,0,0,1,0,0,0,0]
[null,null,null,null,null,null,{"$f":"IF(AND(F346<>0,$D$31<>0),F346/$D$31,0)","v":0},"-",null,0,null,null,null,0,0,null,0,null,null,0,0,1,0,0,0,0]
[null,null,null,null,null,null,{"$f":"IF(AND(F347<>0,$D$31<>0),F347/$D$31,0)","v":0},"-",null,0,null,null,null,0,0,null,0,null,null,0,0,1,0,0,0,0]
[null,null,null,null,null,null,0,"-",null,0,null,null,null,0,0,null,0,null,null,0,0,1,0,0,0,0]
[null,null,null,null,null,null,0,"-",null,0,null,null,null,{"$f":"IF(M349<>0,INT(60/M349),0)","v":0},{"$f":"N349*I349","v":0},null,{"$f":"P349*M349","v":0},null,null,0,0,{"$f":"1-T349-U349","v":1},{"$f":"T349*(F349+O349)","v":0},{"$f":"IF(AND(W349<>0,$D$31<>0),W349/$D$31,0)","v":0},{"$f":"U349*(F349+O349)","v":0},0]
[null,4,"Fittings, furnishings & equipment (FFE)",null,"-",{"$f":"SUM(F351:F370)","v":0},{"$f":"IF(AND(F350<>0,$D$31<>0),F350/$D$31,0)","v":0},"-","-",{"$f":"SUM(J351:J370)","v":0},"-","-","-","-",{"$f":"SUM(O351:O370)","v":0},"-",{"$f":"SUM(Q351:Q370)","v":0},"-","-",{"$f":"IF(W350<>0,W350/($F$350+$O$350),0)","v":0},{"$f":"IF(Y350<>0,Y350/($F$350+$O$350),0)","v":0},1,{"$f":"SUM(W351:W370)","v":0},0,{"$f":"SUM(Y351:Y370)","v":0},0]
[null,4,"Fittings, furnishings & equipment (FFE)",null,null,null,{"$f":"IF(AND(F351<>0,$D$31<>0),F351/$D$31,0)","v":0},"-",null,0,null,null,null,0,0,null,0,null,null,0,0,1,0,0,0,0]
[null,null,null,null,null,null,{"$f":"IF(AND(F352<>0,$D$31<>0),F352/$D$31,0)","v":0},"-",null,0,null,null,null,0,0,null,0,null,null,0,0,1,0,0,0,0]
[null,null,null,null,null,null,{"$f":"IF(AND(F353<>0,$D$31<>0),F353/$D$31,0)","v":0},"-",null,0,null,null,null,0,0,null,0,null,null,0,0,1,0,0,0,0]
[null,null,null,null,null,null,0,"-",null,0,null,null,null,0,0,null,0,null,null,0,0,1,0,0,0,0]
[null,null,null,null,null,null,0,"-",null,0,null,null,null,0,0,null,0,null,null,0,0,1,0,0,0,0]
[null,null,null,null,null,null,0,"-",null,0,null,null,null,0,0,null,0,null,null,0,0,1,0,0,0,0]
[null,null,null,null,null,null,0,"-",null,0,null,null,null,0,0,null,0,null,null,0,0,1,0,0,0,0]
[null,null,null,null,null,null,0,"-",null,0,null,null,null,0,0,null,0,null,null,0,0,1,0,0,0,0]
[null,null,null,null,null,null,0,"-",null,0,null,null,null,0,0,null,0,null,null,0,0,1,0,0,0,0]
[null,null,null,null,null,null,0,"-",null,0,null,null,null,0,0,null,0,null,null,0,0,1,0,0,0,0]
[null,null,null,null,null,null,0,"-",null,0,null,null,null,0,0,null,0,null,null,0,0,1,0,0,0,0]
[null,null,null,null,null,null,0,"-",null,0,null,null,null,0,0,null,0,null,null,0,0,1,0,0,0,0]
[null,null,null,null,null,null,0,"-",null,0,null,null,null,0,0,null,0,null,null,0,0,1,0,0,0,0]
[null,null,null,null,null,null,0,"-",null,0,null,null,null,0,0,null,0,null,null,0,0,1,0,0,0,0]
[null,null,null,null,null,null,{"$f":"IF(AND(F365<>0,$D$31<>0),F365/$D$31,0)","v":0},"-",null,0,null,null,null,0,0,null,0,null,null,0,0,1,0,0,0,0]
[null,null,null,null,null,null,{"$f":"IF(AND(F366<>0,$D$31<>0),F366/$D$31,0)","v":0},"-",null,0,null,null,null,0,0,null,0,null,null,0,0,1,0,0,0,0]
[null,null,null,null,null,null,{"$f":"IF(AND(F367<>0,$D$31<>0),F367/$D$31,0)","v":0},"-",null,0,null,null,null,0,0,null,0,null,null,0,0,1,0,0,0,0]
[null,null,null,null,null,null,{"$f":"IF(AND(F368<>0,$D$31<>0),F368/$D$31,0)","v":0},"-",null,0,null,null,null,0,0,null,0,null,null,0,0,1,0,0,0,0]
[null,null,null,null,null,null,0,"-",null,0,null,null,null,0,0,null,0,null,null,0,0,1,0,0,0,0]
[null,null,null,null,null,null,0,"-",null,0,null,null,null,0,0,null,0,null,null,0,0,1,0,0,0,0]
[null,5,"Services (MEP)",null,"-",{"$f":"SUM(F372:F391)","v":307794},{"$f":"IF(AND(F371<>0,$D$31<>0),F371/$D$31,0)","v":7.2144742331834779},"-","-",{"$f":"SUM(J372:J391)","v":0},"-","-","-","-",{"$f":"SUM(O372:O391)","v":0},"-",{"$f":"SUM(Q372:Q391)","v":0},"-","-",{"$f":"IF(W371<>0,W371/($F$371+$O$371),0)","v":0},{"$f":"IF(Y371<>0,Y371/($F$371+$O$371),0)","v":0.95},5.0000000000000044E-2,{"$f":"SUM(W372:W391)","v":0},0,{"$f":"SUM(Y372:Y391)","v":292404.3},6.8537505215243035]
[null,5,"Services (MEP)",null,"Air Exchanger + Heat ",152089,{"$f":"IF(AND(F372<>0,$D$31<>0),F372/$D$31,0)","v":3.5648588720073882},"-",0,0,{"$f":"F372*L372","v":30417.800000000003},0.2,20,3,0,null,0,"Yes","4/5",0,0.95,5.0000000000000044E-2,0,0,144484.54999999999,3.3866159284070183]
[null,null,null,null,"Air/Air hHeat Pump",5016,{"$f":"IF(AND(F373<>0,$D$31<>0),F373/$D$31,0)","v":0.11757150156808881},"-",0,0,1003.2,0.2,20,3,0,null,0,"Yes","4/5",0,0.95,5.0000000000000044E-2,0,0,4765.2,0.11169292648968436]
[null,null,null,null,"Cable 3-Wire",68010,{"$f":"IF(AND(F374<>0,$D$31<>0),F374/$D$31,0)","v":1.59410642377307},"-",0,0,13602,0.2,20,3,0,null,0,"Yes","4/5",0,0.95,5.0000000000000044E-2,0,0,64609.5,1.5144011025844166]
[null,null,null,null,"Cable Tray System ",44,1.0313289611235861E-3,"-",0,0,8.8000000000000007,0.2,20,3,0,null,0,"Yes","4/5",0,0.95,5.0000000000000044E-2,0,0,41.8,9.7976251306740661E-4]
[null,null,null,null,"Circular Ventilation Ducts",32,7.5005742627169887E-4,"-",0,0,6.4,0.2,20,3,0,null,0,"Yes","4/5",0,0.95,5.0000000000000044E-2,0,0,30.4,7.1255455495811398E-4]
[null,null,null,null,"Circulating Pump",1140,2.6720795810929274E-2,"-",0,0,228,0.2,20,3,0,null,0,"Yes","4/5",0,0.95,5.0000000000000044E-2,0,0,1083,2.5384756020382811E-2]
[null,null,null,null,"Copper tubes ",9527,0.22330615937782736,"-",0,0,1905.4,0.2,20,3,0,null,0,"Yes","4/5",0,0.95,5.0000000000000044E-2,0,0,9050.65,0.21214085140893599]
[null,null,null,null,"Electric Boiler",1800,4.2190730227783066E-2,"-",0,0,360,0.2,20,3,0,null,0,"Yes","4/5",0,0.95,5.0000000000000044E-2,0,0,1710,4.0081193716393911E-2]
[null,null,null,null,"Multi-layered Polyethylene Pipe",15412,0.36124640792810697,"-",0,0,3082.4,0.2,20,3,0,null,0,"Yes","4/5",0,0.95,5.0000000000000044E-2,0,0,14641.4,0.3431840875317016]
[null,null,null,null,"Steel Pipes",54724,1.2826919561028891,"-",0,0,10944.800000000001,0.2,20,3,0,null,0,"Yes","4/5",0,0.95,5.0000000000000044E-2,0,0,51987.799999999996,1.2185573582977445]
[null,null,null,null,null,null,0,"-",null,0,null,null,null,0,0,null,0,null,null,0,0,1,0,0,0,0]
[null,null,null,null,null,null,0,"-",null,0,null,null,null,0,0,null,0,null,null,0,0,1,0,0,0,0]
[null,null,null,null,null,null,0,"-",null,{"$f":"I384*F384","v":0},null,null,null,0,0,null,0,null,null,0,0,1,0,0,0,0]
[null,null,null,null,null,null,0,"-",null,0,null,null,null,0,0,null,0,null,null,0,0,1,0,0,0,0]
[null,null,null,null,null,null,{"$f":"IF(AND(F386<>0,$D$31<>0),F386/$D$31,0)","v":0},"-",null,0,null,null,null,0,0,null,0,null,null,0,0,1,0,0,0,0]
[null,null,null,null,null,null,{"$f":"IF(AND(F387<>0,$D$31<>0),F387/$D$31,0)","v":0},"-",null,0,null,null,null,0,0,null,0,null,null,0,0,1,0,0,0,0]
[null,null,null,null,null,null,{"$f":"IF(AND(F388<>0,$D$31<>0),F388/$D$31,0)","v":0},"-",null,0,null,null,null,0,0,null,0,null,null,0,0,1,0,0,0,0]
[null,null,null,null,null,null,{"$f":"IF(AND(F389<>0,$D$31<>0),F389/$D$31,0)","v":0},"-",null,0,null,null,null,0,0,null,0,null,null,0,0,1,0,0,0,0]
[null,null,null,null,null,null,0,"-",null,0,null,null,null,0,0,null,0,null,null,0,0,1,0,0,0,0]
[null,null,null,null,null,null,0,"-",null,0,null,null,null,0,0,null,0,null,null,0,0,1,0,0,0,0]
[null,6,"Prefabricated Buildings and Building Units",null,"-",{"$f":"SUM(F393:F412)","v":0},{"$f":"IF(AND(F392<>0,$D$31<>0),F392/$D$31,0)","v":0},"-","-",{"$f":"SUM(J393:J412)","v":0},"-","-","-","-",{"$f":"SUM(O393:O412)","v":0},"-",{"$f":"SUM(Q393:Q412)","v":0},"-","-",{"$f":"IF(W392<>0,W392/($F$392+$O$392),0)","v":0},{"$f":"IF(Y392<>0,Y392/($F$392+$O$392),0)","v":0},1,{"$f":"SUM(W393:W412)","v":0},0,{"$f":"SUM(Y393:Y412)","v":0},0]
[null,6,"Prefabricated Buildings and Building Units",null,null,null,{"$f":"IF(AND(F393<>0,$D$31<>0),F393/$D$31,0)","v":0},"-",null,0,null,null,null,0,0,null,0,null,null,0,0,1,0,0,0,0]
[null,null,null,null,null,null,{"$f":"IF(AND(F394<>0,$D$31<>0),F394/$D$31,0)","v":0},"-",null,0,null,null,null,0,0,null,0,null,null,0,0,1,0,0,0,0]
[null,null,null,null,null,null,{"$f":"IF(AND(F395<>0,$D$31<>0),F395/$D$31,0)","v":0},"-",null,0,null,null,null,0,0,null,0,null,null,0,0,1,0,0,0,0]
[null,null,null,null,null,null,0,"-",null,0,null,null,null,0,0,null,0,null,null,0,0,1,0,0,0,0]
[null,null,null,null,null,null,0,"-",null,0,null,null,null,0,0,null,0,null,null,0,0,1,0,0,0,0]
[null,null,null,null,null,null,0,"-",null,0,null,null,null,0,0,null,0,null,null,0,0,1,0,0,0,0]
[null,null,null,null,null,null,0,"-",null,0,null,null,null,0,0,null,0,null,null,0,0,1,0,0,0,0]
[null,null,null,null,null,null,0,"-",null,0,null,null,null,0,0,null,0,null,null,0,0,1,0,0,0,0]
[null,null,null,null,null,null,0,"-",null,0,null,null,null,0,0,null,0,null,null,0,0,1,0,0,0,0]
[null,null,null,null,null,null,0,"-",null,0,null,null,null,0,0,null,0,null,null,0,0,1,0,0,0,0]
[null,null,null,null,null,null,0,"-",null,0,null,null,null,0,0,null,0,null,null,0,0,1,0,0,0,0]
[null,null,null,null,null,null,0,"-",null,0,null,null,null,0,0,null,0,null,null,0,0,1,0,0,0,0]
[null,null,null,null,null,null,0,"-",null,0,null,null,null,0,0,null,0,null,null,0,0,1,0,0,0,0]
[null,null,null,null,null,null,0,"-",null,0,null,null,null,0,0,null,0,null,null,0,0,1,0,0,0,0]
[null,null,null,null,null,null,{"$f":"IF(AND(F407<>0,$D$31<>0),F407/$D$31,0)","v":0},"-",null,0,null,null,null,0,0,null,0,null,null,0,0,1,0,0,0,0]
[null,null,null,null,null,null,{"$f":"IF(AND(F408<>0,$D$31<>0),F408/$D$31,0)","v":0},"-",null,0,null,null,null,0,0,null,0,null,null,0,0,1,0,0,0,0]
[null,null,null,null,null,null,{"$f":"IF(AND(F409<>0,$D$31<>0),F409/$D$31,0)","v":0},"-",null,0,null,null,null,0,0,null,0,null,null,0,0,1,0,0,0,0]
[null,null,null,null,null,null,{"$f":"IF(AND(F410<>0,$D$31<>0),F410/$D$31,0)","v":0},"-",null,0,null,null,null,0,0,null,0,null,null,0,0,1,0,0,0,0]
[null,null,null,null,null,null,0,"-",null,0,null,null,null,0,0,null,0,null,null,0,0,1,0,0,0,0]
[null,null,null,null,null,null,0,"-",null,0,null,null,null,0,0,null,0,null,null,0,0,1,0,0,0,0]
[null,7,"Work to Existing Building",null,"-",{"$f":"SUM(F414:F433)","v":0},{"$f":"IF(AND(F413<>0,$D$31<>0),F413/$D$31,0)","v":0},"-","-",{"$f":"SUM(J414:J433)","v":0},"-","-","-","-",{"$f":"SUM(O414:O433)","v":0},"-",{"$f":"SUM(Q414:Q433)","v":0},"-","-",{"$f":"IF(W413<>0,W413/($F$413+$O$413),0)","v":0},{"$f":"IF(Y413<>0,Y413/($F$413+$O$413),0)","v":0},{"$f":"1-T413-U413","v":1},{"$f":"SUM(W414:W433)","v":0},{"$f":"IF(AND(W413<>0,$D$31<>0),W413/$D$31,0)","v":0},{"$f":"SUM(Y414:Y433)","v":0},0]
[null,7,"Work to Existing Building",null,null,null,{"$f":"IF(AND(F414<>0,$D$31<>0),F414/$D$31,0)","v":0},"-",null,0,null,null,null,{"$f":"IF(M414<>0,INT(60/M414),0)","v":0},{"$f":"N414*I414","v":0},null,{"$f":"P414*M414","v":0},null,null,0,0,1,{"$f":"T414*(F414+O414)","v":0},0,{"$f":"U414*(F414+O414)","v":0},0]
[null,null,null,null,null,null,{"$f":"IF(AND(F415<>0,$D$31<>0),F415/$D$31,0)","v":0},"-",null,0,null,null,null,0,0,null,0,null,null,0,0,1,0,0,0,0]
[null,null,null,null,null,null,{"$f":"IF(AND(F416<>0,$D$31<>0),F416/$D$31,0)","v":0},"-",null,0,null,null,null,0,0,null,0,null,null,0,0,1,0,0,0,0]
[null,null,null,null,null,null,0,"-",null,0,null,null,null,0,0,null,0,null,null,0,0,1,0,0,0,0]
[null,null,null,null,null,null,0,"-",null,0,null,null,null,0,0,null,0,null,null,0,0,1,0,0,0,0]
[null,null,null,null,null,null,0,"-",null,0,null,null,null,0,0,null,0,null,null,0,0,1,0,0,0,0]
[null,null,null,null,null,null,0,"-",null,0,null,null,null,0,0,null,0,null,null,0,0,1,0,0,0,0]
[null,null,null,null,null,null,0,"-",null,0,null,null,null,0,0,null,0,null,null,0,0,1,0,0,0,0]
[null,null,null,null,null,null,0,"-",null,0,null,null,null,{"$f":"IF(M422<>0,INT(60/M422),0)","v":0},0,null,0,null,null,0,0,1,0,0,0,0]
[null,null,null,null,null,null,0,"-",null,0,null,null,null,0,0,null,0,null,null,0,0,1,0,0,0,0]
[null,null,null,null,null,null,0,"-",null,0,null,null,null,0,0,null,0,null,null,0,0,1,0,0,0,0]
[null,null,null,null,null,null,0,"-",null,0,null,null,null,0,0,null,0,null,null,0,0,1,0,0,0,0]
[null,null,null,null,null,null,0,"-",null,0,null,null,null,0,0,null,0,null,null,0,0,1,0,0,0,0]
[null,null,null,null,null,null,0,"-",null,0,null,null,null,0,0,null,0,null,null,0,0,1,0,0,0,0]
[null,null,null,null,null,null,{"$f":"IF(AND(F428<>0,$D$31<>0),F428/$D$31,0)","v":0},"-",null,0,null,null,null,0,0,null,0,null,null,0,0,1,0,0,0,0]
[null,null,null,null,null,null,{"$f":"IF(AND(F429<>0,$D$31<>0),F429/$D$31,0)","v":0},"-",null,0,null,null,null,0,0,null,0,null,null,0,0,1,0,0,0,0]
[null,null,null,null,null,null,{"$f":"IF(AND(F430<>0,$D$31<>0),F430/$D$31,0)","v":0},"-",null,0,null,null,null,0,0,null,0,null,null,0,0,1,0,0,0,0]
[null,null,null,null,null,null,{"$f":"IF(AND(F431<>0,$D$31<>0),F431/$D$31,0)","v":0},"-",null,0,null,null,null,0,0,null,0,null,null,0,0,1,0,0,0,0]
[null,null,null,null,null,null,0,"-",null,0,null,null,null,0,0,null,0,null,null,0,0,1,0,0,0,0]
[null,null,null,null,null,null,0,"-",null,0,null,null,null,0,0,null,0,null,null,0,0,1,0,0,0,0]
[null,8,"External works",null,"-",{"$f":"SUM(F435:F454)","v":20981762},{"$f":"IF(AND(F434<>0,$D$31<>0),F434/$D$31,0)","v":491.79770013641667},"-","-",{"$f":"SUM(J435:J454)","v":390490.86},"-","-","-","-",{"$f":"SUM(O435:O454)","v":0.13},"-",{"$f":"SUM(Q435:Q454)","v":0},"-","-",{"$f":"IF(W434<>0,W434/($F$434+$O$434),0)","v":0},{"$f":"IF(Y434<>0,Y434/($F$434+$O$434),0)","v":0.94999999999999984},5.0000000000000155E-2,{"$f":"SUM(W435:W454)","v":0},0,{"$f":"SUM(Y435:Y454)","v":19932674.023499995},467.20781802434863]
[null,8,"External works",null,"Precast Concrete ",3244382,null,"-",0.03,97331.459999999992,{"$f":"F435*L435","v":648876.4},0.2,60,1,0.03,null,0,"No",3,0,0.95,5.0000000000000044E-2,0,0,3082162.9284999995,72.243724796898491]
[null,null,null,null,"Crushed Gravel ",2899520,{"$f":"IF(AND(F436<>0,$D$31<>0),F436/$D$31,0)","v":67.962703394478638},"-",0.03,86985.599999999991,{"$f":"F436*L436","v":579904},0.2,60,1,0.03,null,0,"No",3,0,0.95,5.0000000000000044E-2,0,0,2754544.0284999995,64.564568892774588]
[null,null,null,null,"Aggregates and Sand ",1449760,{"$f":"IF(AND(F437<>0,$D$31<>0),F437/$D$31,0)","v":33.981351697239319},"-",0.03,43492.799999999996,{"$f":"F437*L437","v":289952},0.2,60,1,0.03,null,0,"No",3,0,0.95,5.0000000000000044E-2,0,0,1377272.0285,32.282284780397248]
[null,null,null,null,"Ready Mix Concrete",1440000,{"$f":"IF(AND(F438<>0,$D$31<>0),F438/$D$31,0)","v":33.75258418222645},"-",0.03,43200,{"$f":"F438*L438","v":288000},0.2,60,1,0.03,null,0,"No",3,0,0.95,5.0000000000000044E-2,0,0,1368000.0285,32.064955641135022]
[null,null,null,null,"Reinforcement Steel ",11948100,280.0550354636527,"-",0.01,119481,{"$f":"F439*L439","v":2389620},0.2,60,1,0.01,null,0,"No",1,0,0.95,5.0000000000000044E-2,0,0,11350695.009499999,266.0522839131433]
[null,null,null,null,null,null,0,"-",null,0,null,null,null,0,0,null,0,null,null,0,0,1,0,0,0,0]
[null,null,null,null,null,null,0,"-",null,0,null,null,null,0,0,null,0,null,null,0,0,1,0,0,0,0]
[null,null,null,null,null,null,0,"-",null,0,null,null,null,0,0,null,0,null,null,0,0,1,0,0,0,0]
[null,null,null,null,null,null,0,"-",null,0,null,null,null,0,0,null,0,null,null,0,0,1,0,0,0,0]
[null,null,null,null,null,null,0,"-",null,0,null,null,null,0,0,null,0,null,null,0,0,1,0,0,0,0]
[null,null,null,null,null,null,0,"-",null,0,null,null,null,0,0,null,0,null,null,0,0,1,0,0,0,0]
[null,null,null,null,null,null,0,"-",null,0,null,null,null,0,0,null,0,null,null,0,0,1,0,0,0,0]
[null,null,null,null,null,null,0,"-",null,0,null,null,null,0,0,null,0,null,null,0,0,1,0,0,0,0]
[null,null,null,null,null,null,0,"-",null,{"$f":"I448*F448","v":0},null,null,null,0,0,null,0,null,null,0,0,1,0,0,0,0]
[null,null,null,null,null,null,0,"-",null,0,null,null,null,0,0,null,0,null,null,0,0,1,0,0,0,0]
[null,null,null,null,null,null,0,"-",null,0,null,null,null,0,0,null,0,null,null,0,0,1,0,0,0,0]
[null,null,null,null,null,null,0,"-",null,0,null,null,null,0,0,null,0,null,null,0,0,1,0,0,0,0]
[null,null,null,null,null,null,0,"-",null,0,null,null,null,0,0,null,0,null,null,0,0,1,0,0,0,0]
[null,null,null,null,null,null,0,"-",null,{"$f":"I453*F453","v":0},null,null,null,{"$f":"IF(M453<>0,INT(60/M453),0)","v":0},0,null,0,null,null,0,0,1,0,0,0,0]
[null,null,null,null,null,null,0,"-",null,{"$f":"I454*F454","v":0},null,null,null,{"$f":"IF(M454<>0,INT(60/M454),0)","v":0},{"$f":"N454*I454","v":0},null,{"$f":"P454*M454","v":0},null,null,0,0,1,{"$f":"T454*(F454+O454)","v":0},0,0,{"$f":"IF(AND(Y454<>0,$D$31<>0),Y454/$D$31,0)","v":0}]
[null,null,"Overall",null,null,{"$f":"SUM(F91,F107,F123,F139,F155,F176,F197,F218,F239,F255,F276,F292,F313,F329,F350,F371,F392,F413,F434)","v":264025676},6188.5755940689205,null,null,{"$f":"SUM(J91,J107,J123,J139,J155,J176,J197,J218,J239,J255,J276,J292,J313,J329,J350,J371,J392,J413,J434)","v":5663145.7000000002},null,null,null,null,{"$f":"SUM(O91,O107,O123,O139,O155,O176,O197,O218,O239,O255,O276,O292,O313,O329,O350,O371,O392,O413,O434)","v":6.1400000000000006},null,{"$f":"SUM(Q91:Q454)","v":0},null,null,{"$f":"IF(AND($F$455<>0,$O$455<>0),SUM(W91,W107,W123,W139,W155,W176,W197,W218,W239,W255,W276,W292,W313,W329,W350,W371,W392,W413,W434)/($F$455+$O$455),0)","v":5.2551705908074364E-4},{"$f":"IF(AND($F$455<>0,$O$455<>0),SUM(Y91,Y107,Y123,Y139,Y155,Y176,Y197,Y218,Y239,Y255,Y276,Y292,Y313,Y329,Y350,Y371,Y392,Y413,Y434)/($F$455+$O$455),0)","v":0.91711274854165226},{"$f":"1-T455-U455","v":8.2361734399266973E-2},{"$f":"SUM(W91:W454)","v":277500},{"$f":"SUM(X91:X454)","v":6.5044042434498888},{"$f":"SUM(Y91:Y454)","v":484282638.06600022},{"$f":"SUM(Z91:Z454)","v":11351.243409245384}]
[]
[]
[]
[]
[null,"Recycling and Waste Reporting table"]
[null,"The light green-coloured cells should be completed to achieve 'pioneering' status."]
[null,null,null,null,"TOTAL ESTIMATES OF WASTE",null,null,"WASTE MANAGEMENT ROUTES",null,null,null,null,null,"SUMMARY"]
[null,null,null,null,"Overall Waste \n(tonnes)","Overall Waste\n(tonnes/m2 GIA)","Performance Indicator (LPG Appendix 1)","REUSE ",null,"RECYCLE",null,"OTHER DISPOSAL",null,"Total Reuse (%)","Total Recycle (%)","Total Reuse and Recycle (%)","Total Waste Reported (%)"]
[null,null,"Type of Waste","Source of Information",null,null,null,"Reuse Onsite (%)","Reuse Offsite (%)","Recycle Onsite(%)","Recycle Offsite (%)","To Landfill (%)","To Other Management (%)"]
[null,null,null,null,"PRODUCT AND CONSTRUCTION STAGE (MODULE A)"]
[null,1,"Demolition Waste","Rye Demolition Ltd. Demolition audit",18728.88,{"$f":"IF($D$31>0,IF(E466>0,E466/$D$31,0),0)","v":0.43899173530473429},{"$f":"F466","v":0.43899173530473429},null,null,null,0.98,null,null,{"$f":"SUM(H466:I466)","v":0},{"$f":"SUM(J466:K466)","v":0.98},{"$f":"SUM(N466:O466)","v":0.98},{"$f":"SUM(H466:M466)","v":0.98}]
[null,2.1,"Excavation Waste","CE report Appendix 3: Excavation calculations",{"$f":"49248*1500/1000","v":73872},{"$f":"IF($D$31>0,IF(E467>0,E467/$D$31,0),0)","v":1.7315075685482169},{"$f":"F467","v":1.7315075685482169},null,null,null,0.95,null,null,{"$f":"SUM(H467:I467)","v":0},{"$f":"SUM(J467:K467)","v":0.95},{"$f":"SUM(N467:O467)","v":0.95},{"$f":"SUM(H467:M467)","v":0.95}]
[null,2.8,"Construction Waste","CE report Table 2 commitment ≤ 6.5 of waste generated per 100m²",{"$f":"D31*6.5/100","v":2773.1210000000005},{"$f":"IF($D$31>0,IF(E468>0,E468/$D$31,0),0)","v":6.5000000000000016E-2},{"$f":"F468","v":6.5000000000000016E-2},null,null,null,0.95,null,null,{"$f":"SUM(H468:I468)","v":0},{"$f":"SUM(J468:K468)","v":0.95},{"$f":"SUM(N468:O468)","v":0.95},{"$f":"SUM(H468:M468)","v":0.95}]
[null,null,null,null,"USE STAGE (MODULE B)"]
[null,3,"Demolition / Strip-out Waste","-",{"$f":"IF(ISNUMBER(S109),S109/1000,0)","v":0},{"$f":"IF($D$31>0,IF(E470>0,E470/$D$31,0),0)","v":0},"-",null,null,null,null,null,null,{"$f":"SUM(H470:I470)","v":0},{"$f":"SUM(J470:K470)","v":0},{"$f":"SUM(N470:O470)","v":0},{"$f":"SUM(H470:M470)","v":0}]
[null,4,"Construction Waste","-",{"$f":"IF(ISNUMBER(U109),U109/1000,0)","v":1E-3},{"$f":"IF($D$31>0,IF(E471>0,E471/$D$31,0),0)","v":2.3439294570990591E-8},"-",null,null,null,null,null,null,{"$f":"SUM(H471:I471)","v":0},{"$f":"SUM(J471:K471)","v":0},{"$f":"SUM(N471:O471)","v":0},{"$f":"SUM(H471:M471)","v":0}]
[null,null,null,null,"Overall Waste (tonnes/annum)","Overall Waste (tonnes/annum\n/m2)","Performance Indicator (LPG Appendix 1)","Reuse Onsite (%)","Reuse Offsite (%)","Recycle Offsite(%)","Recycle Offsite (%)","To Landfill (%)","To Other Management (%)","Total Reuse (%)","Total Recycle (%)","Total Reuse and Recycle (%)","Total Waste Reported (%)"]
[null,5,"Municipal Waste","CE report Appendix 5: Operational Waste Estimates",606,{"$f":"IF($D$31>0,IF(E473>0,E473/$D$31,0),0)","v":1.4204212510020298E-2},{"$f":"F473","v":1.4204212510020298E-2},null,null,null,0.65,null,null,{"$f":"SUM(H473:I473)","v":0},{"$f":"SUM(J473:K473)","v":0.65},{"$f":"SUM(N473:O473)","v":0.65},{"$f":"SUM(H473:M473)","v":0.65}]
[null,6,"Industrial Waste (if applicable)","CE report Appendix 5: Operational Waste Estimates",26.25,"-","-",null,null,null,0.65,null,null,{"$f":"SUM(H474:I474)","v":0},{"$f":"SUM(J474:K474)","v":0.65},{"$f":"SUM(N474:O474)","v":0.65},{"$f":"SUM(H474:M474)","v":0.65}]
[null,null,null,null,"MODULE A - MODULE C"]
[null,null,null,null,"Overall Materials \n(tonnes)","Overall Materials (Modules A-C) (tonnes\n/m2)","-","Reuse Onsite (%)","Reuse Offsite (%)","Recycle Offsite(%)","Recycle Offsite (%)","To Landfill (%)","To Other Management (%)","Total Reuse (%)","Total Recycle (%)","Total Reuse and Recycle (%)","Total Waste Reported (%)"]
[null,7,"Total Materials","-",{"$f":"IF(AND(ISNUMBER(F109),ISNUMBER(J109),ISNUMBER(S109),ISNUMBER(U109)),((U109+S109+F109+J109)/1000),0)","v":0},{"$f":"IF($D$31>0,IF(E477>0,E477/$D$31,0),0)","v":0},"-",null,null,null,null,null,null,{"$f":"SUM(H477:I477)","v":0},{"$f":"SUM(J477:K477)","v":0},{"$f":"SUM(N477:O477)","v":0},{"$f":"SUM(H477:M477)","v":0}]
[]
[]
[null,"Circular Economy Targets"]
[null,"Circular economy targets for existing and new development",null,"Policy Requirement","Target Aiming For (%)","Policy Met?","Explanation (How will performance against this metric be secured through design, implementation and monitoring?)"]
[null,"Demolition waste materials (non-hazardous)",null,"Minimum of 95% diverted from landfill for reuse, recycling or recovery.",0.98,{"$f":"IF(ISNUMBER(E482),IF(E482>100%,\"Input not valid\",IF(E482=95%,\"Yes\",IF(100%>=E482>95%,\"Exceeds Policy\",\"No\"))),\"\")","v":"Exceeds Policy"},"An independent pre-demolition audit has been conducted prior to start on site in order to quantify volume of materials and waste generation expected. The independent demolition audit report estimates 18,728.88 tonnes waste (0.57t/m2 GIA). This is broken down into material types and quantities, highlighting potential recovery of materials, for reuse or recycling. It is expected that a 98% diversion from landfill target can be achieved with careful segregation techniques."]
[null,"Excavation waste materials",null,"Minimum of 95% diverted from landfill for beneficial reuse.",0.95,{"$f":"IF(ISNUMBER(E483),IF(E483>100%,\"Input not valid\",IF(E483=95%,\"Yes\",IF(100%>=E483>95%,\"Exceeds Policy\",\"No\"))),\"\")","v":"Yes"},"High level earthwork excavation quantities have been provided to better understand the volume of excavation material expected. The Applicant estimates 49,248 m3 of excavation waste. The Applicant is committed to a 95% diversion from landfill for all non-hazardous excavation waste arisings."]
[null,"Construction waste materials",null,"Minimum of 95% diverted from landfill for reuse, recycling or recovery.",0.95,"Yes","Resource Management Plan to be developed as the design progresses, in order to maximise opportunities for reusing and recycling construction waste. Non-hazardous waste materials from on-site construction and dedicated offsite manufacture or fabrication shall be included. The Applicant sets a target of ≤ 6.5 of waste generated per 100m² (gross internal floor area)."]
[null,"Municipal waste",null,"Minimum 65% recycling rate by 2030.",0.65,{"$f":"IF(ISNUMBER(E485),IF(E485>100%,\"Input not valid\",IF(E485=65%,\"Yes\",IF(100%>=E485>65%,\"Exceeds Policy\",\"No\"))),\"\")","v":"Yes"},"Block by block refuse store accessible by waste and recycling collection operators at ground floors in line with the London Borough of Richmond Upon Thames requirements."]
[null,"Recycled content",null,"Minimum 20% of the building material elements to be comprised of recycled or reused content.",0.2,{"$f":"IF(ISNUMBER(E486),IF(E486>100%,\"Input not valid\",IF(E486=20%,\"Yes\",IF(100%>=E486>20%,\"Exceeds Policy\",\"No\"))),\"\")","v":"Yes"},"The Applicant shall endeavour to ensure materials have a minimum 20% recycled content and are easily re-used or recyclable at the end-of-life stage to minimise the amount of virgin materials used."]
[null,"Additional requirements",null,"Policy Requirement","Please acknowledge acceptance for a planning condition",null,"Please set out an indicative timescale and responsible party for the provision of this information"]
[null,"Post-Construction Report",null,"A CE Statement is required at post-construction (i.e. upon commencement of RIBA Stage 6 and prior to the building being handed over, if applicable. Generally, it would be expected that the assessment would be received no more than three months post-construction)","It is accepted that the Post Construction Reporting will be conditioned",null,"To be completed at the post construction review stage, within three month post-construction. Responsibility is with the Applicant."]

{"sheet":"Post-Construction Stage","index":4,"n_rows":458,"n_cols":26,"rows_kept":458,"cut":false,"hidden":false,"merged":[[408,13,408,16],[53,2,53,3],[431,7,431,9],[432,7,432,9],[0,0,1,6],[3,0,3,5],[4,0,4,2],[4,4,4,5],[5,2,5,3],[408,4,408,6],[408,7,408,12],[409,4,410,4],[409,5,410,5],[409,6,410,6],[409,7,409,8],[409,9,409,10],[409,11,409,12],[428,7,428,9],[429,7,429,9],[430,7,430,9],[35,2,35,3],[36,2,36,3],[37,2,37,3],[35,4,35,11],[470,3,470,4],[471,3,471,4],[461,3,461,4],[462,3,462,4],[463,3,463,4],[464,3,464,4],[465,3,465,4],[466,3,466,4],[469,1,469,2],[470,1,470,2],[471,1,471,2],[463,1,463,2],[464,1,464,2],[465,1,465,2],[466,1,466,2],[467,1,467,2],[468,1,468,2],[461,1,461,2],[462,1,462,2],[467,3,467,4],[468,3,468,4],[469,3,469,4],[455,1,455,4],[456,1,456,2],[456,3,456,4],[457,3,457,4],[458,3,458,4],[459,3,459,4],[460,3,460,4],[457,1,457,2],[458,1,458,2],[459,1,459,2],[460,1,460,2],[451,1,451,2],[452,1,452,2],[438,3,438,4],[439,3,439,4],[440,3,440,4],[441,3,441,4],[442,3,442,4],[442,1,442,2],[443,1,443,2],[444,1,444,2],[445,1,445,2],[446,1,446,2],[447,1,447,2],[438,1,438,2],[439,1,439,2],[440,1,440,2],[441,1,441,2],[446,3,446,4],[447,3,447,4],[448,3,448,4],[448,1,448,2],[451,5,451,6],[452,5,452,6],[437,3,437,4],[437,5,437,6],[444,5,444,6],[445,5,445,6],[446,5,446,6],[447,5,447,6],[448,5,448,6],[449,3,449,4],[450,3,450,4],[451,3,451,4],[452,3,452,4],[438,5,438,6],[439,5,439,6],[440,5,440,6],[441,5,441,6],[442,5,442,6],[443,5,443,6],[443,3,443,4],[444,3,444,4],[445,3,445,4],[35,12,35,16],[35,17,35,21],[35,22,35,25],[449,5,449,6],[450,5,450,6],[449,1,449,2],[450,1,450,2],[437,1,437,2],[436,1,436,6],[431,1,431,2],[432,1,432,2],[428,1,428,2],[429,1,429,2],[430,1,430,2],[409,13,410,13],[409,14,410,14],[409,15,410,15],[409,16,410,16],[427,1,427,2],[427,7,427,9],[38,1,52,1],[38,2,52,3],[54,1,68,1],[54,2,68,3],[69,2,69,3],[70,1,84,1],[70,2,84,3],[85,2,85,3],[86,1,100,1],[86,2,100,3],[101,2,101,3],[102,1,121,1],[102,2,121,3],[122,2,122,3],[123,1,142,1],[123,2,142,3],[143,2,143,3],[144,1,163,1],[144,2,163,3],[164,2,164,3],[165,1,184,1],[165,2,184,3],[185,2,185,3],[186,1,200,1],[186,2,200,3],[201,2,201,3],[202,1,221,1],[202,2,221,3],[222,2,222,3],[223,1,237,1],[223,2,237,3],[238,2,238,3],[239,1,258,1],[239,2,258,3],[259,2,259,3],[260,1,274,1],[260,2,274,3],[275,2,275,3],[276,1,295,1],[276,2,295,3],[359,2,359,3],[360,1,379,1],[360,2,379,3],[380,2,380,3],[381,1,400,1],[381,2,400,3],[296,2,296,3],[297,1,316,1],[297,2,316,3],[317,2,317,3],[318,1,337,1],[318,2,337,3],[338,2,338,3],[339,1,358,1],[339,2,358,3]]}
[]
[]
[]
["Post-Construction Stage - Circular Economy Statement"]
[]
[null,null,"Project details"]
[null,null,"Project name"]
[null,null,"Planning application reference number (if applicable)"]
[null,null,"Applicant"]
[null,null,"London Borough"]
[null,null,"Brief description of the project"]
[null,null,"Author/s"]
[null,null,"Date of assessment"]
[null,null,"Number of Use Types"]
[null,null,"Use Class / Type","Floor Area by use type (m2)"]
[null,null,"Use Class / Type 1","Use Class / Type 1 GIA"]
[null,null,"Use Class / Type 2","Use Class / Type 2 GIA"]
[null,null,"Use Class / Type 3","Use Class / Type 3 GIA"]
[null,null,"Use Class / Type 4","Use Class / Type 4 GIA"]
[null,null,"Use Class / Type 5","Use Class / Type 5 GIA"]
[null,null,"Use Class / Type 6","Use Class / Type 6 GIA"]
[null,null,"Use Class / Type 7","Use Class / Type 7 GIA"]
[null,null,"Use Class / Type 8","Use Class / Type 8 GIA"]
[null,null,"Use Class / Type 9","Use Class / Type 9 GIA"]
[null,null,"Use Class / Type 10","Use Class / Type 10 GIA"]
[null,null,"Use Class / Type 11","Use Class / Type 11 GIA"]
[null,null,"Use Class / Type 12","Use Class / Type 12 GIA"]
[null,null,"Use Class / Type 13","Use Class / Type 13 GIA"]
[null,null,"Use Class / Type 14","Use Class / Type 14 GIA"]
[null,null,"Use Class / Type 15","Use Class / Type 15 GIA"]
[null,null,"Overall GIA (m2)",{"$f":"SUM(D16:D30)","v":0}]
[]
[]
[null,"Bill of Materials"]
[null,"Please click the + symbol to the left hand side of the Bill of Materials table to view or hide the input rows for each Building Element Category. The rows for substructure and frame have been unhidden to highlight this."]
[null,null,"BUILDING ELEMENT CATEGORY -  LEVEL 1 (based on the RICS New Rules of\nMeasurement (NRM) classification system level 2 sub-elements https://www.rics.org/globalassets/rics-website/media/products/data-products/bcis-construction/bcis-elemental-standard-form-cost-analysis-4th-nrm-edition-2012.pdf)",null,"PRODUCT AND CONSTRUCTION STAGE (MODULE A)",null,null,null,null,null,null,null,"USE STAGE (MODULE B)",null,null,null,null,"END OF LIFE STAGE (MODULE C)",null,null,null,null,"BENEFITS BEYOND THE SYSTEM BOUNDARY (MODULE D)"]
[null,null,"Building Element Category",null,"Material Type","Material quantity\n(Module A)\n(kg)","Material intensity \n(Module A) \n(kg/m2 GIA)","Performance Indicator (Planning Stage Estimate)","Construction Waste Factor \n(Module A)","Construction Waste \n(Module A)\n(kg)","Recycled Content \nby mass (kg)","Recycled Content \nby value (%)","Expected Lifespan\n(years)","Number of Replacements (over assumed 60-year period)","Repair and Replacement quantities of materials\n(Module B)\n (kg)","Construction Waste Factor \n(Module B)","Construction Waste \n(Module B)\n(kg)","Design for Disassembly","Assumed End of Life Scenario\n(Description)","% Reusing ","% Recycling","% Landfill","Estimated reusable materials (kg)","Estimated reusable materials intensity\n(kg/m2 GIA)","Estimated recyclable materials (kg)","Estimated recyclable materials intensity\n(kg/m2 GIA)"]
[null,0.1,"Demolition: Toxic/Hazardous/Contaminated Material Treatment",null,"-",{"$f":"SUM(F39:F53)","v":0},{"$f":"IF(AND(F38<>0,$D$31<>0),F38/$D$31,0)","v":0},"-","-",{"$f":"SUM(J39:J53)","v":0},"-","-","-","-",{"$f":"SUM(O39:O53)","v":0},"-",{"$f":"SUM(Q39:Q53)","v":0},"-","-",{"$f":"IF(W38<>0,W38/($F$91+$O$91),0)","v":0},{"$f":"IF(Y38<>0,Y38/($F$91+$O$91),0)","v":0},{"$f":"1-T38-U38","v":1},{"$f":"SUM(W39:W53)","v":0},{"$f":"IF(AND(W38<>0,$D$31<>0),W38/$D$31,0)","v":0},{"$f":"SUM(Y39:Y53)","v":0},{"$f":"IF(AND(Y38<>0,$D$31<>0),Y38/$D$31,0)","v":0}]
[null,0.1,"Demolition: Toxic/Hazardous/Contaminated Material Treatment",null,null,null,{"$f":"IF(AND(F39<>0,$D$31<>0),F39/$D$31,0)","v":0},"-",null,{"$f":"F39*I39","v":0},null,null,null,{"$f":"IF(M39<>0,INT(60/M39),0)","v":0},{"$f":"N39*I39","v":0},null,{"$f":"P39*M39","v":0},null,null,0,0,{"$f":"1-T39-U39","v":1},{"$f":"T39*(F39+O39)","v":0},{"$f":"IF(AND(W39<>0,$D$31<>0),W39/$D$31,0)","v":0},{"$f":"U39*(F39+O39)","v":0},{"$f":"IF(AND(Y39<>0,$D$31<>0),Y39/$D$31,0)","v":0}]
[null,null,null,null,null,null,{"$f":"IF(AND(F40<>0,$D$31<>0),F40/$D$31,0)","v":0},"-",null,{"$f":"F40*I40","v":0},null,null,null,{"$f":"IF(M40<>0,INT(60/M40),0)","v":0},{"$f":"N40*I40","v":0},null,{"$f":"P40*M40","v":0},null,null,0,0,{"$f":"1-T40-U40","v":1},{"$f":"T40*(F40+O40)","v":0},{"$f":"IF(AND(W40<>0,$D$31<>0),W40/$D$31,0)","v":0},{"$f":"U40*(F40+O40)","v":0},0]
[null,null,null,null,null,null,0,"-",null,0,null,null,null,0,0,null,0,null,null,0,0,1,0,0,0,0]
[null,null,null,null,null,null,0,"-",null,0,null,null,null,0,0,null,0,null,null,0,0,1,0,0,0,0]
[null,null,null,null,null,null,0,"-",null,0,null,null,null,0,0,null,0,null,null,0,0,1,0,0,0,0]
[null,null,null,null,null,null,0,"-",null,0,null,null,null,0,0,null,0,null,null,0,0,1,0,0,0,0]
[null,null,null,null,null,null,0,"-",null,0,null,null,null,0,0,null,0,null,null,0,0,1,0,0,0,0]
[null,null,null,null,null,null,0,"-",null,0,null,null,null,0,0,null,0,null,null,0,0,1,0,0,0,0]
[null,null,null,null,null,null,0,"-",null,0,null,null,null,0,0,null,0,null,null,0,0,1,0,0,0,0]
[null,null,null,null,null,null,0,"-",null,0,null,null,null,0,0,null,0,null,null,0,0,1,0,0,0,0]
[null,null,null,null,null,null,0,"-",null,0,null,null,null,0,0,null,0,null,null,0,0,1,0,0,0,0]
[null,null,null,null,null,null,0,"-",null,0,null,null,null,0,0,null,0,null,null,0,0,1,0,0,0,0]
[null,null,null,null,null,null,0,"-",null,0,null,null,null,0,0,null,0,null,null,0,0,1,0,0,0,0]
[null,null,null,null,null,null,0,"-",null,0,null,null,null,0,0,null,0,null,null,0,0,1,0,0,0,0]
[null,null,null,null,null,null,0,"-",null,0,null,null,null,0,0,null,0,null,null,0,0,1,0,0,0,0]
[null,0.2,"Major Demolition Works",null,"-",{"$f":"SUM(F55:F69)","v":0},{"$f":"IF(AND(F54<>0,$D$31<>0),F54/$D$31,0)","v":0},"-","-",{"$f":"SUM(J55:J69)","v":0},"-","-","-","-",{"$f":"SUM(O55:O69)","v":0},"-",{"$f":"SUM(Q55:Q69)","v":0},"-","-",{"$f":"IF(W54<>0,W54/($F$107+$O$107),0)","v":0},{"$f":"IF(Y54<>0,Y54/($F$107+$O$107),0)","v":0},{"$f":"1-T54-U54","v":1},{"$f":"SUM(W55:W69)","v":0},0,{"$f":"SUM(Y55:Y69)","v":0},0]
[null,0.2,"Major Demolition Works",null,null,null,{"$f":"IF(AND(F55<>0,$D$31<>0),F55/$D$31,0)","v":0},"-",null,{"$f":"I55*F55","v":0},null,null,null,0,0,null,0,null,null,0,0,1,0,0,0,0]
[null,null,null,null,null,null,{"$f":"IF(AND(F56<>0,$D$31<>0),F56/$D$31,0)","v":0},"-",null,0,null,null,null,0,0,null,0,null,null,0,0,1,0,0,0,0]
[null,null,null,null,null,null,{"$f":"IF(AND(F57<>0,$D$31<>0),F57/$D$31,0)","v":0},"-",null,0,null,null,null,0,0,null,0,null,null,0,0,1,0,0,0,0]
[null,null,null,null,null,null,0,"-",null,0,null,null,null,0,0,null,0,null,null,0,0,1,0,0,0,0]
[null,null,null,null,null,null,0,"-",null,0,null,null,null,0,0,null,0,null,null,0,0,1,0,0,0,0]
[null,null,null,null,null,null,0,"-",null,0,null,null,null,0,0,null,0,null,null,0,0,1,0,0,0,0]
[null,null,null,null,null,null,0,"-",null,0,null,null,null,0,0,null,0,null,null,0,0,1,0,0,0,0]
[null,null,null,null,null,null,0,"-",null,0,null,null,null,0,0,null,0,null,null,0,0,1,0,0,0,0]
[null,null,null,null,null,null,0,"-",null,0,null,null,null,0,0,null,0,null,null,0,0,1,0,0,0,0]
[null,null,null,null,null,null,0,"-",null,0,null,null,null,0,0,null,0,null,null,0,0,1,0,0,0,0]
[null,null,null,null,null,null,0,"-",null,0,null,null,null,0,0,null,0,null,null,0,0,1,0,0,0,0]
[null,null,null,null,null,null,0,"-",null,0,null,null,null,0,0,null,0,null,null,0,0,1,0,0,0,0]
[null,null,null,null,null,null,0,"-",null,0,null,null,null,0,0,null,0,null,null,0,0,1,0,0,0,0]
[null,null,null,null,null,null,0,"-",null,0,null,null,null,0,0,null,0,null,null,0,0,1,0,0,0,0]
[null,null,null,null,null,null,0,"-",null,0,null,null,null,0,0,null,0,null,null,0,0,1,0,0,0,0]
[null,0.3,"Temporary Support to Adjacent Structures",null,"-",{"$f":"SUM(F71:F85)","v":0},{"$f":"IF(AND(F70<>0,$D$31<>0),F70/$D$31,0)","v":0},"-","-",{"$f":"SUM(J71:J85)","v":0},"-","-","-","-",{"$f":"SUM(O71:O85)","v":0},"-",{"$f":"SUM(Q71:Q85)","v":0},"-","-",{"$f":"IF(W70<>0,W70/($F$123+$O$123),0)","v":0},{"$f":"IF(Y70<>0,Y70/($F$123+$O$123),0)","v":0},1,{"$f":"SUM(W71:W85)","v":0},0,{"$f":"SUM(Y71:Y85)","v":0},0]
[null,0.3,"Temporary Support to Adjacent Structures",null,null,null,{"$f":"IF(AND(F71<>0,$D$31<>0),F71/$D$31,0)","v":0},"-",null,{"$f":"I71*F71","v":0},null,null,null,0,0,null,0,null,null,0,0,1,0,0,0,0]
[null,null,null,null,null,null,{"$f":"IF(AND(F72<>0,$D$31<>0),F72/$D$31,0)","v":0},"-",null,0,null,null,null,0,0,null,0,null,null,0,0,1,0,0,0,0]
[null,null,null,null,null,null,{"$f":"IF(AND(F73<>0,$D$31<>0),F73/$D$31,0)","v":0},"-",null,0,null,null,null,0,0,null,0,null,null,0,0,1,0,0,0,0]
[null,null,null,null,null,null,0,"-",null,0,null,null,null,0,0,null,0,null,null,0,0,1,0,0,0,0]
[null,null,null,null,null,null,0,"-",null,0,null,null,null,0,0,null,0,null,null,0,0,1,0,0,0,0]
[null,null,null,null,null,null,0,"-",null,0,null,null,null,0,0,null,0,null,null,0,0,1,0,0,0,0]
[null,null,null,null,null,null,0,"-",null,0,null,null,null,0,0,null,0,null,null,0,0,1,0,0,0,0]
[null,null,null,null,null,null,0,"-",null,0,null,null,null,0,0,null,0,null,null,0,0,1,0,0,0,0]
[null,null,null,null,null,null,0,"-",null,0,null,null,null,0,0,null,0,null,null,0,0,1,0,0,0,0]
[null,null,null,null,null,null,0,"-",null,0,null,null,null,0,0,null,0,null,null,0,0,1,0,0,0,0]
[null,null,null,null,null,null,0,"-",null,0,null,null,null,0,0,null,0,null,null,0,0,1,0,0,0,0]
[null,null,null,null,null,null,0,"-",null,0,null,null,null,0,0,null,0,null,null,0,0,1,0,0,0,0]
[null,null,null,null,null,null,0,"-",null,0,null,null,null,0,0,null,0,null,null,0,0,1,0,0,0,0]
[null,null,null,null,null,null,0,"-",null,0,null,null,null,0,0,null,0,null,null,0,0,1,0,0,0,0]
[null,null,null,null,null,null,0,"-",null,0,null,null,null,0,0,null,0,null,null,0,0,1,0,0,0,0]
[null,0.4,"Specialist Ground Works",null,"-",{"$f":"SUM(F87:F101)","v":0},{"$f":"IF(AND(F86<>0,$D$31<>0),F86/$D$31,0)","v":0},"-","-",{"$f":"SUM(J87:J101)","v":0},"-","-","-","-",{"$f":"SUM(O87:O101)","v":0},"-",{"$f":"SUM(Q87:Q101)","v":0},"-","-",{"$f":"IF(W86<>0,W86/($F$139+$O$139),0)","v":0},{"$f":"IF(Y86<>0,Y86/($F$139+$O$139),0)","v":0},1,{"$f":"SUM(W87:W101)","v":0},0,{"$f":"SUM(Y87:Y101)","v":0},0]
[null,0.4,"Specialist Ground Works",null,null,null,{"$f":"IF(AND(F87<>0,$D$31<>0),F87/$D$31,0)","v":0},"-",null,{"$f":"I87*F87","v":0},null,null,null,0,0,null,0,null,null,0,0,1,0,0,0,0]
[null,null,null,null,null,null,{"$f":"IF(AND(F88<>0,$D$31<>0),F88/$D$31,0)","v":0},"-",null,0,null,null,null,0,0,null,0,null,null,0,0,1,0,0,0,0]
[null,null,null,null,null,null,{"$f":"IF(AND(F89<>0,$D$31<>0),F89/$D$31,0)","v":0},"-",null,0,null,null,null,0,0,null,0,null,null,0,0,1,0,0,0,0]
[null,null,null,null,null,null,0,"-",null,0,null,null,null,0,0,null,0,null,null,0,0,1,0,0,0,0]
[null,null,null,null,null,null,0,"-",null,0,null,null,null,0,0,null,0,null,null,0,0,1,0,0,0,0]
[null,null,null,null,null,null,0,"-",null,0,null,null,null,0,0,null,0,null,null,0,0,1,0,0,0,0]
[null,null,null,null,null,null,0,"-",null,0,null,null,null,0,0,null,0,null,null,0,0,1,0,0,0,0]
[null,null,null,null,null,null,0,"-",null,0,null,null,null,0,0,null,0,null,null,0,0,1,0,0,0,0]
[null,null,null,null,null,null,0,"-",null,0,null,null,null,0,0,null,0,null,null,0,0,1,0,0,0,0]
[null,null,null,null,null,null,0,"-",null,0,null,null,null,0,0,null,0,null,null,0,0,1,0,0,0,0]
[null,null,null,null,null,null,0,"-",null,0,null,null,null,0,0,null,0,null,null,0,0,1,0,0,0,0]
[null,null,null,null,null,null,0,"-",null,0,null,null,null,0,0,null,0,null,null,0,0,1,0,0,0,0]
[null,null,null,null,null,null,0,"-",null,0,null,null,null,0,0,null,0,null,null,0,0,1,0,0,0,0]
[null,null,null,null,null,null,0,"-",null,0,null,null,null,0,0,null,0,null,null,0,0,1,0,0,0,0]
[null,null,null,null,null,null,0,"-",null,0,null,null,null,0,0,null,0,null,null,0,0,1,0,0,0,0]
[null,1,"Substructure",null,"-",{"$f":"SUM(F103:F122)","v":0},{"$f":"IF(AND(F102<>0,$D$31<>0),F102/$D$31,0)","v":0},{"$f":"IF(AND('Detailed Application Stage'!G155<>0,'Post-Construction Stage'!G102<>0),IF('Detailed Application Stage'!G155='Post-Construction Stage'!G102,\"Equal to planning stage estimate\",IF('Detailed Application Stage'!G155<'Post-Construction Stage'!G102,\"Greater than planning stage estimate\",\"Less than planning stage estimate\")),\"\")","v":""},"-",{"$f":"SUM(J103:J122)","v":0},"-","-","-","-",{"$f":"SUM(O103:O122)","v":0},"-",{"$f":"SUM(Q103:Q122)","v":0},"-","-",{"$f":"IF(W102<>0,W102/($F$155+$O$155),0)","v":0},{"$f":"IF(Y102<>0,Y102/($F$155+$O$155),0)","v":0},1,{"$f":"SUM(W103:W122)","v":0},0,{"$f":"SUM(Y103:Y122)","v":0},0]
[null,1,"Substructure",null,null,null,{"$f":"IF(AND(F103<>0,$D$31<>0),F103/$D$31,0)","v":0},"-",null,{"$f":"I103*F103","v":0},null,null,null,0,0,null,0,null,null,0,0,1,0,0,0,0]
[null,null,null,null,null,null,{"$f":"IF(AND(F104<>0,$D$31<>0),F104/$D$31,0)","v":0},"-",null,0,null,null,null,{"$f":"IF(M104<>0,INT(60/M104),0)","v":0},{"$f":"N104*I104","v":0},null,{"$f":"P104*M104","v":0},null,null,0,0,{"$f":"1-T104-U104","v":1},{"$f":"T104*(F104+O104)","v":0},{"$f":"IF(AND(W104<>0,$D$31<>0),W104/$D$31,0)","v":0},{"$f":"U104*(F104+O104)","v":0},0]
[null,null,null,null,null,null,{"$f":"IF(AND(F105<>0,$D$31<>0),F105/$D$31,0)","v":0},"-",null,0,null,null,null,0,0,null,0,null,null,0,0,1,0,0,0,0]
[null,null,null,null,null,null,0,"-",null,0,null,null,null,0,0,null,0,null,null,0,0,1,0,0,0,0]
[null,null,null,null,null,null,0,"-",null,0,null,null,null,0,0,null,0,null,null,0,0,1,0,0,0,0]
[null,null,null,null,null,null,0,"-",null,0,null,null,null,0,0,null,0,null,null,0,0,1,0,0,0,0]
[null,null,null,null,null,null,0,"-",null,0,null,null,null,0,0,null,0,null,null,0,0,1,0,0,0,0]
[null,null,null,null,null,null,0,"-",null,0,null,null,null,0,0,null,0,null,null,0,0,1,0,0,0,0]
[null,null,null,null,null,null,0,"-",null,0,null,null,null,0,0,null,0,null,null,0,0,1,0,0,0,0]
[null,null,null,null,null,null,0,"-",null,0,null,null,null,0,0,null,0,null,null,0,0,1,0,0,0,0]
[null,null,null,null,null,null,0,"-",null,0,null,null,null,0,0,null,0,null,null,0,0,1,0,0,0,0]
[null,null,null,null,null,null,0,"-",null,0,null,null,null,0,0,null,0,null,null,0,0,1,0,0,0,0]
[null,null,null,null,null,null,0,"-",null,0,null,null,null,0,0,null,0,null,null,0,0,1,0,0,0,0]
[null,null,null,null,null,null,0,"-",null,0,null,null,null,0,0,null,0,null,null,0,0,1,0,0,0,0]
[null,null,null,null,null,null,{"$f":"IF(AND(F117<>0,$D$31<>0),F117/$D$31,0)","v":0},"-",null,0,null,null,null,0,0,null,0,null,null,0,0,1,0,0,0,0]
[null,null,null,null,null,null,{"$f":"IF(AND(F118<>0,$D$31<>0),F118/$D$31,0)","v":0},"-",null,0,null,null,null,0,0,null,0,null,null,0,0,1,0,0,0,0]
[null,null,null,null,null,null,{"$f":"IF(AND(F119<>0,$D$31<>0),F119/$D$31,0)","v":0},"-",null,0,null,null,null,0,0,null,0,null,null,0,0,1,0,0,0,0]
[null,null,null,null,null,null,0,"-",null,0,null,null,null,0,0,null,0,null,null,0,0,1,0,0,0,0]
[null,null,null,null,null,null,0,"-",null,0,null,null,null,0,0,null,0,null,null,0,0,1,0,0,0,0]
[null,null,null,null,null,null,{"$f":"IF(AND(F122<>0,$D$31<>0),F122/$D$31,0)","v":0},"-",null,0,null,null,null,0,0,null,0,null,null,0,0,1,0,0,0,0]
[null,2.1,"Superstructure: Frame",null,"-",{"$f":"SUM(F124:F143)","v":0},{"$f":"IF(AND(F123<>0,$D$31<>0),F123/$D$31,0)","v":0},{"$f":"IF(AND('Detailed Application Stage'!G176<>0,'Post-Construction Stage'!G123<>0),IF('Detailed Application Stage'!G176='Post-Construction Stage'!G123,\"Equal to planning stage estimate\",IF('Detailed Application Stage'!G176<'Post-Construction Stage'!G123,\"Greater than planning stage estimate\",\"Less than planning stage estimate\")),\"\")","v":""},"-",{"$f":"SUM(J124:J143)","v":0},"-","-","-","-",{"$f":"SUM(O124:O143)","v":0},"-",{"$f":"SUM(Q124:Q143)","v":0},"-","-",{"$f":"IF(W123<>0,W123/($F$176+$O$176),0)","v":0},{"$f":"IF(Y123<>0,Y123/($F$176+$O$176),0)","v":0},1,{"$f":"SUM(W124:W143)","v":0},0,{"$f":"SUM(Y124:Y143)","v":0},0]
[null,2.1,"Superstructure: Frame",null,null,null,{"$f":"IF(AND(F124<>0,$D$31<>0),F124/$D$31,0)","v":0},"-",null,{"$f":"I124*F124","v":0},null,null,null,0,0,null,0,null,null,0,0,1,0,0,0,0]
[null,null,null,null,null,null,{"$f":"IF(AND(F125<>0,$D$31<>0),F125/$D$31,0)","v":0},"-",null,0,null,null,null,0,0,null,0,null,null,0,0,1,0,0,0,0]
[null,null,null,null,null,null,{"$f":"IF(AND(F126<>0,$D$31<>0),F126/$D$31,0)","v":0},"-",null,0,null,null,null,0,0,null,0,null,null,0,0,1,0,0,0,0]
[null,null,null,null,null,null,0,"-",null,0,null,null,null,0,0,null,0,null,null,0,0,1,0,0,0,0]
[null,null,null,null,null,null,0,"-",null,0,null,null,null,0,0,null,0,null,null,0,0,1,0,0,0,0]
[null,null,null,null,null,null,0,"-",null,0,null,null,null,0,0,null,0,null,null,0,0,1,0,0,0,0]
[null,null,null,null,null,null,0,"-",null,0,null,null,null,0,0,null,0,null,null,0,0,1,0,0,0,0]
[null,null,null,null,null,null,0,"-",null,0,null,null,null,0,0,null,0,null,null,0,0,1,0,0,0,0]
[null,null,null,null,null,null,0,"-",null,0,null,null,null,0,0,null,0,null,null,0,0,1,0,0,0,0]
[null,null,null,null,null,null,0,"-",null,0,null,null,null,0,0,null,0,null,null,0,0,1,0,0,0,0]
[null,null,null,null,null,null,0,"-",null,0,null,null,null,0,0,null,0,null,null,0,0,1,0,0,0,0]
[null,null,null,null,null,null,0,"-",null,0,null,null,null,0,0,null,0,null,null,0,0,1,0,0,0,0]
[null,null,null,null,null,null,0,"-",null,0,null,null,null,0,0,null,0,null,null,0,0,1,0,0,0,0]
[null,null,null,null,null,null,0,"-",null,0,null,null,null,0,0,null,0,null,null,0,0,1,0,0,0,0]
[null,null,null,null,null,null,{"$f":"IF(AND(F138<>0,$D$31<>0),F138/$D$31,0)","v":0},"-",null,0,null,null,null,0,0,null,0,null,null,0,0,1,0,0,0,0]
[null,null,null,null,null,null,{"$f":"IF(AND(F139<>0,$D$31<>0),F139/$D$31,0)","v":0},"-",null,0,null,null,null,0,0,null,0,null,null,0,0,1,0,0,0,0]
[null,null,null,null,null,null,{"$f":"IF(AND(F140<>0,$D$31<>0),F140/$D$31,0)","v":0},"-",null,0,null,null,null,0,0,null,0,null,null,0,0,1,0,0,0,0]
[null,null,null,null,null,null,{"$f":"IF(AND(F141<>0,$D$31<>0),F141/$D$31,0)","v":0},"-",null,0,null,null,null,0,0,null,0,null,null,0,0,1,0,0,0,0]
[null,null,null,null,null,null,0,"-",null,0,null,null,null,0,0,null,0,null,null,0,0,1,0,0,0,0]
[null,null,null,null,null,null,0,"-",null,0,null,null,null,0,0,null,0,null,null,0,0,1,0,0,0,0]
[null,2.2000000000000002,"Superstructure: Upper Floors",null,"-",{"$f":"SUM(F145:F164)","v":0},{"$f":"IF(AND(F144<>0,$D$31<>0),F144/$D$31,0)","v":0},{"$f":"IF(AND('Detailed Application Stage'!G197<>0,'Post-Construction Stage'!G144<>0),IF('Detailed Application Stage'!G197='Post-Construction Stage'!G144,\"Equal to planning stage estimate\",IF('Detailed Application Stage'!G197<'Post-Construction Stage'!G144,\"Greater than planning stage estimate\",\"Less than planning stage estimate\")),\"\")","v":""},"-",{"$f":"SUM(J145:J164)","v":0},"-","-","-","-",{"$f":"SUM(O145:O164)","v":0},"-",{"$f":"SUM(Q145:Q164)","v":0},"-","-",{"$f":"IF(W144<>0,W144/($F$197+$O$197),0)","v":0},{"$f":"IF(Y144<>0,Y144/($F$197+$O$197),0)","v":0},1,{"$f":"SUM(W145:W164)","v":0},0,{"$f":"SUM(Y145:Y164)","v":0},0]
[null,2.2000000000000002,"Superstructure: Upper Floors",null,null,null,{"$f":"IF(AND(F145<>0,$D$31<>0),F145/$D$31,0)","v":0},"-",null,{"$f":"I145*F145","v":0},null,null,null,0,0,null,0,null,null,0,0,1,0,0,0,0]
[null,null,null,null,null,null,{"$f":"IF(AND(F146<>0,$D$31<>0),F146/$D$31,0)","v":0},"-",null,0,null,null,null,0,0,null,0,null,null,0,0,1,0,0,0,0]
[null,null,null,null,null,null,{"$f":"IF(AND(F147<>0,$D$31<>0),F147/$D$31,0)","v":0},"-",null,0,null,null,null,0,0,null,0,null,null,0,0,1,0,0,0,0]
[null,null,null,null,null,null,0,"-",null,0,null,null,null,0,0,null,0,null,null,0,0,1,0,0,0,0]
[null,null,null,null,null,null,0,"-",null,0,null,null,null,0,0,null,0,null,null,0,0,1,0,0,0,0]
[null,null,null,null,null,null,0,"-",null,0,null,null,null,0,0,null,0,null,null,0,0,1,0,0,0,0]
[null,null,null,null,null,null,0,"-",null,0,null,null,null,0,0,null,0,null,null,0,0,1,0,0,0,0]
[null,null,null,null,null,null,0,"-",null,0,null,null,null,0,0,null,0,null,null,0,0,1,0,0,0,0]
[null,null,null,null,null,null,0,"-",null,0,null,null,null,0,0,null,0,null,null,0,0,1,0,0,0,0]
[null,null,null,null,null,null,0,"-",null,0,null,null,null,0,0,null,0,null,null,0,0,1,0,0,0,0]
[null,null,null,null,null,null,0,"-",null,0,null,null,null,0,0,null,0,null,null,0,0,1,0,0,0,0]
[null,null,null,null,null,null,0,"-",null,0,null,null,null,0,0,null,0,null,null,0,0,1,0,0,0,0]
[null,null,null,null,null,null,0,"-",null,0,null,null,null,0,0,null,0,null,null,0,0,1,0,0,0,0]
[null,null,null,null,null,null,0,"-",null,0,null,null,null,0,0,null,0,null,null,0,0,1,0,0,0,0]
[null,null,null,null,null,null,{"$f":"IF(AND(F159<>0,$D$31<>0),F159/$D$31,0)","v":0},"-",null,0,null,null,null,0,0,null,0,null,null,0,0,1,0,0,0,0]
[null,null,null,null,null,null,{"$f":"IF(AND(F160<>0,$D$31<>0),F160/$D$31,0)","v":0},"-",null,0,null,null,null,0,0,null,0,null,null,0,0,1,0,0,0,0]
[null,null,null,null,null,null,{"$f":"IF(AND(F161<>0,$D$31<>0),F161/$D$31,0)","v":0},"-",null,0,null,null,null,0,0,null,0,null,null,0,0,1,0,0,0,0]
[null,null,null,null,null,null,{"$f":"IF(AND(F162<>0,$D$31<>0),F162/$D$31,0)","v":0},"-",null,0,null,null,null,0,0,null,0,null,null,0,0,1,0,0,0,0]
[null,null,null,null,null,null,0,"-",null,0,null,null,null,0,0,null,0,null,null,0,0,1,0,0,0,0]
[null,null,null,null,null,null,0,"-",null,{"$f":"I164*F164","v":0},null,null,null,0,0,null,0,null,null,0,0,1,0,0,0,0]
[null,2.2999999999999998,"Superstructure: Roof",null,"-",{"$f":"SUM(F166:F185)","v":0},{"$f":"IF(AND(F165<>0,$D$31<>0),F165/$D$31,0)","v":0},{"$f":"IF(AND('Detailed Application Stage'!G218<>0,'Post-Construction Stage'!G165<>0),IF('Detailed Application Stage'!G218='Post-Construction Stage'!G165,\"Equal to planning stage estimate\",IF('Detailed Application Stage'!G218<'Post-Construction Stage'!G165,\"Greater than planning stage estimate\",\"Less than planning stage estimate\")),\"\")","v":""},"-",{"$f":"SUM(J166:J185)","v":0},"-","-","-","-",{"$f":"SUM(O166:O185)","v":0},"-",{"$f":"SUM(Q166:Q185)","v":0},"-","-",{"$f":"IF(W165<>0,W165/($F$218+$O$218),0)","v":0},{"$f":"IF(Y165<>0,Y165/($F$218+$O$218),0)","v":0},1,{"$f":"SUM(W166:W185)","v":0},0,{"$f":"SUM(Y166:Y185)","v":0},0]
[null,2.2999999999999998,"Superstructure: Roof",null,null,null,{"$f":"IF(AND(F166<>0,$D$31<>0),F166/$D$31,0)","v":0},"-",null,{"$f":"I166*F166","v":0},null,null,null,0,0,null,0,null,null,0,0,1,0,0,0,0]
[null,null,null,null,null,null,{"$f":"IF(AND(F167<>0,$D$31<>0),F167/$D$31,0)","v":0},"-",null,0,null,null,null,0,0,null,0,null,null,0,0,1,0,0,0,0]
[null,null,null,null,null,null,{"$f":"IF(AND(F168<>0,$D$31<>0),F168/$D$31,0)","v":0},"-",null,0,null,null,null,{"$f":"IF(M168<>0,INT(60/M168),0)","v":0},{"$f":"N168*I168","v":0},null,{"$f":"P168*M168","v":0},null,null,0,0,{"$f":"1-T168-U168","v":1},{"$f":"T168*(F168+O168)","v":0},{"$f":"IF(AND(W168<>0,$D$31<>0),W168/$D$31,0)","v":0},{"$f":"U168*(F168+O168)","v":0},0]
[null,null,null,null,null,null,0,"-",null,0,null,null,null,0,0,null,0,null,null,0,0,1,0,0,0,0]
[null,null,null,null,null,null,0,"-",null,0,null,null,null,0,0,null,0,null,null,0,0,1,0,0,0,0]
[null,null,null,null,null,null,0,"-",null,0,null,null,null,0,0,null,0,null,null,0,0,1,0,0,0,0]
[null,null,null,null,null,null,0,"-",null,0,null,null,null,0,0,null,0,null,null,0,0,1,0,0,0,0]
[null,null,null,null,null,null,0,"-",null,0,null,null,null,0,0,null,0,null,null,0,0,1,0,0,0,0]
[null,null,null,null,null,null,0,"-",null,0,null,null,null,0,0,null,0,null,null,0,0,1,0,0,0,0]
[null,null,null,null,null,null,0,"-",null,0,null,null,null,0,0,null,0,null,null,0,0,1,0,0,0,0]
[null,null,null,null,null,null,0,"-",null,0,null,null,null,0,0,null,0,null,null,0,0,1,0,0,0,0]
[null,null,null,null,null,null,0,"-",null,0,null,null,null,0,0,null,0,null,null,0,0,1,0,0,0,0]
[null,null,null,null,null,null,0,"-",null,0,null,null,null,0,0,null,0,null,null,0,0,1,0,0,0,0]
[null,null,null,null,null,null,0,"-",null,0,null,null,null,0,0,null,0,null,null,0,0,1,0,0,0,0]
[null,null,null,null,null,null,{"$f":"IF(AND(F180<>0,$D$31<>0),F180/$D$31,0)","v":0},"-",null,0,null,null,null,0,0,null,0,null,null,0,0,1,0,0,0,0]
[null,null,null,null,null,null,{"$f":"IF(AND(F181<>0,$D$31<>0),F181/$D$31,0)","v":0},"-",null,0,null,null,null,0,0,null,0,null,null,0,0,1,0,0,0,0]
[null,null,null,null,null,null,{"$f":"IF(AND(F182<>0,$D$31<>0),F182/$D$31,0)","v":0},"-",null,0,null,null,null,0,0,null,0,null,null,0,0,1,0,0,0,0]
[null,null,null,null,null,null,{"$f":"IF(AND(F183<>0,$D$31<>0),F183/$D$31,0)","v":0},"-",null,0,null,null,null,0,0,null,0,null,null,0,0,1,0,0,0,0]
[null,null,null,null,null,null,0,"-",null,0,null,null,null,0,0,null,0,null,null,0,0,1,0,0,0,0]
[null,null,null,null,null,null,0,"-",null,0,null,null,null,0,0,null,0,null,null,0,0,1,0,0,0,0]
[null,2.4,"Superstructure: Stairs and Ramps",null,"-",{"$f":"SUM(F187:F201)","v":0},{"$f":"IF(AND(F186<>0,$D$31<>0),F186/$D$31,0)","v":0},"-","-",{"$f":"SUM(J187:J201)","v":0},"-","-","-","-",{"$f":"SUM(O187:O201)","v":0},"-",{"$f":"SUM(Q187:Q201)","v":0},"-","-",{"$f":"IF(W186<>0,W186/($F$239+$O$239),0)","v":0},{"$f":"IF(Y186<>0,Y186/($F$239+$O$239),0)","v":0},1,{"$f":"SUM(W187:W201)","v":0},0,{"$f":"SUM(Y187:Y201)","v":0},0]
[null,2.4,"Superstructure: Stairs and Ramps",null,null,null,{"$f":"IF(AND(F187<>0,$D$31<>0),F187/$D$31,0)","v":0},"-",null,{"$f":"I187*F187","v":0},null,null,null,0,0,null,0,null,null,0,0,1,0,0,0,0]
[null,null,null,null,null,null,{"$f":"IF(AND(F188<>0,$D$31<>0),F188/$D$31,0)","v":0},"-",null,0,null,null,null,0,0,null,0,null,null,0,0,1,0,0,0,0]
[null,null,null,null,null,null,{"$f":"IF(AND(F189<>0,$D$31<>0),F189/$D$31,0)","v":0},"-",null,0,null,null,null,0,0,null,0,null,null,0,0,1,0,0,0,0]
[null,null,null,null,null,null,0,"-",null,0,null,null,null,0,0,null,0,null,null,0,0,1,0,0,0,0]
[null,null,null,null,null,null,0,"-",null,0,null,null,null,0,0,null,0,null,null,0,0,1,0,0,0,0]
[null,null,null,null,null,null,0,"-",null,0,null,null,null,0,0,null,0,null,null,0,0,1,0,0,0,0]
[null,null,null,null,null,null,0,"-",null,0,null,null,null,0,0,null,0,null,null,0,0,1,0,0,0,0]
[null,null,null,null,null,null,0,"-",null,0,null,null,null,0,0,null,0,null,null,0,0,1,0,0,0,0]
[null,null,null,null,null,null,0,"-",null,0,null,null,null,0,0,null,0,null,null,0,0,1,0,0,0,0]
[null,null,null,null,null,null,0,"-",null,0,null,null,null,0,0,null,0,null,null,0,0,1,0,0,0,0]
[null,null,null,null,null,null,0,"-",null,0,null,null,null,0,0,null,0,null,null,0,0,1,0,0,0,0]
[null,null,null,null,null,null,0,"-",null,0,null,null,null,0,0,null,0,null,null,0,0,1,0,0,0,0]
[null,null,null,null,null,null,0,"-",null,0,null,null,null,0,0,null,0,null,null,0,0,1,0,0,0,0]
[null,null,null,null,null,null,0,"-",null,0,null,null,null,0,0,null,0,null,null,0,0,1,0,0,0,0]
[null,null,null,null,null,null,{"$f":"IF(AND(F201<>0,$D$31<>0),F201/$D$31,0)","v":0},"-",null,0,null,null,null,0,0,null,0,null,null,0,0,1,0,0,0,0]
[null,2.5,"Superstructure: External Walls",null,"-",{"$f":"SUM(F203:F222)","v":0},{"$f":"IF(AND(F202<>0,$D$31<>0),F202/$D$31,0)","v":0},{"$f":"IF(AND('Detailed Application Stage'!G255<>0,'Post-Construction Stage'!G202<>0),IF('Detailed Application Stage'!G255='Post-Construction Stage'!G202,\"Equal to planning stage estimate\",IF('Detailed Application Stage'!G255<'Post-Construction Stage'!G202,\"Greater than planning stage estimate\",\"Less than planning stage estimate\")),\"\")","v":""},"-",{"$f":"SUM(J203:J222)","v":0},"-","-","-","-",{"$f":"SUM(O203:O222)","v":0},"-",{"$f":"SUM(Q203:Q222)","v":0},"-","-",{"$f":"IF(W202<>0,W202/($F$255+$O$255),0)","v":0},{"$f":"IF(Y202<>0,Y202/($F$255+$O$255),0)","v":0},1,{"$f":"SUM(W203:W222)","v":0},0,{"$f":"SUM(Y203:Y222)","v":0},0]
[null,2.5,"Superstructure: External Walls",null,null,null,{"$f":"IF(AND(F203<>0,$D$31<>0),F203/$D$31,0)","v":0},"-",null,{"$f":"I203*F203","v":0},null,null,null,0,0,null,0,null,null,0,0,1,0,0,0,0]
[null,null,null,null,null,null,{"$f":"IF(AND(F204<>0,$D$31<>0),F204/$D$31,0)","v":0},"-",null,0,null,null,null,0,0,null,0,null,null,0,0,1,0,0,0,0]
[null,null,null,null,null,null,{"$f":"IF(AND(F205<>0,$D$31<>0),F205/$D$31,0)","v":0},"-",null,0,null,null,null,0,0,null,0,null,null,0,0,1,0,0,0,0]
[null,null,null,null,null,null,0,"-",null,0,null,null,null,0,0,null,0,null,null,0,0,1,0,0,0,0]
[null,null,null,null,null,null,0,"-",null,0,null,null,null,0,0,null,0,null,null,0,0,1,0,0,0,0]
[null,null,null,null,null,null,0,"-",null,0,null,null,null,0,0,null,0,null,null,0,0,1,0,0,0,0]
[null,null,null,null,null,null,0,"-",null,0,null,null,null,0,0,null,0,null,null,0,0,1,0,0,0,0]
[null,null,null,null,null,null,0,"-",null,0,null,null,null,0,0,null,0,null,null,0,0,1,0,0,0,0]
[null,null,null,null,null,null,0,"-",null,0,null,null,null,0,0,null,0,null,null,0,0,1,0,0,0,0]
[null,null,null,null,null,null,0,"-",null,0,null,null,null,0,0,null,0,null,null,0,0,1,0,0,0,0]
[null,null,null,null,null,null,0,"-",null,0,null,null,null,0,0,null,0,null,null,0,0,1,0,0,0,0]
[null,null,null,null,null,null,0,"-",null,0,null,null,null,0,0,null,0,null,null,0,0,1,0,0,0,0]
[null,null,null,null,null,null,0,"-",null,0,null,null,null,0,0,null,0,null,null,0,0,1,0,0,0,0]
[null,null,null,null,null,null,0,"-",null,0,null,null,null,0,0,null,0,null,null,0,0,1,0,0,0,0]
[null,null,null,null,null,null,{"$f":"IF(AND(F217<>0,$D$31<>0),F217/$D$31,0)","v":0},"-",null,0,null,null,null,0,0,null,0,null,null,0,0,1,0,0,0,0]
[null,null,null,null,null,null,{"$f":"IF(AND(F218<>0,$D$31<>0),F218/$D$31,0)","v":0},"-",null,0,null,null,null,0,0,null,0,null,null,0,0,1,0,0,0,0]
[null,null,null,null,null,null,{"$f":"IF(AND(F219<>0,$D$31<>0),F219/$D$31,0)","v":0},"-",null,0,null,null,null,0,0,null,0,null,null,0,0,1,0,0,0,0]
[null,null,null,null,null,null,{"$f":"IF(AND(F220<>0,$D$31<>0),F220/$D$31,0)","v":0},"-",null,0,null,null,null,0,0,null,0,null,null,0,0,1,0,0,0,0]
[null,null,null,null,null,null,0,"-",null,0,null,null,null,0,0,null,0,null,null,0,0,1,0,0,0,0]
[null,null,null,null,null,null,0,"-",null,0,null,null,null,0,0,null,0,null,null,0,0,1,0,0,0,0]
[null,2.6,"Superstructure: Windows and External Doors",null,"-",{"$f":"SUM(F224:F238)","v":0},{"$f":"IF(AND(F223<>0,$D$31<>0),F223/$D$31,0)","v":0},{"$f":"IF(AND('Detailed Application Stage'!G276<>0,'Post-Construction Stage'!G223<>0),IF('Detailed Application Stage'!G276='Post-Construction Stage'!G223,\"Equal to planning stage estimate\",IF('Detailed Application Stage'!G276<'Post-Construction Stage'!G223,\"Greater than planning stage estimate\",\"Less than planning stage estimate\")),\"\")","v":""},"-",{"$f":"SUM(J224:J238)","v":0},"-","-","-","-",{"$f":"SUM(O224:O238)","v":0},"-",{"$f":"SUM(Q224:Q238)","v":0},"-","-",{"$f":"IF(W223<>0,W223/($F$276+$O$276),0)","v":0},{"$f":"IF(Y223<>0,Y223/($F$276+$O$276),0)","v":0},1,{"$f":"SUM(W224:W238)","v":0},0,{"$f":"SUM(Y224:Y238)","v":0},0]
[null,2.6,"Superstructure: Windows and External Doors",null,null,null,{"$f":"IF(AND(F224<>0,$D$31<>0),F224/$D$31,0)","v":0},"-",null,0,null,null,null,0,0,null,0,null,null,0,0,1,0,0,0,0]
[null,null,null,null,null,null,{"$f":"IF(AND(F225<>0,$D$31<>0),F225/$D$31,0)","v":0},"-",null,0,null,null,null,0,0,null,0,null,null,0,0,1,0,0,0,0]
[null,null,null,null,null,null,{"$f":"IF(AND(F226<>0,$D$31<>0),F226/$D$31,0)","v":0},"-",null,0,null,null,null,0,0,null,0,null,null,0,0,1,0,0,0,0]
[null,null,null,null,null,null,0,"-",null,0,null,null,null,0,0,null,0,null,null,0,0,1,0,0,0,0]
[null,null,null,null,null,null,0,"-",null,0,null,null,null,0,0,null,0,null,null,0,0,1,0,0,0,0]
[null,null,null,null,null,null,0,"-",null,0,null,null,null,0,0,null,0,null,null,0,0,1,0,0,0,0]
[null,null,null,null,null,null,0,"-",null,0,null,null,null,0,0,null,0,null,null,0,0,1,0,0,0,0]
[null,null,null,null,null,null,0,"-",null,0,null,null,null,0,0,null,0,null,null,0,0,1,0,0,0,0]
[null,null,null,null,null,null,0,"-",null,0,null,null,null,{"$f":"IF(M232<>0,INT(60/M232),0)","v":0},{"$f":"N232*I232","v":0},null,{"$f":"P232*M232","v":0},null,null,0,0,{"$f":"1-T232-U232","v":1},{"$f":"T232*(F232+O232)","v":0},{"$f":"IF(AND(W232<>0,$D$31<>0),W232/$D$31,0)","v":0},{"$f":"U232*(F232+O232)","v":0},0]
[null,null,null,null,null,null,0,"-",null,0,null,null,null,0,0,null,0,null,null,0,0,1,0,0,0,0]
[null,null,null,null,null,null,0,"-",null,0,null,null,null,0,0,null,0,null,null,0,0,1,0,0,0,0]
[null,null,null,null,null,null,0,"-",null,0,null,null,null,0,0,null,0,null,null,0,0,1,0,0,0,0]
[null,null,null,null,null,null,0,"-",null,0,null,null,null,0,0,null,0,null,null,0,0,1,0,0,0,0]
[null,null,null,null,null,null,0,"-",null,0,null,null,null,0,0,null,0,null,null,0,0,1,0,0,0,0]
[null,null,null,null,null,null,{"$f":"IF(AND(F238<>0,$D$31<>0),F238/$D$31,0)","v":0},"-",null,0,null,null,null,0,0,null,0,null,null,0,0,1,0,0,0,0]
[null,2.7,"Superstructure: Internal Walls and Partitions",null,"-",{"$f":"SUM(F240:F259)","v":0},{"$f":"IF(AND(F239<>0,$D$31<>0),F239/$D$31,0)","v":0},{"$f":"IF(AND('Detailed Application Stage'!G292<>0,'Post-Construction Stage'!G239<>0),IF('Detailed Application Stage'!G292='Post-Construction Stage'!G239,\"Equal to planning stage estimate\",IF('Detailed Application Stage'!G292<'Post-Construction Stage'!G239,\"Greater than planning stage estimate\",\"Less than planning stage estimate\")),\"\")","v":""},"-",{"$f":"SUM(J240:J259)","v":0},"-","-","-","-",{"$f":"SUM(O240:O259)","v":0},"-",{"$f":"SUM(Q240:Q259)","v":0},"-","-",{"$f":"IF(W239<>0,W239/($F$292+$O$292),0)","v":0},{"$f":"IF(Y239<>0,Y239/($F$292+$O$292),0)","v":0},1,{"$f":"SUM(W240:W259)","v":0},0,{"$f":"SUM(Y240:Y259)","v":0},0]
[null,2.7,"Superstructure: Internal Walls and Partitions",null,null,null,{"$f":"IF(AND(F240<>0,$D$31<>0),F240/$D$31,0)","v":0},"-",null,0,null,null,null,0,0,null,0,null,null,0,0,1,0,0,0,0]
[null,null,null,null,null,null,{"$f":"IF(AND(F241<>0,$D$31<>0),F241/$D$31,0)","v":0},"-",null,0,null,null,null,0,0,null,0,null,null,0,0,1,0,0,0,0]
[null,null,null,null,null,null,{"$f":"IF(AND(F242<>0,$D$31<>0),F242/$D$31,0)","v":0},"-",null,0,null,null,null,0,0,null,0,null,null,0,0,1,0,0,0,0]
[null,null,null,null,null,null,0,"-",null,0,null,null,null,0,0,null,0,null,null,0,0,1,0,0,0,0]
[null,null,null,null,null,null,0,"-",null,0,null,null,null,0,0,null,0,null,null,0,0,1,0,0,0,0]
[null,null,null,null,null,null,0,"-",null,0,null,null,null,0,0,null,0,null,null,0,0,1,0,0,0,0]
[null,null,null,null,null,null,0,"-",null,0,null,null,null,0,0,null,0,null,null,0,0,1,0,0,0,0]
[null,null,null,null,null,null,0,"-",null,0,null,null,null,0,0,null,0,null,null,0,0,1,0,0,0,0]
[null,null,null,null,null,null,0,"-",null,0,null,null,null,0,0,null,0,null,null,0,0,1,0,0,0,0]
[null,null,null,null,null,null,0,"-",null,0,null,null,null,0,0,null,0,null,null,0,0,1,0,0,0,0]
[null,null,null,null,null,null,0,"-",null,0,null,null,null,0,0,null,0,null,null,0,0,1,0,0,0,0]
[null,null,null,null,null,null,0,"-",null,0,null,null,null,0,0,null,0,null,null,0,0,1,0,0,0,0]
[null,null,null,null,null,null,0,"-",null,0,null,null,null,0,0,null,0,null,null,0,0,1,0,0,0,0]
[null,null,null,null,null,null,0,"-",null,0,null,null,null,0,0,null,0,null,null,0,0,1,0,0,0,0]
[null,null,null,null,null,null,{"$f":"IF(AND(F254<>0,$D$31<>0),F254/$D$31,0)","v":0},"-",null,0,null,null,null,0,0,null,0,null,null,0,0,1,0,0,0,0]
[null,null,null,null,null,null,{"$f":"IF(AND(F255<>0,$D$31<>0),F255/$D$31,0)","v":0},"-",null,0,null,null,null,0,0,null,0,null,null,0,0,1,0,0,0,0]
[null,null,null,null,null,null,{"$f":"IF(AND(F256<>0,$D$31<>0),F256/$D$31,0)","v":0},"-",null,0,null,null,null,0,0,null,0,null,null,0,0,1,0,0,0,0]
[null,null,null,null,null,null,{"$f":"IF(AND(F257<>0,$D$31<>0),F257/$D$31,0)","v":0},"-",null,0,null,null,null,0,0,null,0,null,null,0,0,1,0,0,0,0]
[null,null,null,null,null,null,0,"-",null,0,null,null,null,0,0,null,0,null,null,0,0,1,0,0,0,0]
[null,null,null,null,null,null,0,"-",null,0,null,null,null,0,0,null,0,null,null,0,0,1,0,0,0,0]
[null,2.8,"Superstructure: Internal Doors",null,"-",{"$f":"SUM(F261:F275)","v":0},{"$f":"IF(AND(F260<>0,$D$31<>0),F260/$D$31,0)","v":0},{"$f":"IF(AND('Detailed Application Stage'!G313<>0,'Post-Construction Stage'!G260<>0),IF('Detailed Application Stage'!G313='Post-Construction Stage'!G260,\"Equal to planning stage estimate\",IF('Detailed Application Stage'!G313<'Post-Construction Stage'!G260,\"Greater than planning stage estimate\",\"Less than planning stage estimate\")),\"\")","v":""},"-",{"$f":"SUM(J261:J275)","v":0},"-","-","-","-",{"$f":"SUM(O261:O275)","v":0},"-",{"$f":"SUM(Q261:Q275)","v":0},"-","-",{"$f":"IF(W260<>0,W260/($F$313+$O$313),0)","v":0},{"$f":"IF(Y260<>0,Y260/($F$313+$O$313),0)","v":0},1,{"$f":"SUM(W261:W275)","v":0},0,{"$f":"SUM(Y261:Y275)","v":0},0]
[null,2.8,"Superstructure: Internal Doors",null,null,null,{"$f":"IF(AND(F261<>0,$D$31<>0),F261/$D$31,0)","v":0},"-",null,0,null,null,null,0,0,null,0,null,null,0,0,1,0,0,0,0]
[null,null,null,null,null,null,{"$f":"IF(AND(F262<>0,$D$31<>0),F262/$D$31,0)","v":0},"-",null,0,null,null,null,0,0,null,0,null,null,0,0,1,0,0,0,0]
[null,null,null,null,null,null,{"$f":"IF(AND(F263<>0,$D$31<>0),F263/$D$31,0)","v":0},"-",null,0,null,null,null,0,0,null,0,null,null,0,0,1,0,0,0,0]
[null,null,null,null,null,null,0,"-",null,0,null,null,null,0,0,null,0,null,null,0,0,1,0,0,0,0]
[null,null,null,null,null,null,0,"-",null,0,null,null,null,0,0,null,0,null,null,0,0,1,0,0,0,0]
[null,null,null,null,null,null,0,"-",null,0,null,null,null,0,0,null,0,null,null,0,0,1,0,0,0,0]
[null,null,null,null,null,null,0,"-",null,{"$f":"I267*F267","v":0},null,null,null,0,0,null,0,null,null,0,0,1,0,0,0,0]
[null,null,null,null,null,null,0,"-",null,0,null,null,null,0,0,null,0,null,null,0,0,1,0,0,0,0]
[null,null,null,null,null,null,0,"-",null,0,null,null,null,0,0,null,0,null,null,0,0,1,0,0,0,0]
[null,null,null,null,null,null,0,"-",null,0,null,null,null,0,0,null,0,null,null,0,0,1,0,0,0,0]
[null,null,null,null,null,null,0,"-",null,0,null,null,null,0,0,null,0,null,null,0,0,1,0,0,0,0]
[null,null,null,null,null,null,0,"-",null,0,null,null,null,0,0,null,0,null,null,0,0,1,0,0,0,0]
[null,null,null,null,null,null,0,"-",null,0,null,null,null,0,0,null,0,null,null,0,0,1,0,0,0,0]
[null,null,null,null,null,null,0,"-",null,0,null,null,null,0,0,null,0,null,null,0,0,1,0,0,0,0]
[null,null,null,null,null,null,{"$f":"IF(AND(F275<>0,$D$31<>0),F275/$D$31,0)","v":0},"-",null,0,null,null,null,0,0,null,0,null,null,0,0,1,0,0,0,0]
[null,3,"Finishes",null,"-",{"$f":"SUM(F277:F296)","v":0},{"$f":"IF(AND(F276<>0,$D$31<>0),F276/$D$31,0)","v":0},"-","-",{"$f":"SUM(J277:J296)","v":0},"-","-","-","-",{"$f":"SUM(O277:O296)","v":0},"-",{"$f":"SUM(Q277:Q296)","v":0},"-","-",{"$f":"IF(W276<>0,W276/($F$329+$O$329),0)","v":0},{"$f":"IF(Y276<>0,Y276/($F$329+$O$329),0)","v":0},1,{"$f":"SUM(W277:W296)","v":0},0,{"$f":"SUM(Y277:Y296)","v":0},0]
[null,3,"Finishes",null,null,null,{"$f":"IF(AND(F277<>0,$D$31<>0),F277/$D$31,0)","v":0},"-",null,0,null,null,null,0,0,null,0,null,null,0,0,1,0,0,0,0]
[null,null,null,null,null,null,{"$f":"IF(AND(F278<>0,$D$31<>0),F278/$D$31,0)","v":0},"-",null,0,null,null,null,0,0,null,0,null,null,0,0,1,0,0,0,0]
[null,null,null,null,null,null,{"$f":"IF(AND(F279<>0,$D$31<>0),F279/$D$31,0)","v":0},"-",null,0,null,null,null,0,0,null,0,null,null,0,0,1,0,0,0,0]
[null,null,null,null,null,null,0,"-",null,0,null,null,null,0,0,null,0,null,null,0,0,1,0,0,0,0]
[null,null,null,null,null,null,0,"-",null,0,null,null,null,0,0,null,0,null,null,0,0,1,0,0,0,0]
[null,null,null,null,null,null,0,"-",null,0,null,null,null,0,0,null,0,null,null,0,0,1,0,0,0,0]
[null,null,null,null,null,null,0,"-",null,0,null,null,null,0,0,null,0,null,null,0,0,1,0,0,0,0]
[null,null,null,null,null,null,0,"-",null,0,null,null,null,0,0,null,0,null,null,0,0,1,0,0,0,0]
[null,null,null,null,null,null,0,"-",null,0,null,null,null,0,0,null,0,null,null,0,0,1,0,0,0,0]
[null,null,null,null,null,null,0,"-",null,0,null,null,null,0,0,null,0,null,null,0,0,1,0,0,0,0]
[null,null,null,null,null,null,0,"-",null,0,null,null,null,0,0,null,0,null,null,0,0,1,0,0,0,0]
[null,null,null,null,null,null,0,"-",null,0,null,null,null,0,0,null,0,null,null,0,0,1,0,0,0,0]
[null,null,null,null,null,null,0,"-",null,0,null,null,null,0,0,null,0,null,null,0,0,1,0,0,0,0]
[null,null,null,null,null,null,0,"-",null,0,null,null,null,0,0,null,0,null,null,0,0,1,0,0,0,0]
[null,null,null,null,null,null,{"$f":"IF(AND(F291<>0,$D$31<>0),F291/$D$31,0)","v":0},"-",null,0,null,null,null,0,0,null,0,null,null,0,0,1,0,0,0,0]
[null,null,null,null,null,null,{"$f":"IF(AND(F292<>0,$D$31<>0),F292/$D$31,0)","v":0},"-",null,0,null,null,null,0,0,null,0,null,null,0,0,1,0,0,0,0]
[null,null,null,null,null,null,{"$f":"IF(AND(F293<>0,$D$31<>0),F293/$D$31,0)","v":0},"-",null,0,null,null,null,0,0,null,0,null,null,0,0,1,0,0,0,0]
[null,null,null,null,null,null,{"$f":"IF(AND(F294<>0,$D$31<>0),F294/$D$31,0)","v":0},"-",null,0,null,null,null,0,0,null,0,null,null,0,0,1,0,0,0,0]
[null,null,null,null,null,null,0,"-",null,0,null,null,null,0,0,null,0,null,null,0,0,1,0,0,0,0]
[null,null,null,null,null,null,0,"-",null,0,null,null,null,{"$f":"IF(M296<>0,INT(60/M296),0)","v":0},{"$f":"N296*I296","v":0},null,{"$f":"P296*M296","v":0},null,null,0,0,{"$f":"1-T296-U296","v":1},{"$f":"T296*(F296+O296)","v":0},{"$f":"IF(AND(W296<>0,$D$31<>0),W296/$D$31,0)","v":0},{"$f":"U296*(F296+O296)","v":0},0]
[null,4,"Fittings, furnishings & equipment (FFE)",null,"-",{"$f":"SUM(F298:F317)","v":0},{"$f":"IF(AND(F297<>0,$D$31<>0),F297/$D$31,0)","v":0},"-","-",{"$f":"SUM(J298:J317)","v":0},"-","-","-","-",{"$f":"SUM(O298:O317)","v":0},"-",{"$f":"SUM(Q298:Q317)","v":0},"-","-",{"$f":"IF(W297<>0,W297/($F$350+$O$350),0)","v":0},{"$f":"IF(Y297<>0,Y297/($F$350+$O$350),0)","v":0},1,{"$f":"SUM(W298:W317)","v":0},0,{"$f":"SUM(Y298:Y317)","v":0},0]
[null,4,"Fittings, furnishings & equipment (FFE)",null,null,null,{"$f":"IF(AND(F298<>0,$D$31<>0),F298/$D$31,0)","v":0},"-",null,0,null,null,null,0,0,null,0,null,null,0,0,1,0,0,0,0]
[null,null,null,null,null,null,{"$f":"IF(AND(F299<>0,$D$31<>0),F299/$D$31,0)","v":0},"-",null,0,null,null,null,0,0,null,0,null,null,0,0,1,0,0,0,0]
[null,null,null,null,null,null,{"$f":"IF(AND(F300<>0,$D$31<>0),F300/$D$31,0)","v":0},"-",null,0,null,null,null,0,0,null,0,null,null,0,0,1,0,0,0,0]
[null,null,null,null,null,null,0,"-",null,0,null,null,null,0,0,null,0,null,null,0,0,1,0,0,0,0]
[null,null,null,null,null,null,0,"-",null,0,null,null,null,0,0,null,0,null,null,0,0,1,0,0,0,0]
[null,null,null,null,null,null,0,"-",null,0,null,null,null,0,0,null,0,null,null,0,0,1,0,0,0,0]
[null,null,null,null,null,null,0,"-",null,0,null,null,null,0,0,null,0,null,null,0,0,1,0,0,0,0]
[null,null,null,null,null,null,0,"-",null,0,null,null,null,0,0,null,0,null,null,0,0,1,0,0,0,0]
[null,null,null,null,null,null,0,"-",null,0,null,null,null,0,0,null,0,null,null,0,0,1,0,0,0,0]
[null,null,null,null,null,null,0,"-",null,0,null,null,null,0,0,null,0,null,null,0,0,1,0,0,0,0]
[null,null,null,null,null,null,0,"-",null,0,null,null,null,0,0,null,0,null,null,0,0,1,0,0,0,0]
[null,null,null,null,null,null,0,"-",null,0,null,null,null,0,0,null,0,null,null,0,0,1,0,0,0,0]
[null,null,null,null,null,null,0,"-",null,0,null,null,null,0,0,null,0,null,null,0,0,1,0,0,0,0]
[null,null,null,null,null,null,0,"-",null,0,null,null,null,0,0,null,0,null,null,0,0,1,0,0,0,0]
[null,null,null,null,null,null,{"$f":"IF(AND(F312<>0,$D$31<>0),F312/$D$31,0)","v":0},"-",null,0,null,null,null,0,0,null,0,null,null,0,0,1,0,0,0,0]
[null,null,null,null,null,null,{"$f":"IF(AND(F313<>0,$D$31<>0),F313/$D$31,0)","v":0},"-",null,0,null,null,null,0,0,null,0,null,null,0,0,1,0,0,0,0]
[null,null,null,null,null,null,{"$f":"IF(AND(F314<>0,$D$31<>0),F314/$D$31,0)","v":0},"-",null,0,null,null,null,0,0,null,0,null,null,0,0,1,0,0,0,0]
[null,null,null,null,null,null,{"$f":"IF(AND(F315<>0,$D$31<>0),F315/$D$31,0)","v":0},"-",null,0,null,null,null,0,0,null,0,null,null,0,0,1,0,0,0,0]
[null,null,null,null,null,null,0,"-",null,0,null,null,null,0,0,null,0,null,null,0,0,1,0,0,0,0]
[null,null,null,null,null,null,0,"-",null,0,null,null,null,0,0,null,0,null,null,0,0,1,0,0,0,0]
[null,5,"Services (MEP)",null,"-",{"$f":"SUM(F319:F338)","v":0},{"$f":"IF(AND(F318<>0,$D$31<>0),F318/$D$31,0)","v":0},"-","-",{"$f":"SUM(J319:J338)","v":0},"-","-","-","-",{"$f":"SUM(O319:O338)","v":0},"-",{"$f":"SUM(Q319:Q338)","v":0},"-","-",{"$f":"IF(W318<>0,W318/($F$371+$O$371),0)","v":0},{"$f":"IF(Y318<>0,Y318/($F$371+$O$371),0)","v":0},1,{"$f":"SUM(W319:W338)","v":0},0,{"$f":"SUM(Y319:Y338)","v":0},0]
[null,5,"Services (MEP)",null,null,null,{"$f":"IF(AND(F319<>0,$D$31<>0),F319/$D$31,0)","v":0},"-",null,0,null,null,null,0,0,null,0,null,null,0,0,1,0,0,0,0]
[null,null,null,null,null,null,{"$f":"IF(AND(F320<>0,$D$31<>0),F320/$D$31,0)","v":0},"-",null,0,null,null,null,0,0,null,0,null,null,0,0,1,0,0,0,0]
[null,null,null,null,null,null,{"$f":"IF(AND(F321<>0,$D$31<>0),F321/$D$31,0)","v":0},"-",null,0,null,null,null,0,0,null,0,null,null,0,0,1,0,0,0,0]
[null,null,null,null,null,null,0,"-",null,0,null,null,null,0,0,null,0,null,null,0,0,1,0,0,0,0]
[null,null,null,null,null,null,0,"-",null,0,null,null,null,0,0,null,0,null,null,0,0,1,0,0,0,0]
[null,null,null,null,null,null,0,"-",null,0,null,null,null,0,0,null,0,null,null,0,0,1,0,0,0,0]
[null,null,null,null,null,null,0,"-",null,0,null,null,null,0,0,null,0,null,null,0,0,1,0,0,0,0]
[null,null,null,null,null,null,0,"-",null,0,null,null,null,0,0,null,0,null,null,0,0,1,0,0,0,0]
[null,null,null,null,null,null,0,"-",null,0,null,null,null,0,0,null,0,null,null,0,0,1,0,0,0,0]
[null,null,null,null,null,null,0,"-",null,0,null,null,null,0,0,null,0,null,null,0,0,1,0,0,0,0]
[null,null,null,null,null,null,0,"-",null,0,null,null,null,0,0,null,0,null,null,0,0,1,0,0,0,0]
[null,null,null,null,null,null,0,"-",null,0,null,null,null,0,0,null,0,null,null,0,0,1,0,0,0,0]
[null,null,null,null,null,null,0,"-",null,{"$f":"I331*F331","v":0},null,null,null,0,0,null,0,null,null,0,0,1,0,0,0,0]
[null,null,null,null,null,null,0,"-",null,0,null,null,null,0,0,null,0,null,null,0,0,1,0,0,0,0]
[null,null,null,null,null,null,{"$f":"IF(AND(F333<>0,$D$31<>0),F333/$D$31,0)","v":0},"-",null,0,null,null,null,0,0,null,0,null,null,0,0,1,0,0,0,0]
[null,null,null,null,null,null,{"$f":"IF(AND(F334<>0,$D$31<>0),F334/$D$31,0)","v":0},"-",null,0,null,null,null,0,0,null,0,null,null,0,0,1,0,0,0,0]
[null,null,null,null,null,null,{"$f":"IF(AND(F335<>0,$D$31<>0),F335/$D$31,0)","v":0},"-",null,0,null,null,null,0,0,null,0,null,null,0,0,1,0,0,0,0]
[null,null,null,null,null,null,{"$f":"IF(AND(F336<>0,$D$31<>0),F336/$D$31,0)","v":0},"-",null,0,null,null,null,0,0,null,0,null,null,0,0,1,0,0,0,0]
[null,null,null,null,null,null,0,"-",null,0,null,null,null,0,0,null,0,null,null,0,0,1,0,0,0,0]
[null,null,null,null,null,null,0,"-",null,0,null,null,null,0,0,null,0,null,null,0,0,1,0,0,0,0]
[null,6,"Prefabricated Buildings and Building Units",null,"-",{"$f":"SUM(F340:F359)","v":0},{"$f":"IF(AND(F339<>0,$D$31<>0),F339/$D$31,0)","v":0},"-","-",{"$f":"SUM(J340:J359)","v":0},"-","-","-","-",{"$f":"SUM(O340:O359)","v":0},"-",{"$f":"SUM(Q340:Q359)","v":0},"-","-",{"$f":"IF(W339<>0,W339/($F$392+$O$392),0)","v":0},{"$f":"IF(Y339<>0,Y339/($F$392+$O$392),0)","v":0},1,{"$f":"SUM(W340:W359)","v":0},0,{"$f":"SUM(Y340:Y359)","v":0},0]
[null,6,"Prefabricated Buildings and Building Units",null,null,null,{"$f":"IF(AND(F340<>0,$D$31<>0),F340/$D$31,0)","v":0},"-",null,0,null,null,null,0,0,null,0,null,null,0,0,1,0,0,0,0]
[null,null,null,null,null,null,{"$f":"IF(AND(F341<>0,$D$31<>0),F341/$D$31,0)","v":0},"-",null,0,null,null,null,0,0,null,0,null,null,0,0,1,0,0,0,0]
[null,null,null,null,null,null,{"$f":"IF(AND(F342<>0,$D$31<>0),F342/$D$31,0)","v":0},"-",null,0,null,null,null,0,0,null,0,null,null,0,0,1,0,0,0,0]
[null,null,null,null,null,null,0,"-",null,0,null,null,null,0,0,null,0,null,null,0,0,1,0,0,0,0]
[null,null,null,null,null,null,0,"-",null,0,null,null,null,0,0,null,0,null,null,0,0,1,0,0,0,0]
[null,null,null,null,null,null,0,"-",null,0,null,null,null,0,0,null,0,null,null,0,0,1,0,0,0,0]
[null,null,null,null,null,null,0,"-",null,0,null,null,null,0,0,null,0,null,null,0,0,1,0,0,0,0]
[null,null,null,null,null,null,0,"-",null,0,null,null,null,0,0,null,0,null,null,0,0,1,0,0,0,0]
[null,null,null,null,null,null,0,"-",null,0,null,null,null,0,0,null,0,null,null,0,0,1,0,0,0,0]
[null,null,null,null,null,null,0,"-",null,0,null,null,null,0,0,null,0,null,null,0,0,1,0,0,0,0]
[null,null,null,null,null,null,0,"-",null,0,null,null,null,0,0,null,0,null,null,0,0,1,0,0,0,0]
[null,null,null,null,null,null,0,"-",null,0,null,null,null,0,0,null,0,null,null,0,0,1,0,0,0,0]
[null,null,null,null,null,null,0,"-",null,0,null,null,null,0,0,null,0,null,null,0,0,1,0,0,0,0]
[null,null,null,null,null,null,0,"-",null,0,null,null,null,0,0,null,0,null,null,0,0,1,0,0,0,0]
[null,null,null,null,null,null,{"$f":"IF(AND(F354<>0,$D$31<>0),F354/$D$31,0)","v":0},"-",null,0,null,null,null,0,0,null,0,null,null,0,0,1,0,0,0,0]
[null,null,null,null,null,null,{"$f":"IF(AND(F355<>0,$D$31<>0),F355/$D$31,0)","v":0},"-",null,0,null,null,null,0,0,null,0,null,null,0,0,1,0,0,0,0]
[null,null,null,null,null,null,{"$f":"IF(AND(F356<>0,$D$31<>0),F356/$D$31,0)","v":0},"-",null,0,null,null,null,0,0,null,0,null,null,0,0,1,0,0,0,0]
[null,null,null,null,null,null,{"$f":"IF(AND(F357<>0,$D$31<>0),F357/$D$31,0)","v":0},"-",null,0,null,null,null,0,0,null,0,null,null,0,0,1,0,0,0,0]
[null,null,null,null,null,null,0,"-",null,0,null,null,null,0,0,null,0,null,null,0,0,1,0,0,0,0]
[null,null,null,null,null,null,0,"-",null,0,null,null,null,0,0,null,0,null,null,0,0,1,0,0,0,0]
[null,7,"Work to Existing Building",null,"-",{"$f":"SUM(F361:F380)","v":0},{"$f":"IF(AND(F360<>0,$D$31<>0),F360/$D$31,0)","v":0},"-","-",{"$f":"SUM(J361:J380)","v":0},"-","-","-","-",{"$f":"SUM(O361:O380)","v":0},"-",{"$f":"SUM(Q361:Q380)","v":0},"-","-",{"$f":"IF(W360<>0,W360/($F$413+$O$413),0)","v":0},{"$f":"IF(Y360<>0,Y360/($F$413+$O$413),0)","v":0},{"$f":"1-T360-U360","v":1},{"$f":"SUM(W361:W380)","v":0},{"$f":"IF(AND(W360<>0,$D$31<>0),W360/$D$31,0)","v":0},{"$f":"SUM(Y361:Y380)","v":0},0]
[null,7,"Work to Existing Building",null,null,null,{"$f":"IF(AND(F361<>0,$D$31<>0),F361/$D$31,0)","v":0},"-",null,0,null,null,null,{"$f":"IF(M361<>0,INT(60/M361),0)","v":0},{"$f":"N361*I361","v":0},null,{"$f":"P361*M361","v":0},null,null,0,0,1,{"$f":"T361*(F361+O361)","v":0},0,{"$f":"U361*(F361+O361)","v":0},0]
[null,null,null,null,null,null,{"$f":"IF(AND(F362<>0,$D$31<>0),F362/$D$31,0)","v":0},"-",null,0,null,null,null,0,0,null,0,null,null,0,0,1,0,0,0,0]
[null,null,null,null,null,null,{"$f":"IF(AND(F363<>0,$D$31<>0),F363/$D$31,0)","v":0},"-",null,0,null,null,null,0,0,null,0,null,null,0,0,1,0,0,0,0]
[null,null,null,null,null,null,0,"-",null,0,null,null,null,0,0,null,0,null,null,0,0,1,0,0,0,0]
[null,null,null,null,null,null,0,"-",null,0,null,null,null,0,0,null,0,null,null,0,0,1,0,0,0,0]
[null,null,null,null,null,null,0,"-",null,0,null,null,null,0,0,null,0,null,null,0,0,1,0,0,0,0]
[null,null,null,null,null,null,0,"-",null,0,null,null,null,0,0,null,0,null,null,0,0,1,0,0,0,0]
[null,null,null,null,null,null,0,"-",null,0,null,null,null,0,0,null,0,null,null,0,0,1,0,0,0,0]
[null,null,null,null,null,null,0,"-",null,0,null,null,null,{"$f":"IF(M369<>0,INT(60/M369),0)","v":0},0,null,0,null,null,0,0,1,0,0,0,0]
[null,null,null,null,null,null,0,"-",null,0,null,null,null,0,0,null,0,null,null,0,0,1,0,0,0,0]
[null,null,null,null,null,null,0,"-",null,0,null,null,null,0,0,null,0,null,null,0,0,1,0,0,0,0]
[null,null,null,null,null,null,0,"-",null,0,null,null,null,0,0,null,0,null,null,0,0,1,0,0,0,0]
[null,null,null,null,null,null,0,"-",null,0,null,null,null,0,0,null,0,null,null,0,0,1,0,0,0,0]
[null,null,null,null,null,null,0,"-",null,0,null,null,null,0,0,null,0,null,null,0,0,1,0,0,0,0]
[null,null,null,null,null,null,{"$f":"IF(AND(F375<>0,$D$31<>0),F375/$D$31,0)","v":0},"-",null,0,null,null,null,0,0,null,0,null,null,0,0,1,0,0,0,0]
[null,null,null,null,null,null,{"$f":"IF(AND(F376<>0,$D$31<>0),F376/$D$31,0)","v":0},"-",null,0,null,null,null,0,0,null,0,null,null,0,0,1,0,0,0,0]
[null,null,null,null,null,null,{"$f":"IF(AND(F377<>0,$D$31<>0),F377/$D$31,0)","v":0},"-",null,0,null,null,null,0,0,null,0,null,null,0,0,1,0,0,0,0]
[null,null,null,null,null,null,{"$f":"IF(AND(F378<>0,$D$31<>0),F378/$D$31,0)","v":0},"-",null,0,null,null,null,0,0,null,0,null,null,0,0,1,0,0,0,0]
[null,null,null,null,null,null,0,"-",null,0,null,null,null,0,0,null,0,null,null,0,0,1,0,0,0,0]
[null,null,null,null,null,null,0,"-",null,0,null,null,null,0,0,null,0,null,null,0,0,1,0,0,0,0]
[null,8,"External works",null,"-",{"$f":"SUM(F382:F401)","v":0},{"$f":"IF(AND(F381<>0,$D$31<>0),F381/$D$31,0)","v":0},"-","-",{"$f":"SUM(J382:J401)","v":0},"-","-","-","-",{"$f":"SUM(O382:O401)","v":0},"-",{"$f":"SUM(Q382:Q401)","v":0},"-","-",{"$f":"IF(W381<>0,W381/($F$434+$O$434),0)","v":0},{"$f":"IF(Y381<>0,Y381/($F$434+$O$434),0)","v":0},1,{"$f":"SUM(W382:W401)","v":0},0,{"$f":"SUM(Y382:Y401)","v":0},0]
[null,8,"External works",null,null,null,null,"-",null,0,null,null,null,0,0,null,0,null,null,0,0,1,0,0,0,0]
[null,null,null,null,null,null,{"$f":"IF(AND(F383<>0,$D$31<>0),F383/$D$31,0)","v":0},"-",null,0,null,null,null,0,0,null,0,null,null,0,0,1,0,0,0,0]
[null,null,null,null,null,null,{"$f":"IF(AND(F384<>0,$D$31<>0),F384/$D$31,0)","v":0},"-",null,0,null,null,null,0,0,null,0,null,null,0,0,1,0,0,0,0]
[null,null,null,null,null,null,{"$f":"IF(AND(F385<>0,$D$31<>0),F385/$D$31,0)","v":0},"-",null,0,null,null,null,0,0,null,0,null,null,0,0,1,0,0,0,0]
[null,null,null,null,null,null,0,"-",null,0,null,null,null,0,0,null,0,null,null,0,0,1,0,0,0,0]
[null,null,null,null,null,null,0,"-",null,0,null,null,null,0,0,null,0,null,null,0,0,1,0,0,0,0]
[null,null,null,null,null,null,0,"-",null,0,null,null,null,0,0,null,0,null,null,0,0,1,0,0,0,0]
[null,null,null,null,null,null,0,"-",null,0,null,null,null,0,0,null,0,null,null,0,0,1,0,0,0,0]
[null,null,null,null,null,null,0,"-",null,0,null,null,null,0,0,null,0,null,null,0,0,1,0,0,0,0]
[null,null,null,null,null,null,0,"-",null,0,null,null,null,0,0,null,0,null,null,0,0,1,0,0,0,0]
[null,null,null,null,null,null,0,"-",null,0,null,null,null,0,0,null,0,null,null,0,0,1,0,0,0,0]
[null,null,null,null,null,null,0,"-",null,0,null,null,null,0,0,null,0,null,null,0,0,1,0,0,0,0]
[null,null,null,null,null,null,0,"-",null,0,null,null,null,0,0,null,0,null,null,0,0,1,0,0,0,0]
[null,null,null,null,null,null,0,"-",null,{"$f":"I395*F395","v":0},null,null,null,0,0,null,0,null,null,0,0,1,0,0,0,0]
[null,null,null,null,null,null,0,"-",null,0,null,null,null,0,0,null,0,null,null,0,0,1,0,0,0,0]
[null,null,null,null,null,null,0,"-",null,0,null,null,null,0,0,null,0,null,null,0,0,1,0,0,0,0]
[null,null,null,null,null,null,0,"-",null,0,null,null,null,0,0,null,0,null,null,0,0,1,0,0,0,0]
[null,null,null,null,null,null,0,"-",null,0,null,null,null,0,0,null,0,null,null,0,0,1,0,0,0,0]
[null,null,null,null,null,null,0,"-",null,{"$f":"I400*F400","v":0},null,null,null,{"$f":"IF(M400<>0,INT(60/M400),0)","v":0},0,null,0,null,null,0,0,1,0,0,0,0]
[null,null,null,null,null,null,0,"-",null,{"$f":"I401*F401","v":0},null,null,null,{"$f":"IF(M401<>0,INT(60/M401),0)","v":0},{"$f":"N401*I401","v":0},null,{"$f":"P401*M401","v":0},null,null,0,0,1,{"$f":"T401*(F401+O401)","v":0},0,0,{"$f":"IF(AND(Y401<>0,$D$31<>0),Y401/$D$31,0)","v":0}]
[null,null,"Overall",null,null,{"$f":"SUM(F38,F54,F70,F86,F102,F123,F144,F165,F186,F202,F223,F239,F260,F276,F297,F318,F339,F360,F381)","v":0},0,null,null,{"$f":"SUM(J38,J54,J70,J86,J102,J123,J144,J165,J186,J202,J223,J239,J260,J276,J297,J318,J339,J360,J381)","v":0},null,null,null,null,{"$f":"SUM(O38,O54,O70,O86,O102,O123,O144,O165,O186,O202,O223,O239,O260,O276,O297,O318,O339,O360,O381)","v":0},null,{"$f":"SUM(Q38:Q401)","v":0},null,null,{"$f":"IF(AND($F$455<>0,$O$455<>0),SUM(W38,W54,W70,W86,W102,W123,W144,W165,W186,W202,W223,W239,W260,W276,W297,W318,W339,W360,W381)/($F$455+$O$455),0)","v":0},{"$f":"IF(AND($F$455<>0,$O$455<>0),SUM(Y38,Y54,Y70,Y86,Y102,Y123,Y144,Y165,Y186,Y202,Y223,Y239,Y260,Y276,Y297,Y318,Y339,Y360,Y381)/($F$455+$O$455),0)","v":0},{"$f":"1-T402-U402","v":1},{"$f":"SUM(W38:W401)","v":0},{"$f":"SUM(X38:X401)","v":0},{"$f":"SUM(Y38:Y401)","v":0},{"$f":"SUM(Z38:Z401)","v":0}]
[]
[]
[]
[]
[null,"Recycling and Waste Reporting table"]
[null,"The light green-coloured cells should be completed to achieve 'pioneering' status."]
[null,null,null,null,"TOTAL ESTIMATES OF WASTE",null,null,"WASTE MANAGEMENT ROUTES",null,null,null,null,null,"SUMMARY"]
[null,null,null,null,"Overall Waste \n(tonnes)","Overall Waste\n(tonnes/m2 GIA)","Performance Indicator (Planning Stage Estimate)","REUSE ",null,"RECYCLE",null,"OTHER DISPOSAL",null,"Total Reuse (%)","Total Recycle (%)","Total Reuse and Recycle (%)","Total Waste Reported (%)"]
[null,null,"Type of Waste","Source of Information",null,null,null,"Reuse Onsite (%)","Reuse Offsite (%)","Recycle Onsite(%)","Recycle Offsite (%)","To Landfill (%)","To Other Management (%)"]
[null,null,null,null,"PRODUCT AND CONSTRUCTION STAGE (MODULE A)"]
[null,1,"Demolition Waste",null,null,{"$f":"IF($D$31>0,IF(E413>0,E413/$D$31,0),0)","v":0},{"$f":"IF(AND('Detailed Application Stage'!F466<>0,'Post-Construction Stage'!F413<>0),IF('Detailed Application Stage'!F466='Post-Construction Stage'!F413,\"Equal to planning stage estimate\",IF('Detailed Application Stage'!F466<'Post-Construction Stage'!F413,\"Greater than planning stage estimate\",\"Less than planning stage estimate\")),\"\")","v":""},null,null,null,null,null,null,{"$f":"SUM(H413:I413)","v":0},{"$f":"SUM(J413:K413)","v":0},{"$f":"SUM(N413:O413)","v":0},{"$f":"SUM(H413:M413)","v":0}]
[null,2.1,"Excavation Waste",null,null,{"$f":"IF($D$31>0,IF(E414>0,E414/$D$31,0),0)","v":0},{"$f":"IF(AND('Detailed Application Stage'!F467<>0,'Post-Construction Stage'!F414<>0),IF('Detailed Application Stage'!F467='Post-Construction Stage'!F414,\"Equal to planning stage estimate\",IF('Detailed Application Stage'!F467<'Post-Construction Stage'!F414,\"Greater than planning stage estimate\",\"Less than planning stage estimate\")),\"\")","v":""},null,null,null,null,null,null,{"$f":"SUM(H414:I414)","v":0},{"$f":"SUM(J414:K414)","v":0},{"$f":"SUM(N414:O414)","v":0},{"$f":"SUM(H414:M414)","v":0}]
[null,2.8,"Construction Waste",null,null,{"$f":"IF($D$31>0,IF(E415>0,E415/$D$31,0),0)","v":0},{"$f":"IF(AND('Detailed Application Stage'!F468<>0,'Post-Construction Stage'!F415<>0),IF('Detailed Application Stage'!F468='Post-Construction Stage'!F415,\"Equal to planning stage estimate\",IF('Detailed Application Stage'!F468<'Post-Construction Stage'!F415,\"Greater than planning stage estimate\",\"Less than planning stage estimate\")),\"\")","v":""},null,null,null,null,null,null,{"$f":"SUM(H415:I415)","v":0},{"$f":"SUM(J415:K415)","v":0},{"$f":"SUM(N415:O415)","v":0},{"$f":"SUM(H415:M415)","v":0}]
[null,null,null,null,"USE STAGE (MODULE B)"]
[null,3,"Demolition / Strip-out Waste",null,{"$f":"IF(ISNUMBER(#REF!),#REF!/1000,0)","v":0},{"$f":"IF($D$31>0,IF(E417>0,E417/$D$31,0),0)","v":0},{"$f":"IF(AND('Detailed Application Stage'!F470<>0,'Post-Construction Stage'!F417<>0),IF('Detailed Application Stage'!F470='Post-Construction Stage'!F417,\"Equal to planning stage estimate\",IF('Detailed Application Stage'!F470<'Post-Construction Stage'!F417,\"Greater than planning stage estimate\",\"Less than planning stage estimate\")),\"\")","v":""},null,null,null,null,null,null,{"$f":"SUM(H417:I417)","v":0},{"$f":"SUM(J417:K417)","v":0},{"$f":"SUM(N417:O417)","v":0},{"$f":"SUM(H417:M417)","v":0}]
[null,4,"Construction Waste",null,{"$f":"IF(ISNUMBER(#REF!),#REF!/1000,0)","v":0},{"$f":"IF($D$31>0,IF(E418>0,E418/$D$31,0),0)","v":0},{"$f":"IF(AND('Detailed Application Stage'!F471<>0,'Post-Construction Stage'!F418<>0),IF('Detailed Application Stage'!F471='Post-Construction Stage'!F418,\"Equal to planning stage estimate\",IF('Detailed Application Stage'!F471<'Post-Construction Stage'!F418,\"Greater than planning stage estimate\",\"Less than planning stage estimate\")),\"\")","v":""},null,null,null,null,null,null,{"$f":"SUM(H418:I418)","v":0},{"$f":"SUM(J418:K418)","v":0},{"$f":"SUM(N418:O418)","v":0},{"$f":"SUM(H418:M418)","v":0}]
[null,null,null,null,"Overall Waste (tonnes/annum)","Overall Waste (tonnes/annum\n/m2)","Performance Indicator (Planning Stage Estimate)","Reuse Onsite (%)","Reuse Offsite (%)","Recycle Offsite(%)","Recycle Offsite (%)","To Landfill (%)","To Other Management (%)","Total Reuse (%)","Total Recycle (%)","Total Reuse and Recycle (%)","Total Waste Reported (%)"]
[null,5,"Municipal Waste",null,null,{"$f":"IF($D$31>0,IF(E420>0,E420/$D$31,0),0)","v":0},{"$f":"IF(AND('Detailed Application Stage'!F473<>0,'Post-Construction Stage'!F420<>0),IF('Detailed Application Stage'!F473='Post-Construction Stage'!F420,\"Equal to planning stage estimate\",IF('Detailed Application Stage'!F473<'Post-Construction Stage'!F420,\"Greater than planning stage estimate\",\"Less than planning stage estimate\")),\"\")","v":""},null,null,null,null,null,null,{"$f":"SUM(H420:I420)","v":0},{"$f":"SUM(J420:K420)","v":0},{"$f":"SUM(N420:O420)","v":0},{"$f":"SUM(H420:M420)","v":0}]
[null,6,"Industrial Waste (if applicable)",null,null,{"$f":"IF($D$31>0,IF(E421>0,E421/$D$31,0),0)","v":0},{"$f":"IF(AND('Detailed Application Stage'!F474<>0,'Post-Construction Stage'!F421<>0),IF('Detailed Application Stage'!F474='Post-Construction Stage'!F421,\"Equal to planning stage estimate\",IF('Detailed Application Stage'!F474<'Post-Construction Stage'!F421,\"Greater than planning stage estimate\",\"Less than planning stage estimate\")),\"\")","v":""},null,null,null,null,null,null,{"$f":"SUM(H421:I421)","v":0},{"$f":"SUM(J421:K421)","v":0},{"$f":"SUM(N421:O421)","v":0},{"$f":"SUM(H421:M421)","v":0}]
[null,null,null,null,"MODULE A - MODULE C"]
[null,null,null,null,"Overall Materials \n(tonnes)","Overall Materials (Modules A-C) (tonnes\n/m2)","Performance Indicator (Planning Stage Estimate)","Reuse Onsite (%)","Reuse Offsite (%)","Recycle Offsite(%)","Recycle Offsite (%)","To Landfill (%)","To Other Management (%)","Total Reuse (%)","Total Recycle (%)","Total Reuse and Recycle (%)","Total Waste Reported (%)"]
[null,7,"Total Materials",null,{"$f":"IF(AND(ISNUMBER(#REF!),ISNUMBER(#REF!),ISNUMBER(#REF!),ISNUMBER(#REF!)),((#REF!+#REF!+#REF!+#REF!)/1000),0)","v":0},{"$f":"IF($D$31>0,IF(E424>0,E424/$D$31,0),0)","v":0},{"$f":"IF(AND('Detailed Application Stage'!F477<>0,'Post-Construction Stage'!F424<>0),IF('Detailed Application Stage'!F477='Post-Construction Stage'!F424,\"Equal to planning stage estimate\",IF('Detailed Application Stage'!F477<'Post-Construction Stage'!F424,\"Greater than planning stage estimate\",\"Less than planning stage estimate\")),\"\")","v":""},null,null,null,null,null,null,{"$f":"SUM(H424:I424)","v":0},{"$f":"SUM(J424:K424)","v":0},{"$f":"SUM(N424:O424)","v":0},{"$f":"SUM(H424:M424)","v":0}]
[]
[]
[null,"Circular Economy Targets "]
[null,"Circular economy targets for existing and new development",null,"Policy Requirement","Target at Application Stage (%)","Rate Achieved (%)","Policy Met?","Actions Undertaken / Explanation (How has this been achieved? What are the reasons for any differences between targets/performance?)"]
[null,"Demolition waste materials (non-hazardous)",null,"Minimum of 95% diverted from landfill for reuse, recycling or recovery.",{"$f":"IF(ISNUMBER('Detailed Application Stage'!E482),'Detailed Application Stage'!E482,\"\")","v":0.98},null,{"$f":"IF(ISNUMBER(F429),IF(F429>100%,\"Input not valid\",IF(F429=95%,\"Yes\",IF(100%>=F429>95%,\"Exceeds Policy\",\"No\"))),\"\")","v":""}]
[null,"Excavation waste materials",null,"Minimum of 95% diverted from landfill for beneficial reuse.",{"$f":"IF(ISNUMBER('Detailed Application Stage'!E483),'Detailed Application Stage'!E483,\"\")","v":0.95},null,{"$f":"IF(ISNUMBER(F430),IF(F430>100%,\"Input not valid\",IF(F430=95%,\"Yes\",IF(100%>=F430>95%,\"Exceeds Policy\",\"No\"))),\"\")","v":""}]
[null,"Construction waste materials",null,"Minimum of 95% diverted from landfill for reuse, recycling or recovery.",{"$f":"IF(ISNUMBER('Detailed Application Stage'!E484),'Detailed Application Stage'!E484,\"\")","v":0.95},null,{"$f":"IF(ISNUMBER(F431),IF(F431>100%,\"Input not valid\",IF(F431=95%,\"Yes\",IF(100%>=F431>95%,\"Exceeds Policy\",\"No\"))),\"\")","v":""}]
[null,"Municipal waste",null,"Minimum 65% recycling rate by 2030.",{"$f":"IF(ISNUMBER('Detailed Application Stage'!E485),'Detailed Application Stage'!E485,\"\")","v":0.65},null,{"$f":"IF(ISNUMBER(F432),IF(F432>100%,\"Input not valid\",IF(F432=65%,\"Yes\",IF(100%>=F432>65%,\"Exceeds Policy\",\"No\"))),\"\")","v":""}]
[null,"Recycled content",null,"Minimum 20% of the building material elements to be comprised of recycled or reused content.",{"$f":"IF(ISNUMBER('Detailed Application Stage'!E486),'Detailed Application Stage'!E486,\"\")","v":0.2},null,{"$f":"IF(ISNUMBER(F433),IF(F433>100%,\"Input not valid\",IF(F433=20%,\"Yes\",IF(100%>=F433>20%,\"Exceeds Policy\",\"No\"))),\"\")","v":""}]
[]
[]
[null,"Key Achievements and Gap Assessment:"]
[null,"Summary of key actions undertaken to achieve circular economy outcomes, including achievements and reasons for any differences between targets/performance"]
[null,"Key Achievements",null,"Measure / Target Proposed at Application Stage (if applicable)",null,"Actions Undertaken / Explanation (How has this been achieved? What are the reasons for any differences between targets/performance?)"]
[null,"[This list does not need to be exhaustive but should identify the actions with the biggest impacts.]"]
[]
[]
[]
[]
[]
[]
[]
[]
[]
[]
[]
[]
[]
[]
[]
[null,"Lessons Learnt:"]
[null,"Lessons learnt from the process of undertaking a CE Statement that will inform future projects"]
[null,"Description",null,"Explanation / Solution / Future Approach"]
[null,null,null,"[i.e. Design options or materials that could be used, design principles that could be applied.]"]

{"sheet":"Drop- down list","index":5,"n_rows":20,"n_cols":6,"rows_kept":20,"cut":false,"hidden":true,"merged":[]}
["Number of Use Types","Yes/No","Layers","Building element category reference","Building element category","Other"]
[1,"Yes","Site",0.1,"Demolition: Toxic/Hazardous/Contaminated Material Treatment","It is accepted that the Reserved Matters Reporting will be conditioned"]
[2,"No","Substructure",0.2,"Major Demolition Works","It is accepted that the Post Construction Reporting will be conditioned"]
[3,"Yes, in whole","Super- Structure",0.3,"Temporary Support to Adjacent Structures"]
[4,"Yes, in part","Shell/ Skin",0.4,"Specialist Ground Works"]
[5,"No","Services",1,"Substructure"]
[6,null,"Space",2.1,"Superstructure: Frame"]
[7,null,"Stuff",2.2000000000000002,"Superstructure: Upper Floors"]
[8,null,"Construction Stuff",2.2999999999999998,"Superstructure: Roof"]
[9,null,null,2.4,"Superstructure: Stairs and Ramps"]
[10,null,"Yes",2.5,"Superstructure: External Walls"]
[11,null,"No",2.6,"Superstructure: Windows and External Doors"]
[12,null,null,2.7,"Superstructure: Internal Walls and Partitions"]
[13,null,null,2.8,"Superstructure: Internal Doors"]
[14,null,null,3,"Finishes"]
[15,null,null,4,"Fittings, furnishings & equipment (FFE)"]
[null,null,null,5,"Services (MEP)"]
[null,null,null,6,"Prefabricated Buildings and Building Units"]
[null,null,null,7,"Work to Existing Building"]
[null,null,null,8,"External works"]